﻿Department family,Entity,Date of payment,Expense type,Expense area,Supplier,Transaction number,Amount in Sterling,Supplier VAT Registration Number
Department of Health,Guys and St Thomas NHS Foundation Trust,05/06/2020,(55040) Admin & Clerical,(id:2002419) Cancer Supportive Services and R&D,KINGS COLLEGE LONDON:03529700,id:12942797   ,2998.48
Department of Health,Guys and St Thomas NHS Foundation Trust,05/06/2020,(50200) Consultants,(id:2002419) Cancer Supportive Services and R&D,KINGS COLLEGE LONDON:03529700,id:12782463   ,1473.65
Department of Health,Guys and St Thomas NHS Foundation Trust,12/06/2020,(50200) Consultants,(id:2002419) Cancer Supportive Services and R&D,KINGS COLLEGE LONDON:03529700,id:12593438   ,1425.55
Department of Health,Guys and St Thomas NHS Foundation Trust,05/06/2020,(50200) Consultants,(id:4060419) Cancer Supportive Services and R&D,KINGS COLLEGE LONDON:03529700,id:12942797   ,4110.58
Department of Health,Guys and St Thomas NHS Foundation Trust,12/06/2020,(50200) Consultants,(id:4060419) Cancer Supportive Services and R&D,KINGS COLLEGE LONDON:03529700,id:12593438   ,4043.80
Department of Health,Guys and St Thomas NHS Foundation Trust,19/06/2020,(81200) Medical Surgical Supplies & Equipment,(id:42270) Haematology,SQUADRON MEDICAL LTD,id:13078785 ,1024.92
Department of Health,Guys and St Thomas NHS Foundation Trust,12/06/2020,(81200) Medical Surgical Supplies & Equipment,(id:42270) Haematology,TERUMO BCT EUROPE NV/SA  (PREVIOUSLY CARIDIAN),id:9840252 ,3862.94
Department of Health,Guys and St Thomas NHS Foundation Trust,05/06/2020,(81200) Medical Surgical Supplies & Equipment,(id:42270) Haematology,TERUMO BCT EUROPE NV/SA  (PREVIOUSLY CARIDIAN),id:13067212,4169.38
Department of Health,Guys and St Thomas NHS Foundation Trust,05/06/2020,(81200) Medical Surgical Supplies & Equipment,(id:42270) Haematology,TERUMO BCT EUROPE NV/SA  (PREVIOUSLY CARIDIAN),id:13067328,8338.75
Department of Health,Guys and St Thomas NHS Foundation Trust,05/06/2020,(81255) Medical Surgical Supplies & Equipment,(id:42270) Haematology,NHS SUPPLY CHAIN (MAIDSTONE),id:12997767   ,    .67
Department of Health,Guys and St Thomas NHS Foundation Trust,05/06/2020,(82000) Provisions & Kitchens,(id:42270) Haematology,NHS SUPPLY CHAIN (MAIDSTONE),id:13015166    ,  34.80
Department of Health,Guys and St Thomas NHS Foundation Trust,05/06/2020,(81000) Surgical Appliances,(id:42268) Haematology,MEDI UK LTD,id:13057728   ,  45.91
Department of Health,Guys and St Thomas NHS Foundation Trust,12/06/2020,(81000) Surgical Appliances,(id:42268) Haematology,MEDI UK LTD,id:13075540   ,  52.03
Department of Health,Guys and St Thomas NHS Foundation Trust,05/06/2020,(82700) Uniforms & Clothing,(id:42265) Haematology,NHS SUPPLY CHAIN (MAIDSTONE),id:13015166 ,  21.12
Department of Health,Guys and St Thomas NHS Foundation Trust,05/06/2020,(82600) Uniforms & Clothing,(id:42272) Haematology,CRANWORTH MEDICAL LTD,id:13057783   ,1520.00
Department of Health,Guys and St Thomas NHS Foundation Trust,05/06/2020,(81100) Dressings,(id:42272) Haematology,NHS SUPPLY CHAIN (MAIDSTONE),id:12997767 ,  24.48
Department of Health,Guys and St Thomas NHS Foundation Trust,05/06/2020,(81000) Surgical Appliances,(id:42272) Haematology,MEDI UK LTD,id:13057794   , 105.34
Department of Health,Guys and St Thomas NHS Foundation Trust,19/06/2020,(80205) Drug Costs,(id:42273) Haematology,HEALTHCARE AT HOME LTD,id:13102000 , 750.00
Department of Health,Guys and St Thomas NHS Foundation Trust,19/06/2020,(80205) Drug Costs,(id:42273) Haematology,HEALTHCARE AT HOME LTD,id:13102122 ,5400.20
Department of Health,Guys and St Thomas NHS Foundation Trust,19/06/2020,(80205) Drug Costs,(id:42273) Haematology,HEALTHCARE AT HOME LTD,id:13102130 ,7625.00
Department of Health,Guys and St Thomas NHS Foundation Trust,19/06/2020,(80205) Drug Costs,(id:42273) Haematology,HEALTHCARE AT HOME LTD,id:13102006 ,8225.00
Department of Health,Guys and St Thomas NHS Foundation Trust,19/06/2020,(80205) Drug Costs,(id:42273) Haematology,HEALTHCARE AT HOME LTD,id:13101949 ,8350.00
Department of Health,Guys and St Thomas NHS Foundation Trust,19/06/2020,(80205) Drug Costs,(id:42273) Haematology,HEALTHCARE AT HOME LTD,id:13102123 ,    11750.00
Department of Health,Guys and St Thomas NHS Foundation Trust,19/06/2020,(80205) Drug Costs,(id:42273) Haematology,HEALTHCARE AT HOME LTD,id:13101985 ,    14405.00
Department of Health,Guys and St Thomas NHS Foundation Trust,19/06/2020,(80205) Drug Costs,(id:42273) Haematology,HEALTHCARE AT HOME LTD,id:13101945 ,    14525.00
Department of Health,Guys and St Thomas NHS Foundation Trust,19/06/2020,(80205) Drug Costs,(id:42273) Haematology,HEALTHCARE AT HOME LTD,id:13078188 ,    24275.00
Department of Health,Guys and St Thomas NHS Foundation Trust,12/06/2020,(80205) Drug Costs,(id:42273) Haematology,HEALTHCARE AT HOME LTD,id:13076974 ,6525.00
Department of Health,Guys and St Thomas NHS Foundation Trust,12/06/2020,(80205) Drug Costs,(id:42273) Haematology,HEALTHCARE AT HOME LTD,id:13077001 ,    37142.00
Department of Health,Guys and St Thomas NHS Foundation Trust,12/06/2020,(80205) Drug Costs,(id:42273) Haematology,SHIRE PHARMACEUTICALS LTD,id:13075538   ,1480.60
Department of Health,Guys and St Thomas NHS Foundation Trust,12/06/2020,(80205) Drug Costs,(id:42273) Haematology,HEALTHCARE AT HOME LTD,id:13078182 ,4125.00
Department of Health,Guys and St Thomas NHS Foundation Trust,12/06/2020,(80205) Drug Costs,(id:42273) Haematology,HEALTHCARE AT HOME LTD,id:13078179 ,4125.00
Department of Health,Guys and St Thomas NHS Foundation Trust,12/06/2020,(80205) Drug Costs,(id:42273) Haematology,HEALTHCARE AT HOME LTD,id:13077004 ,5125.00
Department of Health,Guys and St Thomas NHS Foundation Trust,12/06/2020,(80205) Drug Costs,(id:42273) Haematology,HEALTHCARE AT HOME LTD,id:13078198 ,5400.20
Department of Health,Guys and St Thomas NHS Foundation Trust,05/06/2020,(81100) Dressings,(id:42128) Haematology,NHS SUPPLY CHAIN (MAIDSTONE),id:12997767 , 123.60
Department of Health,Guys and St Thomas NHS Foundation Trust,12/06/2020,(54052) Technical Officers,(id:42128) Haematology,TOTAL ASSIST RECRUITMENT LTD,id:13082081  , 768.42
Department of Health,Guys and St Thomas NHS Foundation Trust,26/06/2020,(82600) Uniforms & Clothing,(id:42258) Oncology Services,1ST BIOTECH LIMITED,id:13086263    ,1009.86
Department of Health,Guys and St Thomas NHS Foundation Trust,05/06/2020,(83400) Office Equipment,(id:42258) Oncology Services,NHS SUPPLY CHAIN (MAIDSTONE),id:13025177   ,   3.48
Department of Health,Guys and St Thomas NHS Foundation Trust,23/06/2020,(52062) Radiographers,(id:42258) Oncology Services,PRICEWATERHOUSECOOPERS LLP,id:13110274   ,2530.72
Department of Health,Guys and St Thomas NHS Foundation Trust,30/06/2020,(52062) Radiographers,(id:42258) Oncology Services,PRICEWATERHOUSECOOPERS LLP,id:13130975   ,2530.72
Department of Health,Guys and St Thomas NHS Foundation Trust,19/06/2020,(83755) Rental under Operating Lease,(id:42258) Oncology Services,OXLEAS NHS FOUNDATION TRUST,id:13086423  ,    55033.50
Department of Health,Guys and St Thomas NHS Foundation Trust,05/06/2020,(81700) Lab Equipment Purchase,(id:42258) Oncology Services,NHS SUPPLY CHAIN (MAIDSTONE),id:13025177  ,  11.70
Department of Health,Guys and St Thomas NHS Foundation Trust,05/06/2020,(50200) Consultants,(id:42261) Oncology Services,KINGS COLLEGE LONDON:03529700,id:12782463  ,    23862.99
Department of Health,Guys and St Thomas NHS Foundation Trust,26/06/2020,(83410) Office Equipment,(id:42261) Oncology Services,RICOH UK LTD,id:13114895    , 681.45
Department of Health,Guys and St Thomas NHS Foundation Trust,12/06/2020,(84400) Transport,(id:42261) Oncology Services,CITYSPRINT (UK) LTD,id:13075514    ,2238.00
Department of Health,Guys and St Thomas NHS Foundation Trust,05/06/2020,(89595) Non-Healthcare from Foundation Trusts,(id:42261) Oncology Services,KING'S COLLEGE HOSPITAL NHS FOUNDATION TRUST,id:12974761 ,    94988.00
Department of Health,Guys and St Thomas NHS Foundation Trust,05/06/2020,(81200) Medical Surgical Supplies & Equipment,(id:42260) Oncology Services,NHS SUPPLY CHAIN (MAIDSTONE),id:12997767  ,4628.80
Department of Health,Guys and St Thomas NHS Foundation Trust,19/06/2020,(81200) Medical Surgical Supplies & Equipment,(id:42260) Oncology Services,ICU UK MEDICAL LTD,id:13096936  ,3456.00
Department of Health,Guys and St Thomas NHS Foundation Trust,05/06/2020,(81200) Medical Surgical Supplies & Equipment,(id:42260) Oncology Services,ROCIALLE MEDICAL LTD,id:12979537, 574.70
Department of Health,Guys and St Thomas NHS Foundation Trust,05/06/2020,(83400) Office Equipment,(id:42260) Oncology Services,NHS SUPPLY CHAIN (MAIDSTONE),id:13025177   , 621.03
Department of Health,Guys and St Thomas NHS Foundation Trust,05/06/2020,(83400) Office Equipment,(id:42260) Oncology Services,SQUADRON MEDICAL LTD,id:13029330 , 566.50
Department of Health,Guys and St Thomas NHS Foundation Trust,05/06/2020,(82700) Uniforms & Clothing,(id:42260) Oncology Services,NHS SUPPLY CHAIN (MAIDSTONE),id:12997767, 297.00
Department of Health,Guys and St Thomas NHS Foundation Trust,19/06/2020,(50552) Qualified Nursing Staff,(id:42259) Oncology Services,GLOBE LOCUMS LTD,id:13102926   , 327.67
Department of Health,Guys and St Thomas NHS Foundation Trust,05/06/2020,(83400) Office Equipment,(id:42259) Oncology Services,NHS SUPPLY CHAIN (MAIDSTONE),id:12997767   ,  84.35
Department of Health,Guys and St Thomas NHS Foundation Trust,05/06/2020,(50200) Consultants,(id:42280) Surgical Oncology,KINGS COLLEGE LONDON:03529700,id:12782463  ,    15005.21
Department of Health,Guys and St Thomas NHS Foundation Trust,05/06/2020,(50200) Consultants,(id:42280) Surgical Oncology,KINGS COLLEGE LONDON:03529700,id:12942797  ,    15255.32
Department of Health,Guys and St Thomas NHS Foundation Trust,19/06/2020,(81200) Medical Surgical Supplies & Equipment,(id:42280) Surgical Oncology,Q MEDICAL TECHNOLOGIES LTD,id:13090835    ,5070.00
Department of Health,Guys and St Thomas NHS Foundation Trust,12/06/2020,(81200) Medical Surgical Supplies & Equipment,(id:42280) Surgical Oncology,Q MEDICAL TECHNOLOGIES LTD,id:13080694    ,2550.00
Department of Health,Guys and St Thomas NHS Foundation Trust,12/06/2020,(81000) Surgical Appliances,(id:42280) Surgical Oncology,MEDI UK LTD,id:13075540  , 168.79
Department of Health,Guys and St Thomas NHS Foundation Trust,05/06/2020,(83400) Office Equipment,(id:243406) Surgical Oncology,NHS SUPPLY CHAIN (MAIDSTONE),id:13015166  ,  34.89
Department of Health,Guys and St Thomas NHS Foundation Trust,05/06/2020,(81255) Medical Surgical Supplies & Equipment,(id:243406) Surgical Oncology,NHS SUPPLY CHAIN (MAIDSTONE),id:12997767 ,  54.02
Department of Health,Guys and St Thomas NHS Foundation Trust,05/06/2020,(81255) Medical Surgical Supplies & Equipment,(id:243406) Surgical Oncology,NHS SUPPLY CHAIN (MAIDSTONE),id:13025177 ,   1.87
Department of Health,Guys and St Thomas NHS Foundation Trust,05/06/2020,(83400) Office Equipment,(id:42474) Surgical Oncology,NHS SUPPLY CHAIN (MAIDSTONE),id:13025177   ,  20.16
Department of Health,Guys and St Thomas NHS Foundation Trust,12/06/2020,(81100) Dressings,(id:42473) Surgical Oncology,JEWEL MANAGEMENT LTD T/A GENERAL MEDICAL,id:13082660   ,1301.94
Department of Health,Guys and St Thomas NHS Foundation Trust,12/06/2020,(81100) Dressings,(id:42473) Surgical Oncology,SQUADRON MEDICAL LTD,id:13058335   ,  69.83
Department of Health,Guys and St Thomas NHS Foundation Trust,26/06/2020,(81100) Dressings,(id:42473) Surgical Oncology,STRYKER UK LTD,id:13110996    , 899.95
Department of Health,Guys and St Thomas NHS Foundation Trust,19/06/2020,(81200) Medical Surgical Supplies & Equipment,(id:42473) Surgical Oncology,IDEAL MEDICAL SOLUTIONS LTD,id:13096574   , 447.00
Department of Health,Guys and St Thomas NHS Foundation Trust,19/06/2020,(81200) Medical Surgical Supplies & Equipment,(id:42473) Surgical Oncology,SQUADRON MEDICAL LTD,id:13072716, 568.07
Department of Health,Guys and St Thomas NHS Foundation Trust,05/06/2020,(81400) Medical Surgical Supplies & Equipment,(id:41946) Surgical Oncology,NHS SUPPLY CHAIN ( CAPITAL FUND ONLY),id:13056607   ,4533.46
Department of Health,Guys and St Thomas NHS Foundation Trust,16/06/2020,(54062) Technical Officers,(id:42475) Surgical Oncology,PRICEWATERHOUSECOOPERS LLP,id:13096994   ,1191.82
Department of Health,Guys and St Thomas NHS Foundation Trust,26/06/2020,(81225) Medical Surgical Supplies & Equipment,(id:42475) Surgical Oncology,COCHLEAR EUROPE LTD,id:13109614 ,5394.00
Department of Health,Guys and St Thomas NHS Foundation Trust,25/06/2020,(84600) Establishment,(id:42475) Surgical Oncology,CLARITY TRAVEL MANAGEMENT,id:13115075    , 512.02
Department of Health,Guys and St Thomas NHS Foundation Trust,19/06/2020,(81200) Medical Surgical Supplies & Equipment,(id:42286) Surgical Oncology,ARTHREX LTD,id:12982334    ,2793.74
Department of Health,Guys and St Thomas NHS Foundation Trust,05/06/2020,(81100) Dressings,(id:42284) Surgical Oncology,NHS SUPPLY CHAIN (MAIDSTONE),id:13025177, 166.03
Department of Health,Guys and St Thomas NHS Foundation Trust,05/06/2020,(81100) Dressings,(id:42284) Surgical Oncology,NHS SUPPLY CHAIN (MAIDSTONE),id:13015166, 169.43
Department of Health,Guys and St Thomas NHS Foundation Trust,05/06/2020,(83400) Office Equipment,(id:42284) Surgical Oncology,NHS SUPPLY CHAIN (MAIDSTONE),id:13025177   ,  33.19
Department of Health,Guys and St Thomas NHS Foundation Trust,05/06/2020,(83400) Office Equipment,(id:42284) Surgical Oncology,NHS SUPPLY CHAIN (MAIDSTONE),id:13015166   ,  14.28
Department of Health,Guys and St Thomas NHS Foundation Trust,05/06/2020,(81200) Medical Surgical Supplies & Equipment,(id:42470) Surgical Oncology,NHS SUPPLY CHAIN (MAIDSTONE),id:13015166  ,1868.88
Department of Health,Guys and St Thomas NHS Foundation Trust,05/06/2020,(81255) Medical Surgical Supplies & Equipment,(id:42470) Surgical Oncology,NHS SUPPLY CHAIN (MAIDSTONE),id:13015166  ,  22.08
Department of Health,Guys and St Thomas NHS Foundation Trust,19/06/2020,(50552) Qualified Nursing Staff,(id:2182419) Medicine,GLOBE LOCUMS LTD,id:13102925, 674.17
Department of Health,Guys and St Thomas NHS Foundation Trust,05/06/2020,(50552) Qualified Nursing Staff,(id:2182419) Medicine,CONTINENTAL NURSE LTD,id:13070419, 210.05
Department of Health,Guys and St Thomas NHS Foundation Trust,12/06/2020,(50552) Qualified Nursing Staff,(id:2182419) Medicine,CARE PROVIDERS HEALTHCARE,id:13082136 , 431.60
Department of Health,Guys and St Thomas NHS Foundation Trust,12/06/2020,(50552) Qualified Nursing Staff,(id:2182419) Medicine,GLOBE LOCUMS LTD,id:13082080, 265.84
Department of Health,Guys and St Thomas NHS Foundation Trust,26/06/2020,(50552) Qualified Nursing Staff,(id:2182419) Medicine,GLOBE LOCUMS LTD,id:13117663, 764.56
Department of Health,Guys and St Thomas NHS Foundation Trust,19/06/2020,(81100) Dressings,(id:2182419) Medicine,KCI MEDICAL LTD,id:13101938, 648.41
Department of Health,Guys and St Thomas NHS Foundation Trust,05/06/2020,(82000) Provisions & Kitchens,(id:41860) Medicine,NHS SUPPLY CHAIN (MAIDSTONE),id:13015166  , 209.75
Department of Health,Guys and St Thomas NHS Foundation Trust,05/06/2020,(50552) Qualified Nursing Staff,(id:41860) Medicine,CONTINENTAL NURSE LTD,id:13070331  ,1482.05
Department of Health,Guys and St Thomas NHS Foundation Trust,05/06/2020,(82700) Uniforms & Clothing,(id:41859) Medicine,NHS SUPPLY CHAIN (MAIDSTONE),id:13025177    ,  31.68
Department of Health,Guys and St Thomas NHS Foundation Trust,05/06/2020,(81100) Dressings,(id:41859) Medicine,NHS SUPPLY CHAIN (MAIDSTONE),id:12997767    ,  64.48
Department of Health,Guys and St Thomas NHS Foundation Trust,19/06/2020,(50552) Qualified Nursing Staff,(id:41859) Medicine,MSI GROUP LTD,id:13102786, 353.71
Department of Health,Guys and St Thomas NHS Foundation Trust,26/06/2020,(50552) Qualified Nursing Staff,(id:41859) Medicine,PULSE HEALTHCARE LIMITED,id:13117736    ,1219.00
Department of Health,Guys and St Thomas NHS Foundation Trust,05/06/2020,(81255) Medical Surgical Supplies & Equipment,(id:41859) Medicine,NHS SUPPLY CHAIN (MAIDSTONE),id:13025177 ,   4.06
Department of Health,Guys and St Thomas NHS Foundation Trust,05/06/2020,(81225) Medical Surgical Supplies & Equipment,(id:41859) Medicine,NHS SUPPLY CHAIN (MAIDSTONE),id:13015166 ,  21.72
Department of Health,Guys and St Thomas NHS Foundation Trust,05/06/2020,(82000) Provisions & Kitchens,(id:41858) Medicine,NHS SUPPLY CHAIN (MAIDSTONE),id:13025177  , 140.09
Department of Health,Guys and St Thomas NHS Foundation Trust,05/06/2020,(82800) Bedding & Linen,(id:41858) Medicine,NHS SUPPLY CHAIN (MAIDSTONE),id:12997767   , 270.56
Department of Health,Guys and St Thomas NHS Foundation Trust,05/06/2020,(81255) Medical Surgical Supplies & Equipment,(id:41858) Medicine,NHS SUPPLY CHAIN (MAIDSTONE),id:12997767 ,   2.81
Department of Health,Guys and St Thomas NHS Foundation Trust,05/06/2020,(81255) Medical Surgical Supplies & Equipment,(id:41858) Medicine,NHS SUPPLY CHAIN (MAIDSTONE),id:13015166 ,   1.56
Department of Health,Guys and St Thomas NHS Foundation Trust,12/06/2020,(83765) Rent,(id:41858) Medicine,LAZERBEAM FIRE AND SECURITY LTD,id:13073964 ,3325.00
Department of Health,Guys and St Thomas NHS Foundation Trust,05/06/2020,(81225) Medical Surgical Supplies & Equipment,(id:41858) Medicine,NHS SUPPLY CHAIN (MAIDSTONE),id:13025177 ,   7.80
Department of Health,Guys and St Thomas NHS Foundation Trust,05/06/2020,(81225) Medical Surgical Supplies & Equipment,(id:860419) Medicine,NHS SUPPLY CHAIN (MAIDSTONE),id:13015166,1025.77
Department of Health,Guys and St Thomas NHS Foundation Trust,19/06/2020,(81000) Surgical Appliances,(id:41872) Medicine,TALAR MADE ORTHOTICS LTD,id:13101899   , 228.00
Department of Health,Guys and St Thomas NHS Foundation Trust,05/06/2020,(82600) Uniforms & Clothing,(id:41869) Medicine,NHS SUPPLY CHAIN (MAIDSTONE),id:13025177    ,  10.22
Department of Health,Guys and St Thomas NHS Foundation Trust,26/06/2020,(83400) Office Equipment,(id:41869) Medicine,SQUADRON MEDICAL LTD,id:13084119, 229.30
Department of Health,Guys and St Thomas NHS Foundation Trust,26/06/2020,(83400) Office Equipment,(id:41869) Medicine,SQUADRON MEDICAL LTD,id:13092415, 310.22
Department of Health,Guys and St Thomas NHS Foundation Trust,05/06/2020,(82800) Bedding & Linen,(id:41869) Medicine,NHS SUPPLY CHAIN (MAIDSTONE),id:13025177   , 445.92
Department of Health,Guys and St Thomas NHS Foundation Trust,05/06/2020,(82800) Bedding & Linen,(id:41869) Medicine,NHS SUPPLY CHAIN (MAIDSTONE),id:13015166   ,1471.92
Department of Health,Guys and St Thomas NHS Foundation Trust,12/06/2020,(81200) Medical Surgical Supplies & Equipment,(id:41869) Medicine,SQUADRON MEDICAL LTD,id:13066726    , 834.20
Department of Health,Guys and St Thomas NHS Foundation Trust,26/06/2020,(81200) Medical Surgical Supplies & Equipment,(id:41869) Medicine,SQUADRON MEDICAL LTD,id:13120365    , 520.02
Department of Health,Guys and St Thomas NHS Foundation Trust,26/06/2020,(81200) Medical Surgical Supplies & Equipment,(id:41869) Medicine,SQUADRON MEDICAL LTD,id:13120488    ,1995.00
Department of Health,Guys and St Thomas NHS Foundation Trust,26/06/2020,(81200) Medical Surgical Supplies & Equipment,(id:41869) Medicine,SQUADRON MEDICAL LTD,id:13092582    , 644.63
Department of Health,Guys and St Thomas NHS Foundation Trust,05/06/2020,(81100) Dressings,(id:41869) Medicine,NHS SUPPLY CHAIN (MAIDSTONE),id:13015166    ,  47.03
Department of Health,Guys and St Thomas NHS Foundation Trust,19/06/2020,(81400) Medical Surgical Supplies & Equipment,(id:41869) Medicine,NHS SUPPLY CHAIN ( CAPITAL FUND ONLY),id:13091440  ,1433.00
Department of Health,Guys and St Thomas NHS Foundation Trust,05/06/2020,(82800) Bedding & Linen,(id:41868) Medicine,NHS SUPPLY CHAIN (MAIDSTONE),id:12997767   , 200.76
Department of Health,Guys and St Thomas NHS Foundation Trust,05/06/2020,(81200) Medical Surgical Supplies & Equipment,(id:41868) Medicine,NHS SUPPLY CHAIN (MAIDSTONE),id:13025177 , 513.23
Department of Health,Guys and St Thomas NHS Foundation Trust,05/06/2020,(81200) Medical Surgical Supplies & Equipment,(id:41868) Medicine,NHS SUPPLY CHAIN (MAIDSTONE),id:12997767 , 429.35
Department of Health,Guys and St Thomas NHS Foundation Trust,05/06/2020,(81200) Medical Surgical Supplies & Equipment,(id:41868) Medicine,NHS SUPPLY CHAIN (MAIDSTONE),id:13015166 ,   5.62
Department of Health,Guys and St Thomas NHS Foundation Trust,05/06/2020,(82000) Provisions & Kitchens,(id:41868) Medicine,NHS SUPPLY CHAIN (MAIDSTONE),id:13015166  ,  23.75
Department of Health,Guys and St Thomas NHS Foundation Trust,05/06/2020,(81700) Lab Equipment Purchase,(id:41868) Medicine,NHS SUPPLY CHAIN (MAIDSTONE),id:12997767 ,  12.39
Department of Health,Guys and St Thomas NHS Foundation Trust,05/06/2020,(82700) Uniforms & Clothing,(id:41880) Medicine,NHS SUPPLY CHAIN (MAIDSTONE),id:12997767    ,  10.56
Department of Health,Guys and St Thomas NHS Foundation Trust,05/06/2020,(82000) Provisions & Kitchens,(id:41880) Medicine,NHS SUPPLY CHAIN (MAIDSTONE),id:13015166  , 295.04
Department of Health,Guys and St Thomas NHS Foundation Trust,05/06/2020,(81100) Dressings,(id:41880) Medicine,NHS SUPPLY CHAIN (MAIDSTONE),id:13025177    , 194.52
Department of Health,Guys and St Thomas NHS Foundation Trust,26/06/2020,(50522) Unqualified Nursing Staff,(id:41880) Medicine,MSI GROUP LTD,id:13117623   , 235.04
Department of Health,Guys and St Thomas NHS Foundation Trust,05/06/2020,(83400) Office Equipment,(id:41879) Medicine,NHS SUPPLY CHAIN (MAIDSTONE),id:12997767  , 141.49
Department of Health,Guys and St Thomas NHS Foundation Trust,05/06/2020,(81100) Dressings,(id:41879) Medicine,NHS SUPPLY CHAIN (MAIDSTONE),id:13015166    , 225.58
Department of Health,Guys and St Thomas NHS Foundation Trust,26/06/2020,(50522) Unqualified Nursing Staff,(id:41879) Medicine,GENEVA HEALTH INTERNATIONAL LIMITED,id:13117682 ,  55.94
Department of Health,Guys and St Thomas NHS Foundation Trust,05/06/2020,(81255) Medical Surgical Supplies & Equipment,(id:41879) Medicine,NHS SUPPLY CHAIN (MAIDSTONE),id:12997767 ,    .62
Department of Health,Guys and St Thomas NHS Foundation Trust,05/06/2020,(83400) Office Equipment,(id:41878) Medicine,NHS SUPPLY CHAIN (MAIDSTONE),id:13025177  ,  82.89
Department of Health,Guys and St Thomas NHS Foundation Trust,05/06/2020,(81100) Dressings,(id:41878) Medicine,NHS SUPPLY CHAIN (MAIDSTONE),id:13015166    , 127.67
Department of Health,Guys and St Thomas NHS Foundation Trust,12/06/2020,(50522) Unqualified Nursing Staff,(id:41878) Medicine,MSI GROUP LTD,id:13082078   , 259.74
Department of Health,Guys and St Thomas NHS Foundation Trust,05/06/2020,(81700) Lab Equipment Purchase,(id:41878) Medicine,NHS SUPPLY CHAIN (MAIDSTONE),id:13015166 ,   6.36
Department of Health,Guys and St Thomas NHS Foundation Trust,05/06/2020,(81275) Medical Surgical Supplies & Equipment,(id:41878) Medicine,NHS SUPPLY CHAIN (MAIDSTONE),id:12997767 ,  14.14
Department of Health,Guys and St Thomas NHS Foundation Trust,05/06/2020,(81255) Medical Surgical Supplies & Equipment,(id:41878) Medicine,NHS SUPPLY CHAIN (MAIDSTONE),id:13025177 ,   6.24
Department of Health,Guys and St Thomas NHS Foundation Trust,05/06/2020,(83400) Office Equipment,(id:41881) Medicine,NHS SUPPLY CHAIN (MAIDSTONE),id:13015166  , 137.31
Department of Health,Guys and St Thomas NHS Foundation Trust,05/06/2020,(81100) Dressings,(id:41881) Medicine,NHS SUPPLY CHAIN (MAIDSTONE),id:13025177    , 111.55
Department of Health,Guys and St Thomas NHS Foundation Trust,26/06/2020,(50552) Qualified Nursing Staff,(id:41881) Medicine,GLOBE LOCUMS LTD,id:13117701  , 302.33
Department of Health,Guys and St Thomas NHS Foundation Trust,05/06/2020,(50552) Qualified Nursing Staff,(id:41881) Medicine,GLOBE LOCUMS LTD,id:13070366  ,1173.00
Department of Health,Guys and St Thomas NHS Foundation Trust,05/06/2020,(50552) Qualified Nursing Staff,(id:41881) Medicine,PULSE HEALTHCARE LIMITED,id:13070471    ,1074.13
Department of Health,Guys and St Thomas NHS Foundation Trust,12/06/2020,(50522) Unqualified Nursing Staff,(id:41881) Medicine,MSI GROUP LTD,id:13082093   , 201.61
Department of Health,Guys and St Thomas NHS Foundation Trust,26/06/2020,(81200) Medical Surgical Supplies & Equipment,(id:41881) Medicine,KAPITEX HEALTHCARE LTD,id:13107417  , 678.14
Department of Health,Guys and St Thomas NHS Foundation Trust,05/06/2020,(81225) Medical Surgical Supplies & Equipment,(id:41881) Medicine,NHS SUPPLY CHAIN (MAIDSTONE),id:13025177 ,  32.10
Department of Health,Guys and St Thomas NHS Foundation Trust,05/06/2020,(81275) Medical Surgical Supplies & Equipment,(id:41881) Medicine,NHS SUPPLY CHAIN (MAIDSTONE),id:12997767 ,  56.54
Department of Health,Guys and St Thomas NHS Foundation Trust,05/06/2020,(81700) Lab Equipment Purchase,(id:41881) Medicine,NHS SUPPLY CHAIN (MAIDSTONE),id:12997767 ,  18.14
Department of Health,Guys and St Thomas NHS Foundation Trust,22/06/2020,(89200) Other - Patient travel,(id:41969) Medicine,MEDICAL REPATRIATIONS,id:13099536   ,    17994.00
Department of Health,Guys and St Thomas NHS Foundation Trust,05/06/2020,(81100) Dressings,(id:42232) Integrated Therapies and Rehabilitation,NHS SUPPLY CHAIN (MAIDSTONE),id:13015166   ,  79.20
Department of Health,Guys and St Thomas NHS Foundation Trust,12/06/2020,(81000) Surgical Appliances,(id:42232) Integrated Therapies and Rehabilitation,DJO UK LTD,id:13080334 , 750.00
Department of Health,Guys and St Thomas NHS Foundation Trust,26/06/2020,(81200) Medical Surgical Supplies & Equipment,(id:4631419) Integrated Therapies and Rehabilitation,INVACARE LTD,id:13082517    ,2716.80
Department of Health,Guys and St Thomas NHS Foundation Trust,05/06/2020,(81225) Medical Surgical Supplies & Equipment,(id:42239) Integrated Therapies and Rehabilitation,PERFORMANCE HEALTH INTERNATIONAL LTD (PATTERSON),id:12918074, 158.33
Department of Health,Guys and St Thomas NHS Foundation Trust,19/06/2020,(81225) Medical Surgical Supplies & Equipment,(id:42239) Integrated Therapies and Rehabilitation,PROMEDICS ORTHOPAEDICS LTD,id:13097354  ,1598.27
Department of Health,Guys and St Thomas NHS Foundation Trust,12/06/2020,(82600) Uniforms & Clothing,(id:590530) Integrated Therapies and Rehabilitation,DISPOSABLE MEDICAL INSTRUMENTS LTD,id:13080534 , 738.00
Department of Health,Guys and St Thomas NHS Foundation Trust,05/06/2020,(81200) Medical Surgical Supplies & Equipment,(id:590490) Integrated Therapies and Rehabilitation,NHS SUPPLY CHAIN (MAIDSTONE),id:13015166    ,  13.68
Department of Health,Guys and St Thomas NHS Foundation Trust,12/06/2020,(82600) Uniforms & Clothing,(id:590490) Integrated Therapies and Rehabilitation,DISPOSABLE MEDICAL INSTRUMENTS LTD,id:13080554 , 720.00
Department of Health,Guys and St Thomas NHS Foundation Trust,16/06/2020,(53072) Speech Therapists,(id:42248) Integrated Therapies and Rehabilitation,PRICEWATERHOUSECOOPERS LLP,id:13096994  ,2808.65
Department of Health,Guys and St Thomas NHS Foundation Trust,16/06/2020,(53062) Speech Therapists,(id:42248) Integrated Therapies and Rehabilitation,PRICEWATERHOUSECOOPERS LLP,id:13096634  ,1191.82
Department of Health,Guys and St Thomas NHS Foundation Trust,05/06/2020,(83610) IT Costs,(id:590500) Integrated Therapies and Rehabilitation,CBC COMPUTER SYSTEMS LTD,id:13061338  , 898.80
Department of Health,Guys and St Thomas NHS Foundation Trust,19/06/2020,(55052) Admin & Clerical,(id:590500) Integrated Therapies and Rehabilitation,PARITY PROFESSIONALS LIMITED,id:13102701, 616.62
Department of Health,Guys and St Thomas NHS Foundation Trust,12/06/2020,(81200) Medical Surgical Supplies & Equipment,(id:590499) Integrated Therapies and Rehabilitation,GBL WHEELCHAIR SERVICES LTD,id:13053624,1170.63
Department of Health,Guys and St Thomas NHS Foundation Trust,12/06/2020,(81200) Medical Surgical Supplies & Equipment,(id:590499) Integrated Therapies and Rehabilitation,ROYAL HOSPITAL FOR NEURO-DISABILITY,id:13055854  ,2081.40
Department of Health,Guys and St Thomas NHS Foundation Trust,12/06/2020,(81225) Medical Surgical Supplies & Equipment,(id:590499) Integrated Therapies and Rehabilitation,SUNRISE MEDICAL LIMITED,id:13055794    ,1398.00
Department of Health,Guys and St Thomas NHS Foundation Trust,19/06/2020,(81000) Surgical Appliances,(id:590498) Integrated Therapies and Rehabilitation,MEDI UK LTD,id:13089334    , 808.27
Department of Health,Guys and St Thomas NHS Foundation Trust,19/06/2020,(81000) Surgical Appliances,(id:590498) Integrated Therapies and Rehabilitation,ANATOMICAL CONCEPTS (UK) LTD,id:13089294  ,6496.14
Department of Health,Guys and St Thomas NHS Foundation Trust,05/06/2020,(81200) Medical Surgical Supplies & Equipment,(id:1042419) Integrated Therapies and Rehabilitation,NHS SUPPLY CHAIN (MAIDSTONE),id:12997767   ,1574.78
Department of Health,Guys and St Thomas NHS Foundation Trust,05/06/2020,(83400) Office Equipment,(id:1042419) Integrated Therapies and Rehabilitation,NHS SUPPLY CHAIN (MAIDSTONE),id:13025177    ,  12.80
Department of Health,Guys and St Thomas NHS Foundation Trust,05/06/2020,(82800) Bedding & Linen,(id:590592) Integrated Local Services,NHS SUPPLY CHAIN (MAIDSTONE),id:13025177,  62.21
Department of Health,Guys and St Thomas NHS Foundation Trust,05/06/2020,(83400) Office Equipment,(id:590469) Integrated Local Services,NHS SUPPLY CHAIN (MAIDSTONE),id:13025177    ,  68.82
Department of Health,Guys and St Thomas NHS Foundation Trust,05/06/2020,(83400) Office Equipment,(id:590466) Integrated Local Services,NHS SUPPLY CHAIN (MAIDSTONE),id:13015166    ,  12.12
Department of Health,Guys and St Thomas NHS Foundation Trust,26/06/2020,(84656) Establishment,(id:590570) Integrated Local Services,LANGUAGE LINE LTD,id:13016074   ,4247.34
Department of Health,Guys and St Thomas NHS Foundation Trust,05/06/2020,(84656) Establishment,(id:590570) Integrated Local Services,LANGUAGE LINE LTD,id:12889365   ,3296.13
Department of Health,Guys and St Thomas NHS Foundation Trust,05/06/2020,(83400) Office Equipment,(id:590425) Integrated Local Services,NHS SUPPLY CHAIN (MAIDSTONE),id:13015166    ,   9.96
Department of Health,Guys and St Thomas NHS Foundation Trust,12/06/2020,(86300) Healthcare from non-NHS bodies,(id:590579) Integrated Local Services,MONTE FIELDS,id:13066995 , 680.00
Department of Health,Guys and St Thomas NHS Foundation Trust,05/06/2020,(86300) Healthcare from non-NHS bodies,(id:590579) Integrated Local Services,LORDSHIP LANE SURGERY,id:13058599  , 765.00
Department of Health,Guys and St Thomas NHS Foundation Trust,05/06/2020,(81100) Dressings,(id:590579) Integrated Local Services,NHS SUPPLY CHAIN (MAIDSTONE),id:13025177 ,  32.82
Department of Health,Guys and St Thomas NHS Foundation Trust,12/06/2020,(50562) Qualified Nursing Staff,(id:590563) Integrated Local Services,NURSING 2000 LTD,id:13082149    ,1002.60
Department of Health,Guys and St Thomas NHS Foundation Trust,16/06/2020,(53072) Speech Therapists,(id:590495) Integrated Local Services,PRICEWATERHOUSECOOPERS LLP,id:13096634,1127.97
Department of Health,Guys and St Thomas NHS Foundation Trust,30/06/2020,(53072) Speech Therapists,(id:590495) Integrated Local Services,PRICEWATERHOUSECOOPERS LLP,id:13130975,1415.96
Department of Health,Guys and St Thomas NHS Foundation Trust,16/06/2020,(51862) Physiotherapists,(id:1885424) Integrated Local Services,PRICEWATERHOUSECOOPERS LLP,id:13096794,3777.87
Department of Health,Guys and St Thomas NHS Foundation Trust,30/06/2020,(51462) Occupational Therapists,(id:1371419) Integrated Local Services,PRICEWATERHOUSECOOPERS LLP,id:13130975   ,1023.54
Department of Health,Guys and St Thomas NHS Foundation Trust,16/06/2020,(51462) Occupational Therapists,(id:699422) Integrated Local Services,PRICEWATERHOUSECOOPERS LLP,id:13096634    ,1967.86
Department of Health,Guys and St Thomas NHS Foundation Trust,19/06/2020,(50562) Qualified Nursing Staff,(id:699422) Integrated Local Services,MSI GROUP LTD,id:13102707  ,1471.56
Department of Health,Guys and St Thomas NHS Foundation Trust,19/06/2020,(50562) Qualified Nursing Staff,(id:699422) Integrated Local Services,CARE PROVIDERS HEALTHCARE,id:13102670,1597.47
Department of Health,Guys and St Thomas NHS Foundation Trust,16/06/2020,(51832) Physiotherapists,(id:699422) Integrated Local Services,PRICEWATERHOUSECOOPERS LLP,id:13096634 , 567.25
Department of Health,Guys and St Thomas NHS Foundation Trust,19/06/2020,(51832) Physiotherapists,(id:699422) Integrated Local Services,PSL RECRUITMENT SERVICES LTD,id:13102677    , 937.72
Department of Health,Guys and St Thomas NHS Foundation Trust,16/06/2020,(51872) Physiotherapists,(id:699422) Integrated Local Services,PRICEWATERHOUSECOOPERS LLP,id:13096994 ,1176.95
Department of Health,Guys and St Thomas NHS Foundation Trust,30/06/2020,(51472) Occupational Therapists,(id:699422) Integrated Local Services,PRICEWATERHOUSECOOPERS LLP,id:13130975    ,1149.09
Department of Health,Guys and St Thomas NHS Foundation Trust,16/06/2020,(51862) Physiotherapists,(id:590492) Integrated Local Services,PRICEWATERHOUSECOOPERS LLP,id:13096634 ,3063.46
Department of Health,Guys and St Thomas NHS Foundation Trust,16/06/2020,(51862) Physiotherapists,(id:1888419) Integrated Local Services,PRICEWATERHOUSECOOPERS LLP,id:13096994,1255.24
Department of Health,Guys and St Thomas NHS Foundation Trust,16/06/2020,(51862) Physiotherapists,(id:684419) Integrated Local Services,PRICEWATERHOUSECOOPERS LLP,id:13096994 ,2339.68
Department of Health,Guys and St Thomas NHS Foundation Trust,05/06/2020,(51842) Physiotherapists,(id:590503) Integrated Local Services,GLOBE LOCUMS LTD,id:13070283 , 939.60
Department of Health,Guys and St Thomas NHS Foundation Trust,12/06/2020,(51842) Physiotherapists,(id:590503) Integrated Local Services,PSL RECRUITMENT SERVICES LTD,id:13086239    , 740.52
Department of Health,Guys and St Thomas NHS Foundation Trust,05/06/2020,(81100) Dressings,(id:590522) Integrated Local Services,NHS SUPPLY CHAIN (MAIDSTONE),id:12997767 ,  74.76
Department of Health,Guys and St Thomas NHS Foundation Trust,12/06/2020,(50552) Qualified Nursing Staff,(id:590522) Integrated Local Services,NURSING 2000 LTD,id:13082015    ,1506.50
Department of Health,Guys and St Thomas NHS Foundation Trust,05/06/2020,(81700) Lab Equipment Purchase,(id:590521) Integrated Local Services,NHS SUPPLY CHAIN (MAIDSTONE),id:12997767   , 130.43
Department of Health,Guys and St Thomas NHS Foundation Trust,05/06/2020,(81100) Dressings,(id:590521) Integrated Local Services,NHS SUPPLY CHAIN (MAIDSTONE),id:13015166 , 215.82
Department of Health,Guys and St Thomas NHS Foundation Trust,05/06/2020,(50552) Qualified Nursing Staff,(id:590521) Integrated Local Services,NURSING 2000 LTD,id:13071543    ,1040.81
Department of Health,Guys and St Thomas NHS Foundation Trust,12/06/2020,(50552) Qualified Nursing Staff,(id:590521) Integrated Local Services,NURSING 2000 LTD,id:13082124    , 653.51
Department of Health,Guys and St Thomas NHS Foundation Trust,12/06/2020,(50552) Qualified Nursing Staff,(id:590521) Integrated Local Services,NURSING 2000 LTD,id:13086251    , 643.29
Department of Health,Guys and St Thomas NHS Foundation Trust,12/06/2020,(50552) Qualified Nursing Staff,(id:590521) Integrated Local Services,NURSING 2000 LTD,id:13082118    ,1329.16
Department of Health,Guys and St Thomas NHS Foundation Trust,26/06/2020,(50552) Qualified Nursing Staff,(id:590521) Integrated Local Services,NURSING 2000 LTD,id:13117671    , 820.91
Department of Health,Guys and St Thomas NHS Foundation Trust,05/06/2020,(81230) Medical Surgical Supplies & Equipment,(id:590473) Integrated Local Services,NHS SUPPLY CHAIN (MAIDSTONE),id:13015166   , 126.90
Department of Health,Guys and St Thomas NHS Foundation Trust,26/06/2020,(50552) Qualified Nursing Staff,(id:590471) Integrated Local Services,NURSING 2000 LTD,id:13117525    ,1078.52
Department of Health,Guys and St Thomas NHS Foundation Trust,05/06/2020,(81700) Lab Equipment Purchase,(id:590470) Integrated Local Services,NHS SUPPLY CHAIN (MAIDSTONE),id:13015166   ,  19.40
Department of Health,Guys and St Thomas NHS Foundation Trust,05/06/2020,(81100) Dressings,(id:590470) Integrated Local Services,NHS SUPPLY CHAIN (MAIDSTONE),id:13015166 ,   1.63
Department of Health,Guys and St Thomas NHS Foundation Trust,19/06/2020,(81200) Medical Surgical Supplies & Equipment,(id:590481) Integrated Local Services,NHS SUPPLY CHAIN (MAIDSTONE),id:13049101   , 574.38
Department of Health,Guys and St Thomas NHS Foundation Trust,19/06/2020,(81200) Medical Surgical Supplies & Equipment,(id:590481) Integrated Local Services,NHS SUPPLY CHAIN (MAIDSTONE),id:13049111   ,4012.42
Department of Health,Guys and St Thomas NHS Foundation Trust,19/06/2020,(81200) Medical Surgical Supplies & Equipment,(id:590481) Integrated Local Services,NHS SUPPLY CHAIN (MAIDSTONE),id:13049103   ,4351.82
Department of Health,Guys and St Thomas NHS Foundation Trust,05/06/2020,(83400) Office Equipment,(id:590463) Integrated Local Services,NHS SUPPLY CHAIN (MAIDSTONE),id:13015166    ,  44.98
Department of Health,Guys and St Thomas NHS Foundation Trust,05/06/2020,(82800) Bedding & Linen,(id:590527) Integrated Local Services,NHS SUPPLY CHAIN (MAIDSTONE),id:12997767,  92.54
Department of Health,Guys and St Thomas NHS Foundation Trust,05/06/2020,(83400) Office Equipment,(id:590527) Integrated Local Services,NHS SUPPLY CHAIN (MAIDSTONE),id:13025177    ,  50.04
Department of Health,Guys and St Thomas NHS Foundation Trust,05/06/2020,(81100) Dressings,(id:590527) Integrated Local Services,NHS SUPPLY CHAIN (MAIDSTONE),id:12997767 , 171.99
Department of Health,Guys and St Thomas NHS Foundation Trust,05/06/2020,(82000) Provisions & Kitchens,(id:590526) Integrated Local Services,NHS SUPPLY CHAIN (MAIDSTONE),id:13015166    ,  94.99
Department of Health,Guys and St Thomas NHS Foundation Trust,05/06/2020,(86300) Healthcare from non-NHS bodies,(id:590526) Integrated Local Services,HETHERINGTON GROUP PRACTICE,id:13069676 ,2604.00
Department of Health,Guys and St Thomas NHS Foundation Trust,05/06/2020,(81100) Dressings,(id:903421) Integrated Local Services,NHS SUPPLY CHAIN (MAIDSTONE),id:13015166 ,  67.30
Department of Health,Guys and St Thomas NHS Foundation Trust,05/06/2020,(81700) Lab Equipment Purchase,(id:903421) Integrated Local Services,NHS SUPPLY CHAIN (MAIDSTONE),id:13025177   ,  40.38
Department of Health,Guys and St Thomas NHS Foundation Trust,19/06/2020,(89270) Establishment,(id:903421) Integrated Local Services,SELDOC LTD,id:13090094,    23962.00
Department of Health,Guys and St Thomas NHS Foundation Trust,19/06/2020,(89270) Establishment,(id:903421) Integrated Local Services,SELDOC LTD,id:13090014,   104266.77
Department of Health,Guys and St Thomas NHS Foundation Trust,05/06/2020,(89270) Establishment,(id:903421) Integrated Local Services,SELDOC LTD,id:13021870,   104266.77
Department of Health,Guys and St Thomas NHS Foundation Trust,05/06/2020,(50204) Consultants,(id:903421) Integrated Local Services,KING'S COLLEGE HOSPITAL NHS FOUNDATION TRUST,id:12918484   ,3965.28
Department of Health,Guys and St Thomas NHS Foundation Trust,16/06/2020,(51872) Physiotherapists,(id:903421) Integrated Local Services,PRICEWATERHOUSECOOPERS LLP,id:13096994 , 901.05
Department of Health,Guys and St Thomas NHS Foundation Trust,12/06/2020,(83350) Premises Services,(id:42518) Evelina Womens Services,LAZERBEAM FIRE AND SECURITY LTD,id:13073955   , 972.00
Department of Health,Guys and St Thomas NHS Foundation Trust,05/06/2020,(81400) Medical Surgical Supplies & Equipment,(id:42517) Evelina Womens Services,GAS ALARM SYSTEMS LTD,id:13069205   , 463.00
Department of Health,Guys and St Thomas NHS Foundation Trust,19/06/2020,(81200) Medical Surgical Supplies & Equipment,(id:42517) Evelina Womens Services,ORIGIO LTD DELTA PARK,id:13086922   ,3018.88
Department of Health,Guys and St Thomas NHS Foundation Trust,05/06/2020,(81700) Lab Equipment Purchase,(id:42517) Evelina Womens Services,MITRONE HEALTHCARE LTD,id:12979990  ,    13440.00
Department of Health,Guys and St Thomas NHS Foundation Trust,05/06/2020,(81700) Lab Equipment Purchase,(id:42517) Evelina Womens Services,THERMO FISHER SCIENTIFIC,id:12969776, 915.10
Department of Health,Guys and St Thomas NHS Foundation Trust,05/06/2020,(82800) Bedding & Linen,(id:42510) Evelina Womens Services,NHS SUPPLY CHAIN (MAIDSTONE),id:13015166   ,  20.09
Department of Health,Guys and St Thomas NHS Foundation Trust,05/06/2020,(81200) Medical Surgical Supplies & Equipment,(id:42510) Evelina Womens Services,NHS SUPPLY CHAIN (MAIDSTONE),id:13025177 ,  62.65
Department of Health,Guys and St Thomas NHS Foundation Trust,05/06/2020,(81200) Medical Surgical Supplies & Equipment,(id:42510) Evelina Womens Services,NHS SUPPLY CHAIN (MAIDSTONE),id:13015166 ,   8.86
Department of Health,Guys and St Thomas NHS Foundation Trust,05/06/2020,(81700) Lab Equipment Purchase,(id:42510) Evelina Womens Services,NHS SUPPLY CHAIN (MAIDSTONE),id:12997767 ,  22.06
Department of Health,Guys and St Thomas NHS Foundation Trust,05/06/2020,(81700) Lab Equipment Purchase,(id:42510) Evelina Womens Services,NHS SUPPLY CHAIN (MAIDSTONE),id:13015166 ,  26.09
Department of Health,Guys and St Thomas NHS Foundation Trust,19/06/2020,(81400) Medical Surgical Supplies & Equipment,(id:42509) Evelina Womens Services,NHS SUPPLY CHAIN ( CAPITAL FUND ONLY),id:13012196  ,1270.15
Department of Health,Guys and St Thomas NHS Foundation Trust,26/06/2020,(81200) Medical Surgical Supplies & Equipment,(id:42509) Evelina Womens Services,STRYKER UK LTD,id:13111075,1699.20
Department of Health,Guys and St Thomas NHS Foundation Trust,05/06/2020,(81100) Dressings,(id:42508) Evelina Womens Services,NHS SUPPLY CHAIN (MAIDSTONE),id:13025177    ,  17.30
Department of Health,Guys and St Thomas NHS Foundation Trust,05/06/2020,(81200) Medical Surgical Supplies & Equipment,(id:42506) Evelina Womens Services,NHS SUPPLY CHAIN (MAIDSTONE),id:13025177 ,1033.22
Department of Health,Guys and St Thomas NHS Foundation Trust,05/06/2020,(83400) Office Equipment,(id:42486) Evelina Womens Services,NHS SUPPLY CHAIN (MAIDSTONE),id:13025177  ,  10.60
Department of Health,Guys and St Thomas NHS Foundation Trust,05/06/2020,(81550) X Ray Equipment Purchase,(id:42486) Evelina Womens Services,NHS SUPPLY CHAIN (MAIDSTONE),id:12997767    ,  66.00
Department of Health,Guys and St Thomas NHS Foundation Trust,05/06/2020,(81700) Lab Equipment Purchase,(id:42488) Evelina Womens Services,NHS SUPPLY CHAIN (MAIDSTONE),id:12997767 ,  35.24
Department of Health,Guys and St Thomas NHS Foundation Trust,05/06/2020,(81200) Medical Surgical Supplies & Equipment,(id:42488) Evelina Womens Services,WELCH ALLYN UK LTD,id:13057431 , 528.77
Department of Health,Guys and St Thomas NHS Foundation Trust,05/06/2020,(81275) Medical Surgical Supplies & Equipment,(id:42496) Evelina Womens Services,NHS SUPPLY CHAIN (MAIDSTONE),id:12997767 ,   5.93
Department of Health,Guys and St Thomas NHS Foundation Trust,05/06/2020,(81200) Medical Surgical Supplies & Equipment,(id:42496) Evelina Womens Services,NHS SUPPLY CHAIN (MAIDSTONE),id:13015166 , 134.16
Department of Health,Guys and St Thomas NHS Foundation Trust,05/06/2020,(81200) Medical Surgical Supplies & Equipment,(id:42496) Evelina Womens Services,NHS SUPPLY CHAIN (MAIDSTONE),id:12997767 ,  19.09
Department of Health,Guys and St Thomas NHS Foundation Trust,05/06/2020,(81700) Lab Equipment Purchase,(id:42496) Evelina Womens Services,NHS SUPPLY CHAIN (MAIDSTONE),id:13025177 ,  42.22
Department of Health,Guys and St Thomas NHS Foundation Trust,05/06/2020,(82000) Provisions & Kitchens,(id:42493) Evelina Womens Services,NHS SUPPLY CHAIN (MAIDSTONE),id:13015166  ,  35.19
Department of Health,Guys and St Thomas NHS Foundation Trust,05/06/2020,(83400) Office Equipment,(id:42493) Evelina Womens Services,NHS SUPPLY CHAIN (MAIDSTONE),id:12997767  ,  41.28
Department of Health,Guys and St Thomas NHS Foundation Trust,05/06/2020,(80010) Drug Costs,(id:42493) Evelina Womens Services,NHS SUPPLY CHAIN (MAIDSTONE),id:12997767   ,  19.44
Department of Health,Guys and St Thomas NHS Foundation Trust,05/06/2020,(81200) Medical Surgical Supplies & Equipment,(id:42493) Evelina Womens Services,NHS SUPPLY CHAIN (MAIDSTONE),id:13015166 , 306.45
Department of Health,Guys and St Thomas NHS Foundation Trust,05/06/2020,(81700) Lab Equipment Purchase,(id:42493) Evelina Womens Services,NHS SUPPLY CHAIN (MAIDSTONE),id:13015166 ,  62.94
Department of Health,Guys and St Thomas NHS Foundation Trust,05/06/2020,(82600) Uniforms & Clothing,(id:42492) Evelina Womens Services,NHS SUPPLY CHAIN (MAIDSTONE),id:13015166    ,  80.15
Department of Health,Guys and St Thomas NHS Foundation Trust,05/06/2020,(81200) Medical Surgical Supplies & Equipment,(id:42492) Evelina Womens Services,NHS SUPPLY CHAIN (MAIDSTONE),id:12997767 ,5356.94
Department of Health,Guys and St Thomas NHS Foundation Trust,19/06/2020,(81200) Medical Surgical Supplies & Equipment,(id:42492) Evelina Womens Services,SQUADRON MEDICAL LTD,id:13078331    , 827.90
Department of Health,Guys and St Thomas NHS Foundation Trust,19/06/2020,(81200) Medical Surgical Supplies & Equipment,(id:42492) Evelina Womens Services,STERIS SOLUTIONS LTD,id:13102515    ,  -9.41
Department of Health,Guys and St Thomas NHS Foundation Trust,05/06/2020,(81225) Medical Surgical Supplies & Equipment,(id:42492) Evelina Womens Services,NHS SUPPLY CHAIN (MAIDSTONE),id:13015166 , 127.39
Department of Health,Guys and St Thomas NHS Foundation Trust,05/06/2020,(81225) Medical Surgical Supplies & Equipment,(id:42492) Evelina Womens Services,NHS SUPPLY CHAIN (MAIDSTONE),id:12997767 , 170.40
Department of Health,Guys and St Thomas NHS Foundation Trust,05/06/2020,(82000) Provisions & Kitchens,(id:42491) Evelina Womens Services,NHS SUPPLY CHAIN (MAIDSTONE),id:13025177  , 199.47
Department of Health,Guys and St Thomas NHS Foundation Trust,05/06/2020,(82800) Bedding & Linen,(id:42491) Evelina Womens Services,NHS SUPPLY CHAIN (MAIDSTONE),id:13025177   , 560.57
Department of Health,Guys and St Thomas NHS Foundation Trust,19/06/2020,(50562) Qualified Nursing Staff,(id:42491) Evelina Womens Services,MSI GROUP LTD,id:13102749,1535.02
Department of Health,Guys and St Thomas NHS Foundation Trust,19/06/2020,(50200) Consultants,(id:42504) Evelina Womens Services,KINGS COLLEGE LONDON:03529700,id:13056615 ,    33500.67
Department of Health,Guys and St Thomas NHS Foundation Trust,12/06/2020,(50200) Consultants,(id:42504) Evelina Womens Services,KINGS COLLEGE LONDON:03529700,id:13056474 ,    93369.48
Department of Health,Guys and St Thomas NHS Foundation Trust,12/06/2020,(89640) Non-Healthcare from NHS Trusts,(id:42504) Evelina Womens Services,DARTFORD AND GRAVESHAM NHS TRUST,id:5419395,3157.82
Department of Health,Guys and St Thomas NHS Foundation Trust,05/06/2020,(82600) Uniforms & Clothing,(id:42348) Evelina Central,NHS SUPPLY CHAIN (MAIDSTONE),id:12997767  ,  61.49
Department of Health,Guys and St Thomas NHS Foundation Trust,05/06/2020,(83400) Office Equipment,(id:42348) Evelina Central,NHS SUPPLY CHAIN (MAIDSTONE),id:13025177,  66.47
Department of Health,Guys and St Thomas NHS Foundation Trust,05/06/2020,(83400) Office Equipment,(id:42348) Evelina Central,NHS SUPPLY CHAIN (MAIDSTONE),id:13015166,  12.19
Department of Health,Guys and St Thomas NHS Foundation Trust,05/06/2020,(81100) Dressings,(id:42331) Evelina Central,NHS SUPPLY CHAIN (MAIDSTONE),id:13015166  , 145.15
Department of Health,Guys and St Thomas NHS Foundation Trust,05/06/2020,(82000) Provisions & Kitchens,(id:42331) Evelina Central,NHS SUPPLY CHAIN (MAIDSTONE),id:12997767,  33.68
Department of Health,Guys and St Thomas NHS Foundation Trust,05/06/2020,(81225) Medical Surgical Supplies & Equipment,(id:42325) Evelina Central,NHS SUPPLY CHAIN (MAIDSTONE),id:13025177    , 340.52
Department of Health,Guys and St Thomas NHS Foundation Trust,25/06/2020,(84600) Establishment,(id:4247419) Evelina Central,CLARITY TRAVEL MANAGEMENT,id:13115075    ,  75.30
Department of Health,Guys and St Thomas NHS Foundation Trust,25/06/2020,(84600) Establishment,(id:4198419) Evelina Central,CLARITY TRAVEL MANAGEMENT,id:13115075    ,  55.92
Department of Health,Guys and St Thomas NHS Foundation Trust,05/06/2020,(83610) IT Costs,(id:2709419) Evelina Central,OFFICE DEPOT UK LTD,id:13049826, 609.60
Department of Health,Guys and St Thomas NHS Foundation Trust,05/06/2020,(89000) Other - Training courses and conferences,(id:590445) Evelina Community Services,GLOUCESTERSHIRE HOSPITALS NHS FOUNDATION TRUST,id:13066286 ,1500.00
Department of Health,Guys and St Thomas NHS Foundation Trust,05/06/2020,(82000) Provisions & Kitchens,(id:590444) Evelina Community Services,NHS SUPPLY CHAIN (MAIDSTONE),id:13015166   ,   7.03
Department of Health,Guys and St Thomas NHS Foundation Trust,05/06/2020,(81225) Medical Surgical Supplies & Equipment,(id:590444) Evelina Community Services,NHS SUPPLY CHAIN (MAIDSTONE),id:13015166  , 298.58
Department of Health,Guys and St Thomas NHS Foundation Trust,05/06/2020,(81225) Medical Surgical Supplies & Equipment,(id:590450) Evelina Community Services,R82 UK LTD,id:13067256,1402.80
Department of Health,Guys and St Thomas NHS Foundation Trust,23/06/2020,(51872) Physiotherapists,(id:590450) Evelina Community Services,PRICEWATERHOUSECOOPERS LLP,id:13110274,1451.79
Department of Health,Guys and St Thomas NHS Foundation Trust,16/06/2020,(53062) Speech Therapists,(id:590451) Evelina Community Services,PRICEWATERHOUSECOOPERS LLP,id:13096794    ,7753.41
Department of Health,Guys and St Thomas NHS Foundation Trust,16/06/2020,(51262) Dieticians,(id:590412) Evelina Community Services,PRICEWATERHOUSECOOPERS LLP,id:13096634 ,1104.65
Department of Health,Guys and St Thomas NHS Foundation Trust,26/06/2020,(89000) Other - Training courses and conferences,(id:590548) Evelina Community Services,HENRY,id:12996096  ,    22950.00
Department of Health,Guys and St Thomas NHS Foundation Trust,26/06/2020,(83410) Office Equipment,(id:590446) Evelina Community Services,RICOH UK LTD,id:13114862    ,1413.91
Department of Health,Guys and St Thomas NHS Foundation Trust,05/06/2020,(82800) Bedding & Linen,(id:590446) Evelina Community Services,NHS SUPPLY CHAIN (MAIDSTONE),id:13025177    ,  38.16
Department of Health,Guys and St Thomas NHS Foundation Trust,26/06/2020,(84656) Establishment,(id:590545) Evelina Community Services,DICT8 LIMITED,id:12970157 ,4632.36
Department of Health,Guys and St Thomas NHS Foundation Trust,05/06/2020,(82800) Bedding & Linen,(id:590537) Evelina Community Services,NHS SUPPLY CHAIN (MAIDSTONE),id:12997767    , 200.35
Department of Health,Guys and St Thomas NHS Foundation Trust,05/06/2020,(82600) Uniforms & Clothing,(id:590419) Evelina Community Services,NHS SUPPLY CHAIN (MAIDSTONE),id:13025177,  75.46
Department of Health,Guys and St Thomas NHS Foundation Trust,12/06/2020,(50562) Qualified Nursing Staff,(id:590416) Evelina Community Services,MSI GROUP LTD,id:13082174 ,1001.09
Department of Health,Guys and St Thomas NHS Foundation Trust,26/06/2020,(50562) Qualified Nursing Staff,(id:590416) Evelina Community Services,MSI GROUP LTD,id:13117500 ,1001.09
Department of Health,Guys and St Thomas NHS Foundation Trust,05/06/2020,(81200) Medical Surgical Supplies & Equipment,(id:2356419) Evelina Medicine & Neonatology,NHS SUPPLY CHAIN (MAIDSTONE),id:12997767  ,3590.31
Department of Health,Guys and St Thomas NHS Foundation Trust,05/06/2020,(81230) Medical Surgical Supplies & Equipment,(id:2356419) Evelina Medicine & Neonatology,NHS SUPPLY CHAIN (MAIDSTONE),id:13025177  , 365.40
Department of Health,Guys and St Thomas NHS Foundation Trust,19/06/2020,(84656) Establishment,(id:1196422) Evelina Medicine & Neonatology,DICT8 LIMITED,id:13016894 , 893.88
Department of Health,Guys and St Thomas NHS Foundation Trust,19/06/2020,(81100) Dressings,(id:42350) Evelina Medicine & Neonatology,NXSTAGE MEDICAL UK LIMITED,id:13098714    ,1086.24
Department of Health,Guys and St Thomas NHS Foundation Trust,05/06/2020,(81200) Medical Surgical Supplies & Equipment,(id:42349) Evelina Medicine & Neonatology,NHS SUPPLY CHAIN (MAIDSTONE),id:13015166    ,  64.47
Department of Health,Guys and St Thomas NHS Foundation Trust,05/06/2020,(81200) Medical Surgical Supplies & Equipment,(id:42349) Evelina Medicine & Neonatology,NHS SUPPLY CHAIN (MAIDSTONE),id:12997767    , 261.48
Department of Health,Guys and St Thomas NHS Foundation Trust,19/06/2020,(80010) Drug Costs,(id:42349) Evelina Medicine & Neonatology,BAXTER HEALTHCARE LTD,id:13065936   ,7416.78
Department of Health,Guys and St Thomas NHS Foundation Trust,05/06/2020,(81230) Medical Surgical Supplies & Equipment,(id:42349) Evelina Medicine & Neonatology,NHS SUPPLY CHAIN (MAIDSTONE),id:12997767    ,   9.66
Department of Health,Guys and St Thomas NHS Foundation Trust,05/06/2020,(81100) Dressings,(id:817420) Evelina Medicine & Neonatology,NHS SUPPLY CHAIN (MAIDSTONE),id:13015166 ,  71.81
Department of Health,Guys and St Thomas NHS Foundation Trust,05/06/2020,(82000) Provisions & Kitchens,(id:2497419) Evelina Medicine & Neonatology,NHS SUPPLY CHAIN (MAIDSTONE),id:13015166   ,   9.22
Department of Health,Guys and St Thomas NHS Foundation Trust,12/06/2020,(89595) Non-Healthcare from Foundation Trusts,(id:42335) Evelina Medicine & Neonatology,KING'S COLLEGE HOSPITAL NHS FOUNDATION TRUST,id:13039185   , 850.00
Department of Health,Guys and St Thomas NHS Foundation Trust,02/06/2020,(81700) Lab Equipment Purchase,(id:42335) Evelina Medicine & Neonatology,AMPLEXA GENETICS A/S,id:13054056  ,1014.00
Department of Health,Guys and St Thomas NHS Foundation Trust,05/06/2020,(81000) Surgical Appliances,(id:42335) Evelina Medicine & Neonatology,JOHN FLORENCE LTD,id:12506262   , 865.36
Department of Health,Guys and St Thomas NHS Foundation Trust,05/06/2020,(82000) Provisions & Kitchens,(id:42327) Evelina Medicine & Neonatology,NHS SUPPLY CHAIN (MAIDSTONE),id:13025177,  12.58
Department of Health,Guys and St Thomas NHS Foundation Trust,05/06/2020,(81400) Medical Surgical Supplies & Equipment,(id:42327) Evelina Medicine & Neonatology,NHS SUPPLY CHAIN ( CAPITAL FUND ONLY),id:13056605,3102.68
Department of Health,Guys and St Thomas NHS Foundation Trust,19/06/2020,(81400) Medical Surgical Supplies & Equipment,(id:42327) Evelina Medicine & Neonatology,AQUILANT CRITICAL CARE,id:11226591, 446.00
Department of Health,Guys and St Thomas NHS Foundation Trust,26/06/2020,(81200) Medical Surgical Supplies & Equipment,(id:42327) Evelina Medicine & Neonatology,SQUADRON MEDICAL LTD,id:13084113  , 561.55
Department of Health,Guys and St Thomas NHS Foundation Trust,05/06/2020,(81200) Medical Surgical Supplies & Equipment,(id:42327) Evelina Medicine & Neonatology,AQUILANT CRITICAL CARE,id:13064115, 571.20
Department of Health,Guys and St Thomas NHS Foundation Trust,05/06/2020,(50552) Qualified Nursing Staff,(id:42327) Evelina Medicine & Neonatology,CONTINENTAL NURSE LTD,id:13070348,2801.69
Department of Health,Guys and St Thomas NHS Foundation Trust,19/06/2020,(50552) Qualified Nursing Staff,(id:42327) Evelina Medicine & Neonatology,CONTINENTAL NURSE LTD,id:13102890,2234.05
Department of Health,Guys and St Thomas NHS Foundation Trust,05/06/2020,(81225) Medical Surgical Supplies & Equipment,(id:42327) Evelina Medicine & Neonatology,NHS SUPPLY CHAIN (MAIDSTONE),id:12997767    , 183.07
Department of Health,Guys and St Thomas NHS Foundation Trust,19/06/2020,(81200) Medical Surgical Supplies & Equipment,(id:1196420) Evelina Medicine & Neonatology,DEXCOM UK,id:12949119 , 793.50
Department of Health,Guys and St Thomas NHS Foundation Trust,19/06/2020,(80010) Drug Costs,(id:1196420) Evelina Medicine & Neonatology,MEDTRONIC LTD,id:13072760    , 702.00
Department of Health,Guys and St Thomas NHS Foundation Trust,05/06/2020,(83400) Office Equipment,(id:1196420) Evelina Medicine & Neonatology,INSULET INTERNATIONAL LTD,id:13042714 , 708.24
Department of Health,Guys and St Thomas NHS Foundation Trust,05/06/2020,(81200) Medical Surgical Supplies & Equipment,(id:2496419) Evelina Medicine & Neonatology,INTUS HEALTHCARE LTD,id:13057421, 581.40
Department of Health,Guys and St Thomas NHS Foundation Trust,05/06/2020,(81100) Dressings,(id:2496419) Evelina Medicine & Neonatology,NHS SUPPLY CHAIN (MAIDSTONE),id:13015166,  30.44
Department of Health,Guys and St Thomas NHS Foundation Trust,05/06/2020,(81200) Medical Surgical Supplies & Equipment,(id:2981419) Evelina Medicine & Neonatology,NHS SUPPLY CHAIN (MAIDSTONE),id:13015166  ,  76.27
Department of Health,Guys and St Thomas NHS Foundation Trust,05/06/2020,(50552) Qualified Nursing Staff,(id:41874) Evelina Medicine & Neonatology,CONTINENTAL NURSE LTD,id:13070384, 314.36
Department of Health,Guys and St Thomas NHS Foundation Trust,05/06/2020,(81200) Medical Surgical Supplies & Equipment,(id:41874) Evelina Medicine & Neonatology,NHS SUPPLY CHAIN (MAIDSTONE),id:13025177    , 183.90
Department of Health,Guys and St Thomas NHS Foundation Trust,05/06/2020,(83400) Office Equipment,(id:2495419) Evelina Medicine & Neonatology,NHS SUPPLY CHAIN (MAIDSTONE),id:13025177   ,  14.40
Department of Health,Guys and St Thomas NHS Foundation Trust,05/06/2020,(83400) Office Equipment,(id:42323) Evelina Medicine & Neonatology,NHS SUPPLY CHAIN (MAIDSTONE),id:12997767,   4.85
Department of Health,Guys and St Thomas NHS Foundation Trust,05/06/2020,(81100) Dressings,(id:42323) Evelina Medicine & Neonatology,NHS SUPPLY CHAIN (MAIDSTONE),id:13015166  ,   9.37
Department of Health,Guys and St Thomas NHS Foundation Trust,05/06/2020,(81100) Dressings,(id:42323) Evelina Medicine & Neonatology,NHS SUPPLY CHAIN (MAIDSTONE),id:12997767  ,  67.82
Department of Health,Guys and St Thomas NHS Foundation Trust,05/06/2020,(81100) Dressings,(id:42323) Evelina Medicine & Neonatology,NHS SUPPLY CHAIN (MAIDSTONE),id:13025177  ,   9.45
Department of Health,Guys and St Thomas NHS Foundation Trust,05/06/2020,(81700) Lab Equipment Purchase,(id:42315) Evelina Medicine & Neonatology,NHS SUPPLY CHAIN (MAIDSTONE),id:13015166    ,  11.88
Department of Health,Guys and St Thomas NHS Foundation Trust,05/06/2020,(50552) Qualified Nursing Staff,(id:42315) Evelina Medicine & Neonatology,CONTINENTAL NURSE LTD,id:13070384,1886.14
Department of Health,Guys and St Thomas NHS Foundation Trust,19/06/2020,(50552) Qualified Nursing Staff,(id:42315) Evelina Medicine & Neonatology,CONTINENTAL NURSE LTD,id:13102685,1820.15
Department of Health,Guys and St Thomas NHS Foundation Trust,12/06/2020,(81200) Medical Surgical Supplies & Equipment,(id:42312) Evelina Surgery Theatres & PICU,ABBOTT MEDICAL UK LTD,id:13065551,1032.00
Department of Health,Guys and St Thomas NHS Foundation Trust,05/06/2020,(81200) Medical Surgical Supplies & Equipment,(id:42312) Evelina Surgery Theatres & PICU,NHS SUPPLY CHAIN (MAIDSTONE),id:13015166   ,    10062.65
Department of Health,Guys and St Thomas NHS Foundation Trust,19/06/2020,(81200) Medical Surgical Supplies & Equipment,(id:42312) Evelina Surgery Theatres & PICU,SQUADRON MEDICAL LTD,id:13078310 ,1210.94
Department of Health,Guys and St Thomas NHS Foundation Trust,26/06/2020,(81200) Medical Surgical Supplies & Equipment,(id:42312) Evelina Surgery Theatres & PICU,SQUADRON MEDICAL LTD,id:13120460 ,1011.84
Department of Health,Guys and St Thomas NHS Foundation Trust,19/06/2020,(81400) Medical Surgical Supplies & Equipment,(id:42312) Evelina Surgery Theatres & PICU,NHS SUPPLY CHAIN ( CAPITAL FUND ONLY),id:13091461    ,    52140.37
Department of Health,Guys and St Thomas NHS Foundation Trust,05/06/2020,(81200) Medical Surgical Supplies & Equipment,(id:42351) Evelina Surgery Theatres & PICU,SCC PLC)SPECIALIST COMPUTER CENTRES,id:13061254 ,  30.00
Department of Health,Guys and St Thomas NHS Foundation Trust,05/06/2020,(82600) Uniforms & Clothing,(id:41914) Evelina Surgery Theatres & PICU,NHS SUPPLY CHAIN (MAIDSTONE),id:12997767 , 482.60
Department of Health,Guys and St Thomas NHS Foundation Trust,05/06/2020,(83400) Office Equipment,(id:41914) Evelina Surgery Theatres & PICU,NHS SUPPLY CHAIN (MAIDSTONE),id:13025177    ,  42.17
Department of Health,Guys and St Thomas NHS Foundation Trust,05/06/2020,(82700) Uniforms & Clothing,(id:41914) Evelina Surgery Theatres & PICU,NHS SUPPLY CHAIN (MAIDSTONE),id:13015166 ,   5.91
Department of Health,Guys and St Thomas NHS Foundation Trust,05/06/2020,(81200) Medical Surgical Supplies & Equipment,(id:41914) Evelina Surgery Theatres & PICU,NHS SUPPLY CHAIN (MAIDSTONE),id:13015166   , 644.91
Department of Health,Guys and St Thomas NHS Foundation Trust,12/06/2020,(81200) Medical Surgical Supplies & Equipment,(id:41914) Evelina Surgery Theatres & PICU,TOFFELN (BRISTOL),id:4126409, 708.96
Department of Health,Guys and St Thomas NHS Foundation Trust,12/06/2020,(50562) Qualified Nursing Staff,(id:41914) Evelina Surgery Theatres & PICU,YOUR WORLD RECRUITMENT LIMITED(YOUR WORLD HEALTHCARE),id:13082134  ,1160.25
Department of Health,Guys and St Thomas NHS Foundation Trust,26/06/2020,(81200) Medical Surgical Supplies & Equipment,(id:41910) Evelina Surgery Theatres & PICU,SQUADRON MEDICAL LTD,id:13092467 , 211.69
Department of Health,Guys and St Thomas NHS Foundation Trust,05/06/2020,(81100) Dressings,(id:431409) Evelina Surgery Theatres & PICU,NHS SUPPLY CHAIN (MAIDSTONE),id:13015166, 131.31
Department of Health,Guys and St Thomas NHS Foundation Trust,05/06/2020,(81200) Medical Surgical Supplies & Equipment,(id:431409) Evelina Surgery Theatres & PICU,CONMED LINVATEC UK,id:13019774  ,1934.06
Department of Health,Guys and St Thomas NHS Foundation Trust,26/06/2020,(81200) Medical Surgical Supplies & Equipment,(id:431409) Evelina Surgery Theatres & PICU,STRYKER UK LTD,id:12969722 , 588.00
Department of Health,Guys and St Thomas NHS Foundation Trust,12/06/2020,(81200) Medical Surgical Supplies & Equipment,(id:431409) Evelina Surgery Theatres & PICU,SQUADRON MEDICAL LTD,id:13061738,  17.74
Department of Health,Guys and St Thomas NHS Foundation Trust,05/06/2020,(81000) Surgical Appliances,(id:431409) Evelina Surgery Theatres & PICU,JOHN FLORENCE LTD,id:13054055 , 987.48
Department of Health,Guys and St Thomas NHS Foundation Trust,05/06/2020,(81000) Surgical Appliances,(id:431409) Evelina Surgery Theatres & PICU,JOHN FLORENCE LTD,id:13053935 , 897.54
Department of Health,Guys and St Thomas NHS Foundation Trust,12/06/2020,(81000) Surgical Appliances,(id:431409) Evelina Surgery Theatres & PICU,TALAR MADE ORTHOTICS LTD,id:13081396    ,  85.72
Department of Health,Guys and St Thomas NHS Foundation Trust,05/06/2020,(81100) Dressings,(id:468410) Evelina Surgery Theatres & PICU,NHS SUPPLY CHAIN (MAIDSTONE),id:12997767,  80.74
Department of Health,Guys and St Thomas NHS Foundation Trust,05/06/2020,(81400) Medical Surgical Supplies & Equipment,(id:468410) Evelina Surgery Theatres & PICU,VERTEC SCIENTIFIC LTD,id:13068074    , 780.00
Department of Health,Guys and St Thomas NHS Foundation Trust,26/06/2020,(81200) Medical Surgical Supplies & Equipment,(id:468409) Evelina Surgery Theatres & PICU,SQUADRON MEDICAL LTD,id:13092467,  77.88
Department of Health,Guys and St Thomas NHS Foundation Trust,05/06/2020,(82000) Provisions & Kitchens,(id:42339) Evelina Surgery Theatres & PICU,NHS SUPPLY CHAIN (MAIDSTONE),id:13015166    , 249.96
Department of Health,Guys and St Thomas NHS Foundation Trust,05/06/2020,(82600) Uniforms & Clothing,(id:42339) Evelina Surgery Theatres & PICU,NHS SUPPLY CHAIN (MAIDSTONE),id:13025177 , 109.35
Department of Health,Guys and St Thomas NHS Foundation Trust,26/06/2020,(81200) Medical Surgical Supplies & Equipment,(id:42339) Evelina Surgery Theatres & PICU,ADVANCED STERILIZATION PRODUCTS (UK) LTD,id:13119554 ,4055.04
Department of Health,Guys and St Thomas NHS Foundation Trust,05/06/2020,(81230) Medical Surgical Supplies & Equipment,(id:42339) Evelina Surgery Theatres & PICU,NHS SUPPLY CHAIN (MAIDSTONE),id:13025177   , 447.12
Department of Health,Guys and St Thomas NHS Foundation Trust,05/06/2020,(81225) Medical Surgical Supplies & Equipment,(id:42339) Evelina Surgery Theatres & PICU,NHS SUPPLY CHAIN (MAIDSTONE),id:13025177   , 134.23
Department of Health,Guys and St Thomas NHS Foundation Trust,19/06/2020,(81275) Medical Surgical Supplies & Equipment,(id:42339) Evelina Surgery Theatres & PICU,RADIOMETER LTD,id:13087154  , 609.30
Department of Health,Guys and St Thomas NHS Foundation Trust,05/06/2020,(80010) Drug Costs,(id:42339) Evelina Surgery Theatres & PICU,NHS SUPPLY CHAIN (MAIDSTONE),id:13025177,  19.44
Department of Health,Guys and St Thomas NHS Foundation Trust,05/06/2020,(83650) IT Costs,(id:3931419) Evelina R&D and Charity,ALICE DAVIES,id:13061273    , 143.88
Department of Health,Guys and St Thomas NHS Foundation Trust,12/06/2020,(89000) Other - Training courses and conferences,(id:4266419) Evelina R&D and Charity,BRITISH DIETETIC ASSOCIATION,id:12912907 , 820.00
Department of Health,Guys and St Thomas NHS Foundation Trust,05/06/2020,(81700) Lab Equipment Purchase,(id:1622419) Evelina R&D and Charity,NHS SUPPLY CHAIN (MAIDSTONE),id:12997767    ,  97.02
Department of Health,Guys and St Thomas NHS Foundation Trust,05/06/2020,(83400) Office Equipment,(id:41958) Gastrointestinal Medicine & Surgery,NHS SUPPLY CHAIN (MAIDSTONE),id:12997767,  34.25
Department of Health,Guys and St Thomas NHS Foundation Trust,26/06/2020,(50522) Unqualified Nursing Staff,(id:41958) Gastrointestinal Medicine & Surgery,MSI GROUP LTD,id:13117718 , 281.51
Department of Health,Guys and St Thomas NHS Foundation Trust,19/06/2020,(84656) Establishment,(id:41956) Gastrointestinal Medicine & Surgery,DICT8 LIMITED,id:13093234   ,1926.72
Department of Health,Guys and St Thomas NHS Foundation Trust,05/06/2020,(82700) Uniforms & Clothing,(id:41954) Gastrointestinal Medicine & Surgery,NHS SUPPLY CHAIN (MAIDSTONE),id:13015166  , 190.67
Department of Health,Guys and St Thomas NHS Foundation Trust,05/06/2020,(82000) Provisions & Kitchens,(id:41954) Gastrointestinal Medicine & Surgery,NHS SUPPLY CHAIN (MAIDSTONE),id:13025177,  48.60
Department of Health,Guys and St Thomas NHS Foundation Trust,05/06/2020,(83400) Office Equipment,(id:41954) Gastrointestinal Medicine & Surgery,NHS SUPPLY CHAIN (MAIDSTONE),id:13025177, 151.73
Department of Health,Guys and St Thomas NHS Foundation Trust,05/06/2020,(81200) Medical Surgical Supplies & Equipment,(id:41954) Gastrointestinal Medicine & Surgery,NHS SUPPLY CHAIN (MAIDSTONE),id:13015166    , 413.02
Department of Health,Guys and St Thomas NHS Foundation Trust,05/06/2020,(81200) Medical Surgical Supplies & Equipment,(id:41954) Gastrointestinal Medicine & Surgery,NHS SUPPLY CHAIN (MAIDSTONE),id:12997767    , 226.33
Department of Health,Guys and St Thomas NHS Foundation Trust,05/06/2020,(81255) Medical Surgical Supplies & Equipment,(id:41954) Gastrointestinal Medicine & Surgery,NHS SUPPLY CHAIN (MAIDSTONE),id:13015166    ,    .94
Department of Health,Guys and St Thomas NHS Foundation Trust,19/06/2020,(81200) Medical Surgical Supplies & Equipment,(id:41949) Gastrointestinal Medicine & Surgery,HEALTHCARE 21 LTD,id:13101500,9752.40
Department of Health,Guys and St Thomas NHS Foundation Trust,05/06/2020,(81200) Medical Surgical Supplies & Equipment,(id:41949) Gastrointestinal Medicine & Surgery,SQUADRON MEDICAL LTD,id:13049989  , 361.19
Department of Health,Guys and St Thomas NHS Foundation Trust,05/06/2020,(82800) Bedding & Linen,(id:2367419) Gastrointestinal Medicine & Surgery,NHS SUPPLY CHAIN (MAIDSTONE),id:12997767    , 345.58
Department of Health,Guys and St Thomas NHS Foundation Trust,19/06/2020,(89010) Other - Publishing,(id:41942) Gastrointestinal Medicine & Surgery,ROYAL COLLEGE OF PHYSICIANS,id:13102128    ,3000.00
Department of Health,Guys and St Thomas NHS Foundation Trust,05/06/2020,(82700) Uniforms & Clothing,(id:41917) Gastrointestinal Medicine & Surgery,NHS SUPPLY CHAIN (MAIDSTONE),id:13015166  , 297.00
Department of Health,Guys and St Thomas NHS Foundation Trust,05/06/2020,(81200) Medical Surgical Supplies & Equipment,(id:41917) Gastrointestinal Medicine & Surgery,BOSTON SCIENTIFIC LTD,id:13049844 ,2634.98
Department of Health,Guys and St Thomas NHS Foundation Trust,26/06/2020,(81200) Medical Surgical Supplies & Equipment,(id:41917) Gastrointestinal Medicine & Surgery,DIAGMED HEALTHCARE LTD,id:13110564,1412.22
Department of Health,Guys and St Thomas NHS Foundation Trust,05/06/2020,(81100) Dressings,(id:41917) Gastrointestinal Medicine & Surgery,NHS SUPPLY CHAIN (MAIDSTONE),id:13015166  ,  15.63
Department of Health,Guys and St Thomas NHS Foundation Trust,05/06/2020,(81100) Dressings,(id:41917) Gastrointestinal Medicine & Surgery,NHS SUPPLY CHAIN (MAIDSTONE),id:12997767  ,  48.96
Department of Health,Guys and St Thomas NHS Foundation Trust,05/06/2020,(81400) Medical Surgical Supplies & Equipment,(id:41917) Gastrointestinal Medicine & Surgery,NHS SUPPLY CHAIN ( CAPITAL FUND ONLY),id:13012420,    65246.64
Department of Health,Guys and St Thomas NHS Foundation Trust,19/06/2020,(86300) Healthcare from non-NHS bodies,(id:2534420) Gastrointestinal Medicine & Surgery,18 WEEK SUPPORT LIMITED,id:13045073    ,    17850.00
Department of Health,Guys and St Thomas NHS Foundation Trust,19/06/2020,(81400) Medical Surgical Supplies & Equipment,(id:3364419) Cancer Strategy,ALLIANCE MEDICAL LTD,id:13019943,3325.00
Department of Health,Guys and St Thomas NHS Foundation Trust,12/06/2020,(89000) Other - Training courses and conferences,(id:169405) Cancer Strategy,KINGS FUND,id:13079915   ,8700.00
Department of Health,Guys and St Thomas NHS Foundation Trust,25/06/2020,(84600) Establishment,(id:42282) Cancer Strategy,CLARITY TRAVEL MANAGEMENT,id:13115075 ,   9.60
Department of Health,Guys and St Thomas NHS Foundation Trust,05/06/2020,(81200) Medical Surgical Supplies & Equipment,(id:639421) Cardiovascular Services,WL GORE & ASSOCIATES (UK) LTD,id:13057384    , 861.60
Department of Health,Guys and St Thomas NHS Foundation Trust,05/06/2020,(82800) Bedding & Linen,(id:41953) Cardiovascular Services,NHS SUPPLY CHAIN (MAIDSTONE),id:13015166   , 522.56
Department of Health,Guys and St Thomas NHS Foundation Trust,05/06/2020,(81200) Medical Surgical Supplies & Equipment,(id:41953) Cardiovascular Services,NHS SUPPLY CHAIN (MAIDSTONE),id:13025177 , 872.49
Department of Health,Guys and St Thomas NHS Foundation Trust,05/06/2020,(81700) Lab Equipment Purchase,(id:41953) Cardiovascular Services,NHS SUPPLY CHAIN (MAIDSTONE),id:13025177 ,  39.64
Department of Health,Guys and St Thomas NHS Foundation Trust,05/06/2020,(82000) Provisions & Kitchens,(id:41952) Cardiovascular Services,NHS SUPPLY CHAIN (MAIDSTONE),id:13015166  ,  42.04
Department of Health,Guys and St Thomas NHS Foundation Trust,05/06/2020,(82600) Uniforms & Clothing,(id:41952) Cardiovascular Services,NHS SUPPLY CHAIN (MAIDSTONE),id:12997767    ,  17.71
Department of Health,Guys and St Thomas NHS Foundation Trust,05/06/2020,(83400) Office Equipment,(id:41952) Cardiovascular Services,NHS SUPPLY CHAIN (MAIDSTONE),id:12997767  ,  44.52
Department of Health,Guys and St Thomas NHS Foundation Trust,12/06/2020,(50200) Consultants,(id:41950) Cardiovascular Services,MAIDSTONE AND TUNBRIDGE WELLS NHS TRUST,id:11051971 ,1254.67
Department of Health,Guys and St Thomas NHS Foundation Trust,05/06/2020,(81200) Medical Surgical Supplies & Equipment,(id:41950) Cardiovascular Services,NHS SUPPLY CHAIN (MAIDSTONE),id:12997767 , 580.38
Department of Health,Guys and St Thomas NHS Foundation Trust,05/06/2020,(81200) Medical Surgical Supplies & Equipment,(id:41950) Cardiovascular Services,NHS SUPPLY CHAIN (MAIDSTONE),id:13025177 , 897.59
Department of Health,Guys and St Thomas NHS Foundation Trust,05/06/2020,(81230) Medical Surgical Supplies & Equipment,(id:41950) Cardiovascular Services,FRONTMED TRADING LTD,id:12959577    ,    12609.00
Department of Health,Guys and St Thomas NHS Foundation Trust,05/06/2020,(81000) Surgical Appliances,(id:41950) Cardiovascular Services,MEDI UK LTD,id:13057597 , 683.19
Department of Health,Guys and St Thomas NHS Foundation Trust,05/06/2020,(54072) Technical Officers,(id:1243420) Cardiovascular Services,GLOBE LOCUMS LTD,id:13070318,1890.00
Department of Health,Guys and St Thomas NHS Foundation Trust,05/06/2020,(81500) X Ray Equipment Purchase,(id:1243419) Cardiovascular Services,KENEX (ELECTRO-MEDICAL) LTD,id:13057418   , 639.60
Department of Health,Guys and St Thomas NHS Foundation Trust,05/06/2020,(81500) X Ray Equipment Purchase,(id:1243419) Cardiovascular Services,KENEX (ELECTRO-MEDICAL) LTD,id:13057432   , 639.60
Department of Health,Guys and St Thomas NHS Foundation Trust,26/06/2020,(50570) Qualified Nursing Staff,(id:1232419) Cardiovascular Services,KING'S COLLEGE HOSPITAL NHS FOUNDATION TRUST,id:13027413  ,3001.87
Department of Health,Guys and St Thomas NHS Foundation Trust,12/06/2020,(81400) Medical Surgical Supplies & Equipment,(id:1232419) Cardiovascular Services,MAQUET LIMITED,id:13074174   ,    18441.36
Department of Health,Guys and St Thomas NHS Foundation Trust,19/06/2020,(50200) Consultants,(id:42304) Cardiovascular Services,KING'S COLLEGE HOSPITAL NHS FOUNDATION TRUST,id:13102544 ,    -9747.87
Department of Health,Guys and St Thomas NHS Foundation Trust,26/06/2020,(50200) Consultants,(id:42304) Cardiovascular Services,MAIDSTONE AND TUNBRIDGE WELLS NHS TRUST,id:12840911 ,1968.00
Department of Health,Guys and St Thomas NHS Foundation Trust,05/06/2020,(50470) Medical Training Grades,(id:42304) Cardiovascular Services,KINGS COLLEGE LONDON:03529700,id:12913439    ,    69896.59
Department of Health,Guys and St Thomas NHS Foundation Trust,23/06/2020,(51832) Physiotherapists,(id:42303) Cardiovascular Services,PRICEWATERHOUSECOOPERS LLP,id:13110274    ,1426.01
Department of Health,Guys and St Thomas NHS Foundation Trust,16/06/2020,(51842) Physiotherapists,(id:42303) Cardiovascular Services,PRICEWATERHOUSECOOPERS LLP,id:13096634    , 644.17
Department of Health,Guys and St Thomas NHS Foundation Trust,25/06/2020,(84600) Establishment,(id:42303) Cardiovascular Services,CLARITY TRAVEL MANAGEMENT,id:13115075   ,1968.47
Department of Health,Guys and St Thomas NHS Foundation Trust,05/06/2020,(83400) Office Equipment,(id:42302) Cardiovascular Services,EDWARDS LIFESCIENCES LTD,id:13063054 ,    51060.00
Department of Health,Guys and St Thomas NHS Foundation Trust,05/06/2020,(81200) Medical Surgical Supplies & Equipment,(id:42302) Cardiovascular Services,NHS SUPPLY CHAIN (MAIDSTONE),id:13015166 ,1305.75
Department of Health,Guys and St Thomas NHS Foundation Trust,05/06/2020,(81200) Medical Surgical Supplies & Equipment,(id:42302) Cardiovascular Services,NHS SUPPLY CHAIN (MAIDSTONE),id:13025177 ,2090.35
Department of Health,Guys and St Thomas NHS Foundation Trust,05/06/2020,(81200) Medical Surgical Supplies & Equipment,(id:42302) Cardiovascular Services,VASCULAR PERSPECTIVES LTD,id:13069414    , 540.00
Department of Health,Guys and St Thomas NHS Foundation Trust,05/06/2020,(81200) Medical Surgical Supplies & Equipment,(id:42302) Cardiovascular Services,XAVIOURMED LLP,id:13055175,2550.00
Department of Health,Guys and St Thomas NHS Foundation Trust,26/06/2020,(81200) Medical Surgical Supplies & Equipment,(id:42302) Cardiovascular Services,BOSTON SCIENTIFIC LTD,id:13084083   , 720.00
Department of Health,Guys and St Thomas NHS Foundation Trust,19/06/2020,(81235) Medical Surgical Supplies & Equipment,(id:42302) Cardiovascular Services,BOSTON SCIENTIFIC LTD,id:13080822   , 252.00
Department of Health,Guys and St Thomas NHS Foundation Trust,19/06/2020,(81235) Medical Surgical Supplies & Equipment,(id:42302) Cardiovascular Services,BOSTON SCIENTIFIC LTD,id:13072582   , 302.40
Department of Health,Guys and St Thomas NHS Foundation Trust,26/06/2020,(81235) Medical Surgical Supplies & Equipment,(id:42302) Cardiovascular Services,BOSTON SCIENTIFIC LTD,id:13100248   , 460.80
Department of Health,Guys and St Thomas NHS Foundation Trust,05/06/2020,(81235) Medical Surgical Supplies & Equipment,(id:42298) Cardiovascular Services,AQUILANT LTD,id:13058038  , 504.00
Department of Health,Guys and St Thomas NHS Foundation Trust,05/06/2020,(81200) Medical Surgical Supplies & Equipment,(id:42298) Cardiovascular Services,ABBOTT MEDICAL UK LTD,id:13057235   , 240.00
Department of Health,Guys and St Thomas NHS Foundation Trust,05/06/2020,(81200) Medical Surgical Supplies & Equipment,(id:42298) Cardiovascular Services,MEDTRONIC LTD,id:13041666 ,2880.00
Department of Health,Guys and St Thomas NHS Foundation Trust,19/06/2020,(81200) Medical Surgical Supplies & Equipment,(id:42298) Cardiovascular Services,BOSTON SCIENTIFIC LTD,id:13088213   ,3600.00
Department of Health,Guys and St Thomas NHS Foundation Trust,26/06/2020,(81200) Medical Surgical Supplies & Equipment,(id:42298) Cardiovascular Services,ABBOTT MEDICAL UK LTD,id:13096313   , 240.00
Department of Health,Guys and St Thomas NHS Foundation Trust,05/06/2020,(82600) Uniforms & Clothing,(id:42298) Cardiovascular Services,NHS SUPPLY CHAIN (MAIDSTONE),id:12997767    ,  26.22
Department of Health,Guys and St Thomas NHS Foundation Trust,26/06/2020,(81265) Medical Surgical Supplies & Equipment,(id:42298) Cardiovascular Services,ABBOTT MEDICAL UK LTD,id:13101275   ,    13606.80
Department of Health,Guys and St Thomas NHS Foundation Trust,26/06/2020,(81240) Medical Surgical Supplies & Equipment,(id:42298) Cardiovascular Services,ABBOTT MEDICAL UK LTD,id:13096335   ,7800.00
Department of Health,Guys and St Thomas NHS Foundation Trust,19/06/2020,(81240) Medical Surgical Supplies & Equipment,(id:42298) Cardiovascular Services,MEDTRONIC LTD,id:13069746 ,1800.00
Department of Health,Guys and St Thomas NHS Foundation Trust,05/06/2020,(81100) Dressings,(id:42291) Cardiovascular Services,NHS SUPPLY CHAIN (MAIDSTONE),id:13025177    ,   4.91
Department of Health,Guys and St Thomas NHS Foundation Trust,05/06/2020,(81200) Medical Surgical Supplies & Equipment,(id:42290) Cardiovascular Services,NHS SUPPLY CHAIN (MAIDSTONE),id:13025177 , 771.96
Department of Health,Guys and St Thomas NHS Foundation Trust,05/06/2020,(81100) Dressings,(id:42290) Cardiovascular Services,NHS SUPPLY CHAIN (MAIDSTONE),id:13015166    , 102.41
Department of Health,Guys and St Thomas NHS Foundation Trust,12/06/2020,(50552) Qualified Nursing Staff,(id:42290) Cardiovascular Services,CONTINENTAL NURSE LTD,id:13082023  , 592.82
Department of Health,Guys and St Thomas NHS Foundation Trust,19/06/2020,(83400) Office Equipment,(id:42293) Cardiovascular Services,EXSTENT LIMITED,id:12833728,7500.00
Department of Health,Guys and St Thomas NHS Foundation Trust,05/06/2020,(81200) Medical Surgical Supplies & Equipment,(id:42293) Cardiovascular Services,NHS SUPPLY CHAIN (MAIDSTONE),id:12997767 , 697.28
Department of Health,Guys and St Thomas NHS Foundation Trust,19/06/2020,(81200) Medical Surgical Supplies & Equipment,(id:42293) Cardiovascular Services,SQUADRON MEDICAL LTD,id:13080869    , 167.76
Department of Health,Guys and St Thomas NHS Foundation Trust,19/06/2020,(81200) Medical Surgical Supplies & Equipment,(id:42293) Cardiovascular Services,SQUADRON MEDICAL LTD,id:13078736    , 714.21
Department of Health,Guys and St Thomas NHS Foundation Trust,12/06/2020,(81200) Medical Surgical Supplies & Equipment,(id:42293) Cardiovascular Services,SQUADRON MEDICAL LTD,id:13058243    , 492.53
Department of Health,Guys and St Thomas NHS Foundation Trust,26/06/2020,(81200) Medical Surgical Supplies & Equipment,(id:42293) Cardiovascular Services,AQUILANT LTD,id:13105312  , 877.80
Department of Health,Guys and St Thomas NHS Foundation Trust,26/06/2020,(81200) Medical Surgical Supplies & Equipment,(id:42293) Cardiovascular Services,SQUADRON MEDICAL LTD,id:13120635    ,1403.40
Department of Health,Guys and St Thomas NHS Foundation Trust,19/06/2020,(81100) Dressings,(id:42293) Cardiovascular Services,SQUADRON MEDICAL LTD,id:13080869  , 354.94
Department of Health,Guys and St Thomas NHS Foundation Trust,19/06/2020,(81280) Medical Surgical Supplies & Equipment,(id:42293) Cardiovascular Services,EDWARDS LIFESCIENCES LTD,id:13087516,1752.00
Department of Health,Guys and St Thomas NHS Foundation Trust,05/06/2020,(81280) Medical Surgical Supplies & Equipment,(id:42293) Cardiovascular Services,EDWARDS LIFESCIENCES LTD,id:13068954,3420.00
Department of Health,Guys and St Thomas NHS Foundation Trust,19/06/2020,(81200) Medical Surgical Supplies & Equipment,(id:42292) Cardiovascular Services,SIEMENS HEALTHCARE DIAGNOSTICS LTD,id:13091305,1795.49
Department of Health,Guys and St Thomas NHS Foundation Trust,26/06/2020,(81100) Dressings,(id:42292) Cardiovascular Services,MAQUET LIMITED,id:13114164   , 732.00
Department of Health,Guys and St Thomas NHS Foundation Trust,26/06/2020,(81100) Dressings,(id:42292) Cardiovascular Services,MAQUET LIMITED,id:13114137   , 732.00
Department of Health,Guys and St Thomas NHS Foundation Trust,12/06/2020,(81100) Dressings,(id:42292) Cardiovascular Services,MAQUET LIMITED,id:13065454   , 366.00
Department of Health,Guys and St Thomas NHS Foundation Trust,12/06/2020,(50200) Consultants,(id:42368) Clinical Imaging & Med Physics,KINGS COLLEGE LONDON:03529700,id:13056498    ,5322.20
Department of Health,Guys and St Thomas NHS Foundation Trust,05/06/2020,(50202) Consultants,(id:42368) Clinical Imaging & Med Physics,RIG LOCUMS LTD,id:13071520    , 909.01
Department of Health,Guys and St Thomas NHS Foundation Trust,05/06/2020,(50202) Consultants,(id:42368) Clinical Imaging & Med Physics,RIG LOCUMS LTD,id:13071560    ,1468.40
Department of Health,Guys and St Thomas NHS Foundation Trust,05/06/2020,(83400) Office Equipment,(id:42367) Clinical Imaging & Med Physics,NHS SUPPLY CHAIN (MAIDSTONE),id:13025177, 103.21
Department of Health,Guys and St Thomas NHS Foundation Trust,05/06/2020,(81100) Dressings,(id:42367) Clinical Imaging & Med Physics,NHS SUPPLY CHAIN (MAIDSTONE),id:13015166  , 266.84
Department of Health,Guys and St Thomas NHS Foundation Trust,05/06/2020,(81100) Dressings,(id:42367) Clinical Imaging & Med Physics,SQUADRON MEDICAL LTD,id:13041718,1136.60
Department of Health,Guys and St Thomas NHS Foundation Trust,05/06/2020,(81400) Medical Surgical Supplies & Equipment,(id:42367) Clinical Imaging & Med Physics,PROTECTIVE WEAR SUPPLIES,id:13067230   , 497.40
Department of Health,Guys and St Thomas NHS Foundation Trust,05/06/2020,(81400) Medical Surgical Supplies & Equipment,(id:42367) Clinical Imaging & Med Physics,BAYER PLC,id:13060454   ,1338.00
Department of Health,Guys and St Thomas NHS Foundation Trust,05/06/2020,(81400) Medical Surgical Supplies & Equipment,(id:42367) Clinical Imaging & Med Physics,BAYER PLC,id:13060494   ,1905.00
Department of Health,Guys and St Thomas NHS Foundation Trust,05/06/2020,(81400) Medical Surgical Supplies & Equipment,(id:42367) Clinical Imaging & Med Physics,BAYER PLC,id:13060515   ,3069.00
Department of Health,Guys and St Thomas NHS Foundation Trust,12/06/2020,(81400) Medical Surgical Supplies & Equipment,(id:42367) Clinical Imaging & Med Physics,HITACHI MEDICAL SYSTEMS UK LTD,id:12907374  ,4226.00
Department of Health,Guys and St Thomas NHS Foundation Trust,12/06/2020,(50203) Consultants,(id:42367) Clinical Imaging & Med Physics,KINGS COLLEGE LONDON:03529700,id:13056498    ,2354.15
Department of Health,Guys and St Thomas NHS Foundation Trust,05/06/2020,(81200) Medical Surgical Supplies & Equipment,(id:42367) Clinical Imaging & Med Physics,NHS SUPPLY CHAIN (MAIDSTONE),id:12997767    ,4605.01
Department of Health,Guys and St Thomas NHS Foundation Trust,05/06/2020,(81200) Medical Surgical Supplies & Equipment,(id:42367) Clinical Imaging & Med Physics,SQUADRON MEDICAL LTD,id:13049913  , 691.40
Department of Health,Guys and St Thomas NHS Foundation Trust,05/06/2020,(81200) Medical Surgical Supplies & Equipment,(id:42367) Clinical Imaging & Med Physics,NHS SUPPLY CHAIN (MAIDSTONE),id:13015166    ,8817.74
Department of Health,Guys and St Thomas NHS Foundation Trust,19/06/2020,(81200) Medical Surgical Supplies & Equipment,(id:42367) Clinical Imaging & Med Physics,SQUADRON MEDICAL LTD,id:13078395  , 411.17
Department of Health,Guys and St Thomas NHS Foundation Trust,26/06/2020,(81200) Medical Surgical Supplies & Equipment,(id:42367) Clinical Imaging & Med Physics,ABBOTT MEDICAL UK LTD,id:13101323 ,1392.00
Department of Health,Guys and St Thomas NHS Foundation Trust,26/06/2020,(81200) Medical Surgical Supplies & Equipment,(id:42367) Clinical Imaging & Med Physics,SQUADRON MEDICAL LTD,id:13088275  ,2465.10
Department of Health,Guys and St Thomas NHS Foundation Trust,19/06/2020,(81200) Medical Surgical Supplies & Equipment,(id:42367) Clinical Imaging & Med Physics,SQUADRON MEDICAL LTD,id:13078411  ,1691.06
Department of Health,Guys and St Thomas NHS Foundation Trust,19/06/2020,(81200) Medical Surgical Supplies & Equipment,(id:42367) Clinical Imaging & Med Physics,SQUADRON MEDICAL LTD,id:13072748  , 752.56
Department of Health,Guys and St Thomas NHS Foundation Trust,19/06/2020,(81200) Medical Surgical Supplies & Equipment,(id:42367) Clinical Imaging & Med Physics,MEDTRONIC LTD,id:13078670    ,1140.00
Department of Health,Guys and St Thomas NHS Foundation Trust,19/06/2020,(81200) Medical Surgical Supplies & Equipment,(id:42367) Clinical Imaging & Med Physics,WL GORE & ASSOCIATES (UK) LTD,id:13097214   ,1618.80
Department of Health,Guys and St Thomas NHS Foundation Trust,19/06/2020,(81230) Medical Surgical Supplies & Equipment,(id:42367) Clinical Imaging & Med Physics,SQUADRON MEDICAL LTD,id:13081040  , 249.78
Department of Health,Guys and St Thomas NHS Foundation Trust,26/06/2020,(81230) Medical Surgical Supplies & Equipment,(id:42367) Clinical Imaging & Med Physics,SQUADRON MEDICAL LTD,id:13100327  , 197.96
Department of Health,Guys and St Thomas NHS Foundation Trust,05/06/2020,(81100) Dressings,(id:42366) Clinical Imaging & Med Physics,NHS SUPPLY CHAIN (MAIDSTONE),id:12997767  ,  20.16
Department of Health,Guys and St Thomas NHS Foundation Trust,05/06/2020,(81100) Dressings,(id:42366) Clinical Imaging & Med Physics,NHS SUPPLY CHAIN (MAIDSTONE),id:13025177  ,  84.42
Department of Health,Guys and St Thomas NHS Foundation Trust,05/06/2020,(81200) Medical Surgical Supplies & Equipment,(id:42366) Clinical Imaging & Med Physics,NHS SUPPLY CHAIN (MAIDSTONE),id:13025177    ,2653.76
Department of Health,Guys and St Thomas NHS Foundation Trust,05/06/2020,(83400) Office Equipment,(id:42366) Clinical Imaging & Med Physics,NHS SUPPLY CHAIN (MAIDSTONE),id:13025177, 390.73
Department of Health,Guys and St Thomas NHS Foundation Trust,19/06/2020,(81200) Medical Surgical Supplies & Equipment,(id:4622424) Clinical Imaging & Med Physics,WALTERS MEDICAL LTD,id:12991096 ,1470.00
Department of Health,Guys and St Thomas NHS Foundation Trust,26/06/2020,(83400) Office Equipment,(id:4187419) Clinical Imaging & Med Physics,GE HEALTHCARE (50652318),id:13117094  , 557.96
Department of Health,Guys and St Thomas NHS Foundation Trust,05/06/2020,(83400) Office Equipment,(id:4187419) Clinical Imaging & Med Physics,GE HEALTHCARE (50652318),id:13068894  , 526.80
Department of Health,Guys and St Thomas NHS Foundation Trust,05/06/2020,(81200) Medical Surgical Supplies & Equipment,(id:4187419) Clinical Imaging & Med Physics,ADVANCED ACCELERATOR APPLICATIONS (UK & IRELAND) LTD,id:13066275   ,    15658.50
Department of Health,Guys and St Thomas NHS Foundation Trust,05/06/2020,(81200) Medical Surgical Supplies & Equipment,(id:4187419) Clinical Imaging & Med Physics,ADVANCED ACCELERATOR APPLICATIONS (UK & IRELAND) LTD,id:13066302   ,   -23487.73
Department of Health,Guys and St Thomas NHS Foundation Trust,12/06/2020,(83400) Office Equipment,(id:42372) Clinical Imaging & Med Physics,BAYER PLC,id:13072214    ,2112.00
Department of Health,Guys and St Thomas NHS Foundation Trust,19/06/2020,(83400) Office Equipment,(id:42372) Clinical Imaging & Med Physics,LAZERBEAM FIRE AND SECURITY LTD,id:13102955  ,3345.00
Department of Health,Guys and St Thomas NHS Foundation Trust,26/06/2020,(83400) Office Equipment,(id:42372) Clinical Imaging & Med Physics,BAYER PLC,id:13109274    ,2112.00
Department of Health,Guys and St Thomas NHS Foundation Trust,05/06/2020,(81700) Lab Equipment Purchase,(id:42372) Clinical Imaging & Med Physics,NHS SUPPLY CHAIN (MAIDSTONE),id:12997767    ,   9.19
Department of Health,Guys and St Thomas NHS Foundation Trust,05/06/2020,(81200) Medical Surgical Supplies & Equipment,(id:42372) Clinical Imaging & Med Physics,NHS SUPPLY CHAIN (MAIDSTONE),id:12997767    , 909.49
Department of Health,Guys and St Thomas NHS Foundation Trust,12/06/2020,(81200) Medical Surgical Supplies & Equipment,(id:42372) Clinical Imaging & Med Physics,WICKHAM LABORATORIES LTD,id:13071725   , 490.00
Department of Health,Guys and St Thomas NHS Foundation Trust,12/06/2020,(81200) Medical Surgical Supplies & Equipment,(id:42372) Clinical Imaging & Med Physics,WICKHAM LABORATORIES LTD,id:13071713   ,1176.00
Department of Health,Guys and St Thomas NHS Foundation Trust,19/06/2020,(81275) Medical Surgical Supplies & Equipment,(id:42372) Clinical Imaging & Med Physics,THERMO ELECTRON MANUFACTURING LTD/THERMO FISHER SCIENTIFIC,id:12895850    ,2784.00
Department of Health,Guys and St Thomas NHS Foundation Trust,19/06/2020,(81275) Medical Surgical Supplies & Equipment,(id:42372) Clinical Imaging & Med Physics,THERMO ELECTRON MANUFACTURING LTD/THERMO FISHER SCIENTIFIC,id:13102542    ,    -2784.00
Department of Health,Guys and St Thomas NHS Foundation Trust,26/06/2020,(81275) Medical Surgical Supplies & Equipment,(id:42372) Clinical Imaging & Med Physics,GE HEALTHCARE UK LTD:00475800,id:13105818   , 738.00
Department of Health,Guys and St Thomas NHS Foundation Trust,26/06/2020,(81275) Medical Surgical Supplies & Equipment,(id:42372) Clinical Imaging & Med Physics,GE HEALTHCARE UK LTD:00475800,id:13097674   , 630.00
Department of Health,Guys and St Thomas NHS Foundation Trust,05/06/2020,(81500) X Ray Equipment Purchase,(id:42372) Clinical Imaging & Med Physics,CURIUM PHARMA UK LTD,id:13059057,1717.20
Department of Health,Guys and St Thomas NHS Foundation Trust,05/06/2020,(81500) X Ray Equipment Purchase,(id:42372) Clinical Imaging & Med Physics,VALIDAIR (EURO) LTD,id:13057721 ,1718.40
Department of Health,Guys and St Thomas NHS Foundation Trust,05/06/2020,(81400) Medical Surgical Supplies & Equipment,(id:42379) Clinical Imaging & Med Physics,THERAPY EQUIPMENT LTD,id:13058634 ,1040.45
Department of Health,Guys and St Thomas NHS Foundation Trust,05/06/2020,(81200) Medical Surgical Supplies & Equipment,(id:42379) Clinical Imaging & Med Physics,EURO ENERGY RESOURCES LTD,id:13055030  , 549.36
Department of Health,Guys and St Thomas NHS Foundation Trust,19/06/2020,(81200) Medical Surgical Supplies & Equipment,(id:42379) Clinical Imaging & Med Physics,PHILIPS HEALTHCARE,id:12993195    ,6753.60
Department of Health,Guys and St Thomas NHS Foundation Trust,12/06/2020,(81200) Medical Surgical Supplies & Equipment,(id:42379) Clinical Imaging & Med Physics,THERAPY EQUIPMENT LTD,id:13069198 ,4296.58
Department of Health,Guys and St Thomas NHS Foundation Trust,12/06/2020,(81200) Medical Surgical Supplies & Equipment,(id:42379) Clinical Imaging & Med Physics,MINDRAY UK LTD,id:13082658   ,3960.00
Department of Health,Guys and St Thomas NHS Foundation Trust,12/06/2020,(81200) Medical Surgical Supplies & Equipment,(id:42379) Clinical Imaging & Med Physics,ICU UK MEDICAL LTD,id:12888985    , 672.00
Department of Health,Guys and St Thomas NHS Foundation Trust,16/06/2020,(52062) Radiographers,(id:42377) Clinical Imaging & Med Physics,PRICEWATERHOUSECOOPERS LLP,id:13096634,1005.19
Department of Health,Guys and St Thomas NHS Foundation Trust,12/06/2020,(89000) Other - Training courses and conferences,(id:42375) Clinical Imaging & Med Physics,KINGS COLLEGE LONDON:03529700,id:13061343,5250.00
Department of Health,Guys and St Thomas NHS Foundation Trust,25/06/2020,(84600) Establishment,(id:42374) Clinical Imaging & Med Physics,CLARITY TRAVEL MANAGEMENT,id:13115075 ,  42.92
Department of Health,Guys and St Thomas NHS Foundation Trust,19/06/2020,(81250) Medical Surgical Supplies & Equipment,(id:1348419) Clinical Imaging & Med Physics,MACROMED (UK) LTD,id:13076754   ,2280.00
Department of Health,Guys and St Thomas NHS Foundation Trust,05/06/2020,(81200) Medical Surgical Supplies & Equipment,(id:1348419) Clinical Imaging & Med Physics,BOSTON SCIENTIFIC LTD,id:13049830    ,1224.00
Department of Health,Guys and St Thomas NHS Foundation Trust,05/06/2020,(82800) Bedding & Linen,(id:1348419) Clinical Imaging & Med Physics,NHS SUPPLY CHAIN (MAIDSTONE),id:13025177    , 803.04
Department of Health,Guys and St Thomas NHS Foundation Trust,25/06/2020,(84600) Establishment,(id:2625419) Transplant Renal and Urology,CLARITY TRAVEL MANAGEMENT,id:13115075 , 146.70
Department of Health,Guys and St Thomas NHS Foundation Trust,05/06/2020,(81200) Medical Surgical Supplies & Equipment,(id:42419) Transplant Renal and Urology,NHS SUPPLY CHAIN (MAIDSTONE),id:13015166 , 698.15
Department of Health,Guys and St Thomas NHS Foundation Trust,05/06/2020,(81200) Medical Surgical Supplies & Equipment,(id:42419) Transplant Renal and Urology,NHS SUPPLY CHAIN (MAIDSTONE),id:12997767 , 847.89
Department of Health,Guys and St Thomas NHS Foundation Trust,05/06/2020,(83400) Office Equipment,(id:42419) Transplant Renal and Urology,NHS SUPPLY CHAIN (MAIDSTONE),id:12997767  ,  83.01
Department of Health,Guys and St Thomas NHS Foundation Trust,05/06/2020,(83400) Office Equipment,(id:42419) Transplant Renal and Urology,NHS SUPPLY CHAIN (MAIDSTONE),id:13015166  ,  77.82
Department of Health,Guys and St Thomas NHS Foundation Trust,05/06/2020,(81700) Lab Equipment Purchase,(id:42419) Transplant Renal and Urology,NHS SUPPLY CHAIN (MAIDSTONE),id:12997767 , 228.13
Department of Health,Guys and St Thomas NHS Foundation Trust,05/06/2020,(81700) Lab Equipment Purchase,(id:42419) Transplant Renal and Urology,NHS SUPPLY CHAIN (MAIDSTONE),id:13015166 ,  84.90
Department of Health,Guys and St Thomas NHS Foundation Trust,12/06/2020,(81200) Medical Surgical Supplies & Equipment,(id:2882419) Transplant Renal and Urology,ENVIROGEN WATER TECHNOLOGIES LTD,id:13077896,5022.00
Department of Health,Guys and St Thomas NHS Foundation Trust,26/06/2020,(81400) Medical Surgical Supplies & Equipment,(id:42451) Transplant Renal and Urology,STORZ MEDICAL UK LTD,id:13107915    ,    20500.00
Department of Health,Guys and St Thomas NHS Foundation Trust,05/06/2020,(81200) Medical Surgical Supplies & Equipment,(id:42449) Transplant Renal and Urology,NHS SUPPLY CHAIN (MAIDSTONE),id:13015166 , 987.00
Department of Health,Guys and St Thomas NHS Foundation Trust,05/06/2020,(81700) Lab Equipment Purchase,(id:42447) Transplant Renal and Urology,NHS SUPPLY CHAIN (MAIDSTONE),id:12997767 ,  34.15
Department of Health,Guys and St Thomas NHS Foundation Trust,19/06/2020,(50200) Consultants,(id:42447) Transplant Renal and Urology,KING'S COLLEGE HOSPITAL NHS FOUNDATION TRUST,id:13021616 ,4871.98
Department of Health,Guys and St Thomas NHS Foundation Trust,05/06/2020,(81200) Medical Surgical Supplies & Equipment,(id:42446) Transplant Renal and Urology,NHS SUPPLY CHAIN (MAIDSTONE),id:12997767 ,  81.92
Department of Health,Guys and St Thomas NHS Foundation Trust,05/06/2020,(81200) Medical Surgical Supplies & Equipment,(id:42444) Transplant Renal and Urology,BOSTON SCIENTIFIC LTD,id:13041656   , 658.20
Department of Health,Guys and St Thomas NHS Foundation Trust,05/06/2020,(83400) Office Equipment,(id:42443) Transplant Renal and Urology,NHS SUPPLY CHAIN (MAIDSTONE),id:13015166  , 165.71
Department of Health,Guys and St Thomas NHS Foundation Trust,05/06/2020,(83400) Office Equipment,(id:42443) Transplant Renal and Urology,NHS SUPPLY CHAIN (MAIDSTONE),id:13025177  ,  73.62
Department of Health,Guys and St Thomas NHS Foundation Trust,05/06/2020,(81700) Lab Equipment Purchase,(id:42443) Transplant Renal and Urology,NHS SUPPLY CHAIN (MAIDSTONE),id:13015166 ,  34.91
Department of Health,Guys and St Thomas NHS Foundation Trust,05/06/2020,(50552) Qualified Nursing Staff,(id:42435) Transplant Renal and Urology,CONTINENTAL NURSE LTD,id:13070276  , 325.73
Department of Health,Guys and St Thomas NHS Foundation Trust,19/06/2020,(50552) Qualified Nursing Staff,(id:42435) Transplant Renal and Urology,GLOBE LOCUMS LTD,id:13102795  ,1001.21
Department of Health,Guys and St Thomas NHS Foundation Trust,12/06/2020,(81200) Medical Surgical Supplies & Equipment,(id:42433) Transplant Renal and Urology,LINDSAY SURGICAL SUPPLIES LIMITED,id:13069233 ,  12.00
Department of Health,Guys and St Thomas NHS Foundation Trust,05/06/2020,(81200) Medical Surgical Supplies & Equipment,(id:42430) Transplant Renal and Urology,DIAVERUM UK LTD,id:13028147    ,   133986.53
Department of Health,Guys and St Thomas NHS Foundation Trust,26/06/2020,(81200) Medical Surgical Supplies & Equipment,(id:42430) Transplant Renal and Urology,LATIS SCIENTIFIC LTD,id:13083694    , 754.00
Department of Health,Guys and St Thomas NHS Foundation Trust,05/06/2020,(81200) Medical Surgical Supplies & Equipment,(id:42420) Transplant Renal and Urology,NHS SUPPLY CHAIN (MAIDSTONE),id:12997767 , 554.71
Department of Health,Guys and St Thomas NHS Foundation Trust,19/06/2020,(81200) Medical Surgical Supplies & Equipment,(id:42420) Transplant Renal and Urology,SQUADRON MEDICAL LTD,id:13080847    , 936.46
Department of Health,Guys and St Thomas NHS Foundation Trust,26/06/2020,(50562) Qualified Nursing Staff,(id:42420) Transplant Renal and Urology,PULSE HEALTHCARE LIMITED,id:13117733    , 838.43
Department of Health,Guys and St Thomas NHS Foundation Trust,05/06/2020,(81200) Medical Surgical Supplies & Equipment,(id:42437) Transplant Renal and Urology,DIAVERUM UK LTD,id:13050774    ,    52706.16
Department of Health,Guys and St Thomas NHS Foundation Trust,05/06/2020,(89595) Non-Healthcare from Foundation Trusts,(id:42432) Transplant Renal and Urology,DIAVERUM UK LTD,id:13053618    ,    35823.24
Department of Health,Guys and St Thomas NHS Foundation Trust,12/06/2020,(83755) Rental under Operating Lease,(id:42432) Transplant Renal and Urology,ASSURA HEALTH INVESTMENTS LTD,id:13068917    ,    17206.20
Department of Health,Guys and St Thomas NHS Foundation Trust,05/06/2020,(83765) Rent,(id:42427) Transplant Renal and Urology,CHARTWELL PROPERTIES LIMITED,id:13063413    ,5365.20
Department of Health,Guys and St Thomas NHS Foundation Trust,05/06/2020,(83110) Energy Costs,(id:42427) Transplant Renal and Urology,CHARTWELL PROPERTIES LIMITED,id:13063404 ,4889.61
Department of Health,Guys and St Thomas NHS Foundation Trust,19/06/2020,(81200) Medical Surgical Supplies & Equipment,(id:42425) Transplant Renal and Urology,SQUADRON MEDICAL LTD,id:13078321    , 502.44
Department of Health,Guys and St Thomas NHS Foundation Trust,12/06/2020,(83880) Building & Engineering,(id:42424) Transplant Renal and Urology,DIAVERUM UK LTD,id:12945136    ,    54791.10
Department of Health,Guys and St Thomas NHS Foundation Trust,12/06/2020,(81200) Medical Surgical Supplies & Equipment,(id:42422) Transplant Renal and Urology,NXSTAGE MEDICAL UK LIMITED,id:13022937   ,1357.80
Department of Health,Guys and St Thomas NHS Foundation Trust,12/06/2020,(81200) Medical Surgical Supplies & Equipment,(id:42422) Transplant Renal and Urology,NXSTAGE MEDICAL UK LIMITED,id:13044195   ,1194.58
Department of Health,Guys and St Thomas NHS Foundation Trust,12/06/2020,(81200) Medical Surgical Supplies & Equipment,(id:42422) Transplant Renal and Urology,NXSTAGE MEDICAL UK LIMITED,id:13053338   ,1538.59
Department of Health,Guys and St Thomas NHS Foundation Trust,05/06/2020,(81700) Lab Equipment Purchase,(id:42422) Transplant Renal and Urology,NHS SUPPLY CHAIN (MAIDSTONE),id:12997767 ,   2.45
Department of Health,Guys and St Thomas NHS Foundation Trust,05/06/2020,(81700) Lab Equipment Purchase,(id:42422) Transplant Renal and Urology,NHS SUPPLY CHAIN (MAIDSTONE),id:13015166 ,   6.10
Department of Health,Guys and St Thomas NHS Foundation Trust,05/06/2020,(81200) Medical Surgical Supplies & Equipment,(id:42421) Transplant Renal and Urology,BAXTER HEALTHCARE LTD,id:13056516   , 850.22
Department of Health,Guys and St Thomas NHS Foundation Trust,05/06/2020,(81200) Medical Surgical Supplies & Equipment,(id:42421) Transplant Renal and Urology,BAXTER HEALTHCARE LTD,id:13056476   , 911.22
Department of Health,Guys and St Thomas NHS Foundation Trust,05/06/2020,(81200) Medical Surgical Supplies & Equipment,(id:42421) Transplant Renal and Urology,BAXTER HEALTHCARE LTD,id:13056515   , 921.82
Department of Health,Guys and St Thomas NHS Foundation Trust,05/06/2020,(81200) Medical Surgical Supplies & Equipment,(id:42421) Transplant Renal and Urology,BAXTER HEALTHCARE LTD,id:13056519   , 989.32
Department of Health,Guys and St Thomas NHS Foundation Trust,05/06/2020,(81200) Medical Surgical Supplies & Equipment,(id:42421) Transplant Renal and Urology,BAXTER HEALTHCARE LTD,id:13056479   ,1481.16
Department of Health,Guys and St Thomas NHS Foundation Trust,05/06/2020,(81200) Medical Surgical Supplies & Equipment,(id:42421) Transplant Renal and Urology,BAXTER HEALTHCARE LTD,id:13056475   ,2111.03
Department of Health,Guys and St Thomas NHS Foundation Trust,26/06/2020,(81200) Medical Surgical Supplies & Equipment,(id:42007) Dental Services,HENRY SCHEIN,id:13086808, 921.60
Department of Health,Guys and St Thomas NHS Foundation Trust,05/06/2020,(50200) Consultants,(id:42015) Dental Services,KINGS COLLEGE LONDON:03529700,id:12846916    , 919.62
Department of Health,Guys and St Thomas NHS Foundation Trust,05/06/2020,(50200) Consultants,(id:42033) Dental Services,KINGS COLLEGE LONDON:03529700,id:12844882    ,4051.46
Department of Health,Guys and St Thomas NHS Foundation Trust,05/06/2020,(81200) Medical Surgical Supplies & Equipment,(id:42028) Dental Services,NHS SUPPLY CHAIN (MAIDSTONE),id:12997767    ,  11.64
Department of Health,Guys and St Thomas NHS Foundation Trust,03/06/2020,(81200) Medical Surgical Supplies & Equipment,(id:42016) Dental Services,REOSS GMBH,id:13062915  , 637.73
Department of Health,Guys and St Thomas NHS Foundation Trust,03/06/2020,(81200) Medical Surgical Supplies & Equipment,(id:42016) Dental Services,REOSS GMBH,id:13062917  ,1232.80
Department of Health,Guys and St Thomas NHS Foundation Trust,19/06/2020,(81200) Medical Surgical Supplies & Equipment,(id:42016) Dental Services,DENTSPLY IH LTD,id:13087754  ,1146.60
Department of Health,Guys and St Thomas NHS Foundation Trust,19/06/2020,(81200) Medical Surgical Supplies & Equipment,(id:42016) Dental Services,DENTSPLY IH LTD,id:13087834  ,1201.50
Department of Health,Guys and St Thomas NHS Foundation Trust,19/06/2020,(81200) Medical Surgical Supplies & Equipment,(id:42016) Dental Services,DENTSPLY IH LTD,id:13087701  , 573.30
Department of Health,Guys and St Thomas NHS Foundation Trust,19/06/2020,(81200) Medical Surgical Supplies & Equipment,(id:42016) Dental Services,DENTSPLY IH LTD,id:13087734  , 670.50
Department of Health,Guys and St Thomas NHS Foundation Trust,05/06/2020,(50200) Consultants,(id:42022) Dental Services,KINGS COLLEGE LONDON:03529700,id:12844882    ,2889.95
Department of Health,Guys and St Thomas NHS Foundation Trust,19/06/2020,(50542) Unqualified Nursing Staff,(id:1885419) Dental Services,HAYS HEALTHCARE LTD,id:13102838   , 767.25
Department of Health,Guys and St Thomas NHS Foundation Trust,05/06/2020,(81200) Medical Surgical Supplies & Equipment,(id:42014) Dental Services,HENRY SCHEIN,id:12738381,1881.00
Department of Health,Guys and St Thomas NHS Foundation Trust,05/06/2020,(50200) Consultants,(id:42035) Dental Services,KINGS COLLEGE LONDON:03529700,id:12846916    ,    30637.84
Department of Health,Guys and St Thomas NHS Foundation Trust,12/06/2020,(81200) Medical Surgical Supplies & Equipment,(id:1634433) Dental Services,HENRY SCHEIN,id:13069217   , 776.95
Department of Health,Guys and St Thomas NHS Foundation Trust,19/06/2020,(81200) Medical Surgical Supplies & Equipment,(id:1634432) Dental Services,HENRY SCHEIN,id:11734331   , 596.71
Department of Health,Guys and St Thomas NHS Foundation Trust,12/06/2020,(81200) Medical Surgical Supplies & Equipment,(id:1634429) Dental Services,HENRY SCHEIN,id:13067262   , 932.45
Department of Health,Guys and St Thomas NHS Foundation Trust,05/06/2020,(81200) Medical Surgical Supplies & Equipment,(id:1634429) Dental Services,NHS SUPPLY CHAIN (MAIDSTONE),id:13025177  ,  38.47
Department of Health,Guys and St Thomas NHS Foundation Trust,05/06/2020,(81700) Lab Equipment Purchase,(id:641456) Specialist Ambulatory Services,ROCHE DIAGNOSTICS LTD,id:12950928,5400.00
Department of Health,Guys and St Thomas NHS Foundation Trust,05/06/2020,(50203) Consultants,(id:42193) Specialist Ambulatory Services,KINGS COLLEGE LONDON:03529700,id:12913439    ,2120.50
Department of Health,Guys and St Thomas NHS Foundation Trust,19/06/2020,(81000) Surgical Appliances,(id:42193) Specialist Ambulatory Services,TALAR MADE ORTHOTICS LTD,id:13101899 ,  14.40
Department of Health,Guys and St Thomas NHS Foundation Trust,26/06/2020,(50200) Consultants,(id:42358) Specialist Ambulatory Services,QUEEN MARY UNIVERSITY OF LONDON,id:13037839  , 873.62
Department of Health,Guys and St Thomas NHS Foundation Trust,05/06/2020,(81200) Medical Surgical Supplies & Equipment,(id:42358) Specialist Ambulatory Services,NHS SUPPLY CHAIN (MAIDSTONE),id:13015166    , 138.72
Department of Health,Guys and St Thomas NHS Foundation Trust,12/06/2020,(89595) Non-Healthcare from Foundation Trusts,(id:42354) Specialist Ambulatory Services,THE NEWCASTLE UPON TYNE HOSPITALS NHS FOUNDATION TRUST,id:10469031   , 740.00
Department of Health,Guys and St Thomas NHS Foundation Trust,19/06/2020,(89595) Non-Healthcare from Foundation Trusts,(id:42354) Specialist Ambulatory Services,MANCHESTER UNIVERSITY NHS FOUNDATION TRUST,id:13065934, 639.26
Department of Health,Guys and St Thomas NHS Foundation Trust,19/06/2020,(89595) Non-Healthcare from Foundation Trusts,(id:42354) Specialist Ambulatory Services,GREAT ORMOND STREET HOSPITAL FOR CHILDREN NHS FOUNDATION TRUST,id:13071777,-880.00
Department of Health,Guys and St Thomas NHS Foundation Trust,12/06/2020,(83400) Office Equipment,(id:42100) Specialist Ambulatory Services,LAZERBEAM FIRE AND SECURITY LTD,id:13073094  , 480.00
Department of Health,Guys and St Thomas NHS Foundation Trust,05/06/2020,(81100) Dressings,(id:42091) Specialist Ambulatory Services,NHS SUPPLY CHAIN (MAIDSTONE),id:12997767  ,  46.50
Department of Health,Guys and St Thomas NHS Foundation Trust,12/06/2020,(83610) IT Costs,(id:42091) Specialist Ambulatory Services,OFFICE DEPOT UK LTD,id:13053038  , 289.90
Department of Health,Guys and St Thomas NHS Foundation Trust,19/06/2020,(81000) Surgical Appliances,(id:42091) Specialist Ambulatory Services,TALAR MADE ORTHOTICS LTD,id:13101920 , 633.49
Department of Health,Guys and St Thomas NHS Foundation Trust,05/06/2020,(81100) Dressings,(id:42097) Specialist Ambulatory Services,NHS SUPPLY CHAIN (MAIDSTONE),id:13015166  , 145.05
Department of Health,Guys and St Thomas NHS Foundation Trust,05/06/2020,(81245) Medical Surgical Supplies & Equipment,(id:42097) Specialist Ambulatory Services,SCHUCO INTERNATIONAL LTD,id:13068896   , 601.92
Department of Health,Guys and St Thomas NHS Foundation Trust,12/06/2020,(80010) Drug Costs,(id:42079) Specialist Ambulatory Services,THERAKOS (UK) LIMITED,id:12998940   ,    22464.00
Department of Health,Guys and St Thomas NHS Foundation Trust,12/06/2020,(80010) Drug Costs,(id:42079) Specialist Ambulatory Services,THERAKOS (UK) LIMITED,id:13080755   ,-748.80
Department of Health,Guys and St Thomas NHS Foundation Trust,05/06/2020,(82000) Provisions & Kitchens,(id:42079) Specialist Ambulatory Services,NHS SUPPLY CHAIN (MAIDSTONE),id:13025177, 156.04
Department of Health,Guys and St Thomas NHS Foundation Trust,05/06/2020,(81200) Medical Surgical Supplies & Equipment,(id:42079) Specialist Ambulatory Services,THERAKOS (UK) LIMITED,id:13069275 ,1920.00
Department of Health,Guys and St Thomas NHS Foundation Trust,05/06/2020,(81700) Lab Equipment Purchase,(id:391417) Specialist Ambulatory Services,NHS SUPPLY CHAIN (MAIDSTONE),id:13025177   ,   4.30
Department of Health,Guys and St Thomas NHS Foundation Trust,05/06/2020,(81100) Dressings,(id:391417) Specialist Ambulatory Services,NHS SUPPLY CHAIN (MAIDSTONE),id:13015166 ,  73.10
Department of Health,Guys and St Thomas NHS Foundation Trust,05/06/2020,(80205) Drug Costs,(id:42134) Pathology SDU,OCTAPHARMA LTD,id:12990501  ,2550.00
Department of Health,Guys and St Thomas NHS Foundation Trust,26/06/2020,(53662) Pharmacists,(id:818419) Pharmacy,TFS HEALTHCARE,id:13117607,1195.20
Department of Health,Guys and St Thomas NHS Foundation Trust,23/06/2020,(53672) Pharmacists,(id:42165) Pharmacy,PRICEWATERHOUSECOOPERS LLP,id:13110274    ,2663.26
Department of Health,Guys and St Thomas NHS Foundation Trust,30/06/2020,(53672) Pharmacists,(id:42165) Pharmacy,PRICEWATERHOUSECOOPERS LLP,id:13130975    ,1127.67
Department of Health,Guys and St Thomas NHS Foundation Trust,12/06/2020,(81200) Medical Surgical Supplies & Equipment,(id:581409) Pharmacy,WICKHAM LABORATORIES LTD,id:13071651    ,1526.00
Department of Health,Guys and St Thomas NHS Foundation Trust,19/06/2020,(81200) Medical Surgical Supplies & Equipment,(id:581409) Pharmacy,BERENDSEN CLEANROOM SERVICES LTD,id:12969922 ,4319.83
Department of Health,Guys and St Thomas NHS Foundation Trust,05/06/2020,(81200) Medical Surgical Supplies & Equipment,(id:581409) Pharmacy,ADDED PHARMA LTD,id:13036435  ,2361.60
Department of Health,Guys and St Thomas NHS Foundation Trust,26/06/2020,(81275) Medical Surgical Supplies & Equipment,(id:581409) Pharmacy,CHERWELL LABORATORIES LTD,id:13107282   , 628.74
Department of Health,Guys and St Thomas NHS Foundation Trust,19/06/2020,(83400) Office Equipment,(id:581409) Pharmacy,AQUILANT DISTRIBUTION,id:13073154   ,2153.50
Department of Health,Guys and St Thomas NHS Foundation Trust,19/06/2020,(80010) Drug Costs,(id:42159) Pharmacy,OFFICE DEPOT UK LTD,id:13073288  , 554.40
Department of Health,Guys and St Thomas NHS Foundation Trust,12/06/2020,(81200) Medical Surgical Supplies & Equipment,(id:42159) Pharmacy,WICKHAM LABORATORIES LTD,id:13071653,1185.00
Department of Health,Guys and St Thomas NHS Foundation Trust,05/06/2020,(81200) Medical Surgical Supplies & Equipment,(id:42159) Pharmacy,CHARLES RIVER MICROBIAL SOLUTIONS INTERNATIONAL LIMITED,id:13070740    ,9334.04
Department of Health,Guys and St Thomas NHS Foundation Trust,05/06/2020,(81400) Medical Surgical Supplies & Equipment,(id:42159) Pharmacy,MEDICAL PIPELINE SERVICES LTD,id:13057324, 617.50
Department of Health,Guys and St Thomas NHS Foundation Trust,05/06/2020,(83400) Office Equipment,(id:42159) Pharmacy,NHS SUPPLY CHAIN (MAIDSTONE),id:13025177  ,  39.60
Department of Health,Guys and St Thomas NHS Foundation Trust,16/06/2020,(53672) Pharmacists,(id:42160) Pharmacy,PRICEWATERHOUSECOOPERS LLP,id:13096994    ,2796.45
Department of Health,Guys and St Thomas NHS Foundation Trust,23/06/2020,(53632) Pharmacists,(id:42160) Pharmacy,PRICEWATERHOUSECOOPERS LLP,id:13110274    , 714.62
Department of Health,Guys and St Thomas NHS Foundation Trust,05/06/2020,(84500) Establishment,(id:42156) Pharmacy,NHS SUPPLY CHAIN (MAIDSTONE),id:13015166,1280.40
Department of Health,Guys and St Thomas NHS Foundation Trust,12/06/2020,(80010) Drug Costs,(id:42156) Pharmacy,DISTINCTIVE MEDICAL PRODUCTS:69498300,id:13086390    , 708.00
Department of Health,Guys and St Thomas NHS Foundation Trust,12/06/2020,(83130) Energy Costs,(id:42154) Pharmacy,BOC LTD :02107500,id:13085975  ,1140.00
Department of Health,Guys and St Thomas NHS Foundation Trust,05/06/2020,(82800) Bedding & Linen,(id:42167) Pharmacy,NHS SUPPLY CHAIN (MAIDSTONE),id:12997767   ,  40.18
Department of Health,Guys and St Thomas NHS Foundation Trust,05/06/2020,(84655) Establishment,(id:42178) Medical Specialties,CLARION INTERPRETING LIMITED,id:13070754    , 528.50
Department of Health,Guys and St Thomas NHS Foundation Trust,05/06/2020,(84655) Establishment,(id:42178) Medical Specialties,LANGUAGE CONNECT,id:13062634 ,1101.83
Department of Health,Guys and St Thomas NHS Foundation Trust,05/06/2020,(84655) Establishment,(id:42178) Medical Specialties,LANGUAGE CONNECT,id:13059734 ,2769.00
Department of Health,Guys and St Thomas NHS Foundation Trust,12/06/2020,(81000) Surgical Appliances,(id:42171) Medical Specialties,TALAR MADE ORTHOTICS LTD,id:13081435  , 114.00
Department of Health,Guys and St Thomas NHS Foundation Trust,12/06/2020,(81000) Surgical Appliances,(id:42171) Medical Specialties,TALAR MADE ORTHOTICS LTD,id:13081386  , 342.49
Department of Health,Guys and St Thomas NHS Foundation Trust,23/06/2020,(51272) Dieticians,(id:42251) Medical Specialties,PRICEWATERHOUSECOOPERS LLP,id:13110274    , 839.97
Department of Health,Guys and St Thomas NHS Foundation Trust,16/06/2020,(51272) Dieticians,(id:42251) Medical Specialties,PRICEWATERHOUSECOOPERS LLP,id:13096994    , 839.97
Department of Health,Guys and St Thomas NHS Foundation Trust,05/06/2020,(82000) Provisions & Kitchens,(id:42250) Medical Specialties,AAH PHARMACEUTICALS LTD,id:13060700 , 781.56
Department of Health,Guys and St Thomas NHS Foundation Trust,16/06/2020,(51262) Dieticians,(id:42249) Medical Specialties,PRICEWATERHOUSECOOPERS LLP,id:13096994    ,1216.95
Department of Health,Guys and St Thomas NHS Foundation Trust,04/06/2020,(81200) Medical Surgical Supplies & Equipment,(id:42223) Medical Specialties,INNOVATIVE EXCIMER SOLUTIONS,id:13050737,1207.16
Department of Health,Guys and St Thomas NHS Foundation Trust,26/06/2020,(81200) Medical Surgical Supplies & Equipment,(id:42223) Medical Specialties,SANTEN UK LTD,id:13108419,4920.00
Department of Health,Guys and St Thomas NHS Foundation Trust,05/06/2020,(81200) Medical Surgical Supplies & Equipment,(id:42223) Medical Specialties,NHS SUPPLY CHAIN (MAIDSTONE),id:13025177, 462.46
Department of Health,Guys and St Thomas NHS Foundation Trust,05/06/2020,(81200) Medical Surgical Supplies & Equipment,(id:42223) Medical Specialties,HAAG STREIT UK LTD,id:13059073, 766.20
Department of Health,Guys and St Thomas NHS Foundation Trust,05/06/2020,(81200) Medical Surgical Supplies & Equipment,(id:42223) Medical Specialties,NHS SUPPLY CHAIN (MAIDSTONE),id:12997767, 137.46
Department of Health,Guys and St Thomas NHS Foundation Trust,05/06/2020,(89600) Non-Healthcare from other NHS bodies,(id:42223) Medical Specialties,NHS BLOOD AND TRANSPLANT,id:13014516,1277.85
Department of Health,Guys and St Thomas NHS Foundation Trust,12/06/2020,(81225) Medical Surgical Supplies & Equipment,(id:42223) Medical Specialties,ALCON EYE CARE UK LIMITED,id:13071715   , 500.89
Department of Health,Guys and St Thomas NHS Foundation Trust,12/06/2020,(81225) Medical Surgical Supplies & Equipment,(id:42223) Medical Specialties,MOORFIELDS EYE HOSPITAL NHS FOUNDATION TRUST,id:13071746    ,7610.46
Department of Health,Guys and St Thomas NHS Foundation Trust,05/06/2020,(81200) Medical Surgical Supplies & Equipment,(id:42221) Medical Specialties,ALCON EYE CARE UK LIMITED,id:13065550   ,2016.00
Department of Health,Guys and St Thomas NHS Foundation Trust,05/06/2020,(89595) Non-Healthcare from Foundation Trusts,(id:42213) Medical Specialties,ROYAL DEVON AND EXETER NHS FOUNDATION TRUST,id:12666885, 750.00
Department of Health,Guys and St Thomas NHS Foundation Trust,19/06/2020,(81200) Medical Surgical Supplies & Equipment,(id:42209) Medical Specialties,MEDTRONIC LTD,id:13095914, 567.00
Department of Health,Guys and St Thomas NHS Foundation Trust,19/06/2020,(81000) Surgical Appliances,(id:42209) Medical Specialties,TALAR MADE ORTHOTICS LTD,id:13102594  , 614.77
Department of Health,Guys and St Thomas NHS Foundation Trust,05/06/2020,(81200) Medical Surgical Supplies & Equipment,(id:42208) Medical Specialties,DEXCOM UK,id:13071401    , 793.50
Department of Health,Guys and St Thomas NHS Foundation Trust,05/06/2020,(81200) Medical Surgical Supplies & Equipment,(id:42208) Medical Specialties,DEXCOM UK,id:13071481    , 793.50
Department of Health,Guys and St Thomas NHS Foundation Trust,05/06/2020,(81200) Medical Surgical Supplies & Equipment,(id:42208) Medical Specialties,DEXCOM UK,id:13071489    , 793.50
Department of Health,Guys and St Thomas NHS Foundation Trust,05/06/2020,(81200) Medical Surgical Supplies & Equipment,(id:42208) Medical Specialties,DEXCOM UK,id:13071314    , 793.50
Department of Health,Guys and St Thomas NHS Foundation Trust,05/06/2020,(81200) Medical Surgical Supplies & Equipment,(id:42208) Medical Specialties,MEDTRONIC LTD,id:12965147, 567.00
Department of Health,Guys and St Thomas NHS Foundation Trust,05/06/2020,(81200) Medical Surgical Supplies & Equipment,(id:42208) Medical Specialties,MEDTRONIC LTD,id:13010274, 567.00
Department of Health,Guys and St Thomas NHS Foundation Trust,05/06/2020,(81200) Medical Surgical Supplies & Equipment,(id:42208) Medical Specialties,MEDTRONIC LTD,id:13007795, 989.42
Department of Health,Guys and St Thomas NHS Foundation Trust,05/06/2020,(81200) Medical Surgical Supplies & Equipment,(id:42208) Medical Specialties,MEDTRONIC LTD,id:13023478, 816.12
Department of Health,Guys and St Thomas NHS Foundation Trust,05/06/2020,(81200) Medical Surgical Supplies & Equipment,(id:42208) Medical Specialties,INSULET INTERNATIONAL LTD,id:13023474   , 706.32
Department of Health,Guys and St Thomas NHS Foundation Trust,05/06/2020,(81200) Medical Surgical Supplies & Equipment,(id:42208) Medical Specialties,INSULET INTERNATIONAL LTD,id:13007793   , 706.32
Department of Health,Guys and St Thomas NHS Foundation Trust,05/06/2020,(81200) Medical Surgical Supplies & Equipment,(id:42208) Medical Specialties,INSULET INTERNATIONAL LTD,id:13046505   , 706.32
Department of Health,Guys and St Thomas NHS Foundation Trust,05/06/2020,(81200) Medical Surgical Supplies & Equipment,(id:42208) Medical Specialties,INSULET INTERNATIONAL LTD,id:13057294   , 706.32
Department of Health,Guys and St Thomas NHS Foundation Trust,05/06/2020,(81200) Medical Surgical Supplies & Equipment,(id:42208) Medical Specialties,INSULET INTERNATIONAL LTD,id:12990127   , 712.08
Department of Health,Guys and St Thomas NHS Foundation Trust,05/06/2020,(81200) Medical Surgical Supplies & Equipment,(id:42208) Medical Specialties,INSULET INTERNATIONAL LTD,id:13057454   , 712.08
Department of Health,Guys and St Thomas NHS Foundation Trust,05/06/2020,(81200) Medical Surgical Supplies & Equipment,(id:42208) Medical Specialties,INSULET INTERNATIONAL LTD,id:13007797   , 712.08
Department of Health,Guys and St Thomas NHS Foundation Trust,05/06/2020,(81200) Medical Surgical Supplies & Equipment,(id:42208) Medical Specialties,INSULET INTERNATIONAL LTD,id:13023470   , 712.08
Department of Health,Guys and St Thomas NHS Foundation Trust,05/06/2020,(81200) Medical Surgical Supplies & Equipment,(id:42208) Medical Specialties,INSULET INTERNATIONAL LTD,id:13023534   , 712.08
Department of Health,Guys and St Thomas NHS Foundation Trust,05/06/2020,(81200) Medical Surgical Supplies & Equipment,(id:42208) Medical Specialties,INSULET INTERNATIONAL LTD,id:13037600   , 712.08
Department of Health,Guys and St Thomas NHS Foundation Trust,05/06/2020,(81200) Medical Surgical Supplies & Equipment,(id:42208) Medical Specialties,INSULET INTERNATIONAL LTD,id:13005814   , 712.08
Department of Health,Guys and St Thomas NHS Foundation Trust,05/06/2020,(81200) Medical Surgical Supplies & Equipment,(id:42208) Medical Specialties,INSULET INTERNATIONAL LTD,id:13057459   , 712.08
Department of Health,Guys and St Thomas NHS Foundation Trust,05/06/2020,(81200) Medical Surgical Supplies & Equipment,(id:42208) Medical Specialties,INSULET INTERNATIONAL LTD,id:12985914   , 712.08
Department of Health,Guys and St Thomas NHS Foundation Trust,05/06/2020,(81200) Medical Surgical Supplies & Equipment,(id:42208) Medical Specialties,INSULET INTERNATIONAL LTD,id:13028914   , 712.08
Department of Health,Guys and St Thomas NHS Foundation Trust,05/06/2020,(81200) Medical Surgical Supplies & Equipment,(id:42208) Medical Specialties,INSULET INTERNATIONAL LTD,id:13057378   , 712.08
Department of Health,Guys and St Thomas NHS Foundation Trust,05/06/2020,(81200) Medical Surgical Supplies & Equipment,(id:42208) Medical Specialties,MEDTRONIC LTD,id:12992855, 901.08
Department of Health,Guys and St Thomas NHS Foundation Trust,12/06/2020,(81200) Medical Surgical Supplies & Equipment,(id:42208) Medical Specialties,DEXCOM UK,id:13084476    , 793.50
Department of Health,Guys and St Thomas NHS Foundation Trust,12/06/2020,(81200) Medical Surgical Supplies & Equipment,(id:42208) Medical Specialties,MEDTRONIC LTD,id:13065335, 513.26
Department of Health,Guys and St Thomas NHS Foundation Trust,12/06/2020,(81200) Medical Surgical Supplies & Equipment,(id:42208) Medical Specialties,INSULET INTERNATIONAL LTD,id:13075041   , 706.32
Department of Health,Guys and St Thomas NHS Foundation Trust,12/06/2020,(81200) Medical Surgical Supplies & Equipment,(id:42208) Medical Specialties,INSULET INTERNATIONAL LTD,id:13072434   , 706.32
Department of Health,Guys and St Thomas NHS Foundation Trust,12/06/2020,(81200) Medical Surgical Supplies & Equipment,(id:42208) Medical Specialties,INSULET INTERNATIONAL LTD,id:13075545   , 706.32
Department of Health,Guys and St Thomas NHS Foundation Trust,12/06/2020,(81200) Medical Surgical Supplies & Equipment,(id:42208) Medical Specialties,INSULET INTERNATIONAL LTD,id:13075035   , 712.08
Department of Health,Guys and St Thomas NHS Foundation Trust,12/06/2020,(81200) Medical Surgical Supplies & Equipment,(id:42208) Medical Specialties,INSULET INTERNATIONAL LTD,id:13072474   , 712.08
Department of Health,Guys and St Thomas NHS Foundation Trust,12/06/2020,(81200) Medical Surgical Supplies & Equipment,(id:42208) Medical Specialties,INSULET INTERNATIONAL LTD,id:13075546   , 712.08
Department of Health,Guys and St Thomas NHS Foundation Trust,19/06/2020,(81200) Medical Surgical Supplies & Equipment,(id:42208) Medical Specialties,DEXCOM UK,id:13086536    , 793.50
Department of Health,Guys and St Thomas NHS Foundation Trust,19/06/2020,(81200) Medical Surgical Supplies & Equipment,(id:42208) Medical Specialties,INSULET INTERNATIONAL LTD,id:13101768   , 706.32
Department of Health,Guys and St Thomas NHS Foundation Trust,19/06/2020,(81200) Medical Surgical Supplies & Equipment,(id:42208) Medical Specialties,INSULET INTERNATIONAL LTD,id:13101814   , 706.32
Department of Health,Guys and St Thomas NHS Foundation Trust,05/06/2020,(81200) Medical Surgical Supplies & Equipment,(id:42208) Medical Specialties,MEDTRONIC LTD,id:13058700,3974.42
Department of Health,Guys and St Thomas NHS Foundation Trust,19/06/2020,(81200) Medical Surgical Supplies & Equipment,(id:42208) Medical Specialties,DEXCOM UK,id:13086703    , 793.50
Department of Health,Guys and St Thomas NHS Foundation Trust,19/06/2020,(81200) Medical Surgical Supplies & Equipment,(id:42208) Medical Specialties,DEXCOM UK,id:13091450    , 793.50
Department of Health,Guys and St Thomas NHS Foundation Trust,19/06/2020,(81200) Medical Surgical Supplies & Equipment,(id:42208) Medical Specialties,DEXCOM UK,id:13094454    , 793.50
Department of Health,Guys and St Thomas NHS Foundation Trust,25/06/2020,(84600) Establishment,(id:302405) Medical Specialties,CLARITY TRAVEL MANAGEMENT,id:13115075 ,4339.54
Department of Health,Guys and St Thomas NHS Foundation Trust,19/06/2020,(89440) Research and Development,(id:4127419) Medical Specialties,VIRTUAL HEALTH LABS,id:13086594,9000.00
Department of Health,Guys and St Thomas NHS Foundation Trust,05/06/2020,(82800) Bedding & Linen,(id:42190) Medical Specialties,NHS SUPPLY CHAIN (MAIDSTONE),id:12997767  ,  20.09
Department of Health,Guys and St Thomas NHS Foundation Trust,05/06/2020,(81230) Medical Surgical Supplies & Equipment,(id:4621419) TAP,NHS SUPPLY CHAIN (MAIDSTONE),id:13025177    , 588.94
Department of Health,Guys and St Thomas NHS Foundation Trust,05/06/2020,(81100) Dressings,(id:4621419) TAP,NHS SUPPLY CHAIN (MAIDSTONE),id:13015166  , 464.61
Department of Health,Guys and St Thomas NHS Foundation Trust,05/06/2020,(81225) Medical Surgical Supplies & Equipment,(id:4621419) TAP,NHS SUPPLY CHAIN (MAIDSTONE),id:12997767    , 283.43
Department of Health,Guys and St Thomas NHS Foundation Trust,19/06/2020,(81400) Medical Surgical Supplies & Equipment,(id:41900) TAP,NHS SUPPLY CHAIN ( CAPITAL FUND ONLY),id:13091477  ,1045.90
Department of Health,Guys and St Thomas NHS Foundation Trust,05/06/2020,(81200) Medical Surgical Supplies & Equipment,(id:41897) TAP,NHS SUPPLY CHAIN (MAIDSTONE),id:12997767 ,1366.81
Department of Health,Guys and St Thomas NHS Foundation Trust,05/06/2020,(81100) Dressings,(id:41897) TAP,NHS SUPPLY CHAIN (MAIDSTONE),id:13015166    , 108.45
Department of Health,Guys and St Thomas NHS Foundation Trust,12/06/2020,(81100) Dressings,(id:41897) TAP,OSSUR UK LTD:42113800,id:13082527 , 677.28
Department of Health,Guys and St Thomas NHS Foundation Trust,05/06/2020,(81100) Dressings,(id:41894) TAP,NHS SUPPLY CHAIN (MAIDSTONE),id:13025177    ,  10.96
Department of Health,Guys and St Thomas NHS Foundation Trust,05/06/2020,(83400) Office Equipment,(id:41894) TAP,NHS SUPPLY CHAIN (MAIDSTONE),id:12997767  ,  34.14
Department of Health,Guys and St Thomas NHS Foundation Trust,05/06/2020,(82800) Bedding & Linen,(id:41883) TAP,NHS SUPPLY CHAIN (MAIDSTONE),id:13015166   , 140.62
Department of Health,Guys and St Thomas NHS Foundation Trust,05/06/2020,(81275) Medical Surgical Supplies & Equipment,(id:41883) TAP,NHS SUPPLY CHAIN (MAIDSTONE),id:13015166 ,   7.07
Department of Health,Guys and St Thomas NHS Foundation Trust,05/06/2020,(81225) Medical Surgical Supplies & Equipment,(id:41883) TAP,NHS SUPPLY CHAIN (MAIDSTONE),id:12997767 ,   6.05
Department of Health,Guys and St Thomas NHS Foundation Trust,05/06/2020,(81100) Dressings,(id:41883) TAP,NHS SUPPLY CHAIN (MAIDSTONE),id:13025177    ,  21.06
Department of Health,Guys and St Thomas NHS Foundation Trust,05/06/2020,(81200) Medical Surgical Supplies & Equipment,(id:41883) TAP,SQUADRON MEDICAL LTD,id:12897692    ,  50.64
Department of Health,Guys and St Thomas NHS Foundation Trust,05/06/2020,(83400) Office Equipment,(id:41883) TAP,NHS SUPPLY CHAIN (MAIDSTONE),id:12997767  ,  95.31
Department of Health,Guys and St Thomas NHS Foundation Trust,19/06/2020,(81200) Medical Surgical Supplies & Equipment,(id:41907) TAP,MEDTRONIC LTD,id:13094814 ,2244.00
Department of Health,Guys and St Thomas NHS Foundation Trust,05/06/2020,(81230) Medical Surgical Supplies & Equipment,(id:41907) TAP,NHS SUPPLY CHAIN (MAIDSTONE),id:13025177 ,1223.52
Department of Health,Guys and St Thomas NHS Foundation Trust,05/06/2020,(81230) Medical Surgical Supplies & Equipment,(id:41906) TAP,VYGON (UK) LTD,id:13057437, 720.00
Department of Health,Guys and St Thomas NHS Foundation Trust,05/06/2020,(82600) Uniforms & Clothing,(id:41905) TAP,NHS SUPPLY CHAIN (MAIDSTONE),id:12997767    ,   9.07
Department of Health,Guys and St Thomas NHS Foundation Trust,05/06/2020,(83400) Office Equipment,(id:41905) TAP,NHS SUPPLY CHAIN (MAIDSTONE),id:13015166  ,   1.08
Department of Health,Guys and St Thomas NHS Foundation Trust,05/06/2020,(81255) Medical Surgical Supplies & Equipment,(id:41913) TAP,NHS SUPPLY CHAIN (MAIDSTONE),id:13015166 ,   2.18
Department of Health,Guys and St Thomas NHS Foundation Trust,19/06/2020,(81200) Medical Surgical Supplies & Equipment,(id:41913) TAP,STRYKER UK LTD,id:13103226, 576.00
Department of Health,Guys and St Thomas NHS Foundation Trust,05/06/2020,(81200) Medical Surgical Supplies & Equipment,(id:41913) TAP,STRYKER UK LTD,id:13023178, 576.00
Department of Health,Guys and St Thomas NHS Foundation Trust,05/06/2020,(81200) Medical Surgical Supplies & Equipment,(id:41913) TAP,FISHER & PAYKEL HEALTHCARE LTD,id:13045154    ,1103.76
Department of Health,Guys and St Thomas NHS Foundation Trust,05/06/2020,(81700) Lab Equipment Purchase,(id:41913) TAP,NHS SUPPLY CHAIN (MAIDSTONE),id:13015166 ,   6.29
Department of Health,Guys and St Thomas NHS Foundation Trust,05/06/2020,(82800) Bedding & Linen,(id:41913) TAP,NHS SUPPLY CHAIN (MAIDSTONE),id:13015166   ,  60.26
Department of Health,Guys and St Thomas NHS Foundation Trust,05/06/2020,(82000) Provisions & Kitchens,(id:41918) TAP,NHS SUPPLY CHAIN (MAIDSTONE),id:12997767  ,   9.13
Department of Health,Guys and St Thomas NHS Foundation Trust,19/06/2020,(81400) Medical Surgical Supplies & Equipment,(id:41918) TAP,MAQUET LIMITED,id:13087974,2110.92
Department of Health,Guys and St Thomas NHS Foundation Trust,05/06/2020,(81200) Medical Surgical Supplies & Equipment,(id:41918) TAP,NHS SUPPLY CHAIN (MAIDSTONE),id:13015166 ,   2.70
Department of Health,Guys and St Thomas NHS Foundation Trust,05/06/2020,(81200) Medical Surgical Supplies & Equipment,(id:41918) TAP,NHS SUPPLY CHAIN (MAIDSTONE),id:12997767 ,   9.18
Department of Health,Guys and St Thomas NHS Foundation Trust,19/06/2020,(81500) X Ray Equipment Purchase,(id:41918) TAP,OPTIMUS MEDICAL LTD,id:13087315   , 159.00
Department of Health,Guys and St Thomas NHS Foundation Trust,12/06/2020,(81500) X Ray Equipment Purchase,(id:41918) TAP,OPTIMUS MEDICAL LTD,id:13077534   , 378.00
Department of Health,Guys and St Thomas NHS Foundation Trust,12/06/2020,(83500) Furniture & Fittings,(id:41916) TAP,HOSPITAL METALCRAFT LTD,id:13081859   ,3914.40
Department of Health,Guys and St Thomas NHS Foundation Trust,19/06/2020,(83400) Office Equipment,(id:41922) TAP,LAZERBEAM FIRE AND SECURITY LTD,id:13102613    ,1599.00
Department of Health,Guys and St Thomas NHS Foundation Trust,05/06/2020,(82800) Bedding & Linen,(id:42485) Surgery,NHS SUPPLY CHAIN (MAIDSTONE),id:13015166    ,  44.92
Department of Health,Guys and St Thomas NHS Foundation Trust,05/06/2020,(81000) Surgical Appliances,(id:42485) Surgery,TALAR MADE ORTHOTICS LTD,id:13057532    ,  33.74
Department of Health,Guys and St Thomas NHS Foundation Trust,12/06/2020,(81000) Surgical Appliances,(id:42485) Surgery,TALAR MADE ORTHOTICS LTD,id:13081435    , 114.00
Department of Health,Guys and St Thomas NHS Foundation Trust,12/06/2020,(81000) Surgical Appliances,(id:42485) Surgery,TALAR MADE ORTHOTICS LTD,id:13081386    , 176.40
Department of Health,Guys and St Thomas NHS Foundation Trust,12/06/2020,(81000) Surgical Appliances,(id:42485) Surgery,TALAR MADE ORTHOTICS LTD,id:13080254    ,1380.00
Department of Health,Guys and St Thomas NHS Foundation Trust,19/06/2020,(81200) Medical Surgical Supplies & Equipment,(id:42484) Surgery,STRYKER UK LTD,id:13105134 ,1350.00
Department of Health,Guys and St Thomas NHS Foundation Trust,12/06/2020,(81200) Medical Surgical Supplies & Equipment,(id:42484) Surgery,Q MEDICAL TECHNOLOGIES LTD,id:13075561    ,    -5160.00
Department of Health,Guys and St Thomas NHS Foundation Trust,12/06/2020,(81200) Medical Surgical Supplies & Equipment,(id:42484) Surgery,Q MEDICAL TECHNOLOGIES LTD,id:13010614    ,    -3411.60
Department of Health,Guys and St Thomas NHS Foundation Trust,12/06/2020,(81200) Medical Surgical Supplies & Equipment,(id:42484) Surgery,SEVERN HEALTHCARE TECHNOLOGIES LTD,id:13082520 ,4584.00
Department of Health,Guys and St Thomas NHS Foundation Trust,05/06/2020,(81100) Dressings,(id:42484) Surgery,SQUADRON MEDICAL LTD,id:13049989   ,  36.30
Department of Health,Guys and St Thomas NHS Foundation Trust,05/06/2020,(81100) Dressings,(id:42483) Surgery,NHS SUPPLY CHAIN (MAIDSTONE),id:13015166,  73.63
Department of Health,Guys and St Thomas NHS Foundation Trust,05/06/2020,(82800) Bedding & Linen,(id:42467) Surgery,SQUADRON MEDICAL LTD,id:13049989  ,  22.75
Department of Health,Guys and St Thomas NHS Foundation Trust,05/06/2020,(81200) Medical Surgical Supplies & Equipment,(id:42467) Surgery,NHS SUPPLY CHAIN (MAIDSTONE),id:12997767  ,1709.32
Department of Health,Guys and St Thomas NHS Foundation Trust,05/06/2020,(81225) Medical Surgical Supplies & Equipment,(id:42466) Surgery,PROMEDICS ORTHOPAEDICS LTD,id:13064197    , 756.00
Department of Health,Guys and St Thomas NHS Foundation Trust,05/06/2020,(81100) Dressings,(id:42465) Surgery,NHS SUPPLY CHAIN (MAIDSTONE),id:12997767, 102.40
Department of Health,Guys and St Thomas NHS Foundation Trust,05/06/2020,(81700) Lab Equipment Purchase,(id:42465) Surgery,NHS SUPPLY CHAIN (MAIDSTONE),id:12997767  ,   6.34
Department of Health,Guys and St Thomas NHS Foundation Trust,05/06/2020,(50552) Qualified Nursing Staff,(id:42465) Surgery,PULSE HEALTHCARE LIMITED,id:13070273, 609.50
Department of Health,Guys and St Thomas NHS Foundation Trust,26/06/2020,(80010) Drug Costs,(id:42464) Surgery,THE LONDON UPRIGHT MRI CENTRE:70838400,id:13118036    ,1150.00
Department of Health,Guys and St Thomas NHS Foundation Trust,05/06/2020,(83400) Office Equipment,(id:42464) Surgery,NHS SUPPLY CHAIN (MAIDSTONE),id:13015166   ,  22.22
Department of Health,Guys and St Thomas NHS Foundation Trust,12/06/2020,(81000) Surgical Appliances,(id:42461) Surgery,TALAR MADE ORTHOTICS LTD,id:13081459    ,  93.00
Department of Health,Guys and St Thomas NHS Foundation Trust,12/06/2020,(81000) Surgical Appliances,(id:42461) Surgery,LANGER UK LTD,id:13075634, 892.32
Department of Health,Guys and St Thomas NHS Foundation Trust,05/06/2020,(82800) Bedding & Linen,(id:42458) Surgery,NHS SUPPLY CHAIN (MAIDSTONE),id:13025177    ,   3.07
Department of Health,Guys and St Thomas NHS Foundation Trust,05/06/2020,(81200) Medical Surgical Supplies & Equipment,(id:42458) Surgery,NHS SUPPLY CHAIN (MAIDSTONE),id:12997767  , 166.99
Department of Health,Guys and St Thomas NHS Foundation Trust,12/06/2020,(81200) Medical Surgical Supplies & Equipment,(id:41863) PACCS,RESMED (UK) LTD,id:13081869  ,2868.00
Department of Health,Guys and St Thomas NHS Foundation Trust,19/06/2020,(89000) Other - Training courses and conferences,(id:41863) PACCS,CHECKWARE LTD,id:12904058 ,2775.00
Department of Health,Guys and St Thomas NHS Foundation Trust,05/06/2020,(82800) Bedding & Linen,(id:41935) PACCS,NHS SUPPLY CHAIN (MAIDSTONE),id:12997767 , 436.10
Department of Health,Guys and St Thomas NHS Foundation Trust,05/06/2020,(82800) Bedding & Linen,(id:41935) PACCS,NHS SUPPLY CHAIN (MAIDSTONE),id:13015166 , 159.74
Department of Health,Guys and St Thomas NHS Foundation Trust,26/06/2020,(81200) Medical Surgical Supplies & Equipment,(id:41935) PACCS,STOWOOD SCIENTIFIC INSTRUMENTS,id:13108114  ,6576.84
Department of Health,Guys and St Thomas NHS Foundation Trust,05/06/2020,(81255) Medical Surgical Supplies & Equipment,(id:41935) PACCS,NHS SUPPLY CHAIN (MAIDSTONE),id:13015166    ,   3.62
Department of Health,Guys and St Thomas NHS Foundation Trust,05/06/2020,(81000) Surgical Appliances,(id:41935) PACCS,TALAR MADE ORTHOTICS LTD,id:13057403 , 557.10
Department of Health,Guys and St Thomas NHS Foundation Trust,26/06/2020,(81000) Surgical Appliances,(id:41935) PACCS,BESPOKE PROSTHETICS AND ORTHOTICS LTD,id:13114074   , 634.31
Department of Health,Guys and St Thomas NHS Foundation Trust,05/06/2020,(81700) Lab Equipment Purchase,(id:41935) PACCS,NHS SUPPLY CHAIN (MAIDSTONE),id:12997767    ,  24.52
Department of Health,Guys and St Thomas NHS Foundation Trust,19/06/2020,(89270) Establishment,(id:2729419) PACCS,KINGS COLLEGE LONDON:03529700,id:13102634,    60913.22
Department of Health,Guys and St Thomas NHS Foundation Trust,05/06/2020,(82800) Bedding & Linen,(id:4620419) PACCS,NHS SUPPLY CHAIN (MAIDSTONE),id:13015166    ,   9.60
Department of Health,Guys and St Thomas NHS Foundation Trust,05/06/2020,(81200) Medical Surgical Supplies & Equipment,(id:4620419) PACCS,NHS SUPPLY CHAIN (MAIDSTONE),id:13015166  ,    19603.06
Department of Health,Guys and St Thomas NHS Foundation Trust,05/06/2020,(81200) Medical Surgical Supplies & Equipment,(id:4620419) PACCS,SQUADRON MEDICAL LTD,id:12981144, 924.00
Department of Health,Guys and St Thomas NHS Foundation Trust,19/06/2020,(81400) Medical Surgical Supplies & Equipment,(id:3135419) PACCS,HAMILTON MEDICAL UK (A DIVISION OF HAMILTON SALES & SERVICE UK LTD),id:13099275   ,1428.00
Department of Health,Guys and St Thomas NHS Foundation Trust,12/06/2020,(81200) Medical Surgical Supplies & Equipment,(id:1842421) PACCS,JOHNSON & JOHNSON MEDICAL LTD,id:13049856 , 521.03
Department of Health,Guys and St Thomas NHS Foundation Trust,05/06/2020,(81100) Dressings,(id:1842421) PACCS,NHS SUPPLY CHAIN (MAIDSTONE),id:13025177, 205.03
Department of Health,Guys and St Thomas NHS Foundation Trust,19/06/2020,(81400) Medical Surgical Supplies & Equipment,(id:863419) PACCS,MAQUET LIMITED,id:13087495  ,9220.68
Department of Health,Guys and St Thomas NHS Foundation Trust,05/06/2020,(81200) Medical Surgical Supplies & Equipment,(id:863419) PACCS,MEDTRONIC LTD,id:13041664   ,3060.00
Department of Health,Guys and St Thomas NHS Foundation Trust,05/06/2020,(81200) Medical Surgical Supplies & Equipment,(id:863419) PACCS,MAQUET LIMITED,id:13063395  ,    11280.00
Department of Health,Guys and St Thomas NHS Foundation Trust,12/06/2020,(81200) Medical Surgical Supplies & Equipment,(id:863419) PACCS,MEDTRONIC LTD,id:13059634   , 612.00
Department of Health,Guys and St Thomas NHS Foundation Trust,05/06/2020,(83400) Office Equipment,(id:863419) PACCS,NHS SUPPLY CHAIN (MAIDSTONE),id:13015166    ,  70.74
Department of Health,Guys and St Thomas NHS Foundation Trust,05/06/2020,(82000) Provisions & Kitchens,(id:41928) PACCS,NHS SUPPLY CHAIN (MAIDSTONE),id:12997767,  26.89
Department of Health,Guys and St Thomas NHS Foundation Trust,05/06/2020,(82800) Bedding & Linen,(id:41928) PACCS,NHS SUPPLY CHAIN (MAIDSTONE),id:12997767 ,1373.67
Department of Health,Guys and St Thomas NHS Foundation Trust,05/06/2020,(81100) Dressings,(id:41928) PACCS,NHS SUPPLY CHAIN (MAIDSTONE),id:13015166  ,1567.96
Department of Health,Guys and St Thomas NHS Foundation Trust,19/06/2020,(81200) Medical Surgical Supplies & Equipment,(id:41928) PACCS,STRYKER UK LTD,id:13103105   , 576.00
Department of Health,Guys and St Thomas NHS Foundation Trust,19/06/2020,(81200) Medical Surgical Supplies & Equipment,(id:41928) PACCS,STRYKER UK LTD,id:13103110   , 576.00
Department of Health,Guys and St Thomas NHS Foundation Trust,19/06/2020,(81200) Medical Surgical Supplies & Equipment,(id:41928) PACCS,STRYKER UK LTD,id:13103111   , 576.00
Department of Health,Guys and St Thomas NHS Foundation Trust,19/06/2020,(81200) Medical Surgical Supplies & Equipment,(id:41928) PACCS,STRYKER UK LTD,id:13103176   , 576.00
Department of Health,Guys and St Thomas NHS Foundation Trust,19/06/2020,(81200) Medical Surgical Supplies & Equipment,(id:41928) PACCS,KAPITEX HEALTHCARE LTD,id:13086737,2925.12
Department of Health,Guys and St Thomas NHS Foundation Trust,19/06/2020,(81200) Medical Surgical Supplies & Equipment,(id:41928) PACCS,FRESENIUS MEDICAL CARE RENAL SERVICES LT,id:13086440  , 912.00
Department of Health,Guys and St Thomas NHS Foundation Trust,12/06/2020,(81200) Medical Surgical Supplies & Equipment,(id:41928) PACCS,KAPITEX HEALTHCARE LTD,id:13064175, 877.58
Department of Health,Guys and St Thomas NHS Foundation Trust,26/06/2020,(81200) Medical Surgical Supplies & Equipment,(id:41928) PACCS,KAPITEX HEALTHCARE LTD,id:13102600, 905.78
Department of Health,Guys and St Thomas NHS Foundation Trust,26/06/2020,(81200) Medical Surgical Supplies & Equipment,(id:41928) PACCS,BOC LTD :02107500,id:13071506,3076.32
Department of Health,Guys and St Thomas NHS Foundation Trust,05/06/2020,(81400) Medical Surgical Supplies & Equipment,(id:41928) PACCS,ALUNG TECHNOLOGIES,id:13057279    ,6000.00
Department of Health,Guys and St Thomas NHS Foundation Trust,05/06/2020,(50552) Qualified Nursing Staff,(id:41928) PACCS,MSI GROUP LTD,id:13070309   , 323.03
Department of Health,Guys and St Thomas NHS Foundation Trust,05/06/2020,(50552) Qualified Nursing Staff,(id:41928) PACCS,CONTINENTAL NURSE LTD,id:13057776,2399.68
Department of Health,Guys and St Thomas NHS Foundation Trust,05/06/2020,(50552) Qualified Nursing Staff,(id:41928) PACCS,GLOBE LOCUMS LTD,id:13070351, 690.51
Department of Health,Guys and St Thomas NHS Foundation Trust,12/06/2020,(83420) Office Equipment,(id:41928) PACCS,MANUTAN UK,id:13064915   ,    -1845.00
Department of Health,Guys and St Thomas NHS Foundation Trust,05/06/2020,(50522) Unqualified Nursing Staff,(id:41928) PACCS,CARE PROVIDERS HEALTHCARE,id:13070341    , 613.09
Department of Health,Guys and St Thomas NHS Foundation Trust,05/06/2020,(80150) Drug Costs,(id:41928) PACCS,NHS SUPPLY CHAIN (MAIDSTONE),id:12997767 ,1296.00
Department of Health,Guys and St Thomas NHS Foundation Trust,05/06/2020,(83765) Rent,(id:41928) PACCS,OMNICELL LTD,id:13057439   ,1094.00
Department of Health,Guys and St Thomas NHS Foundation Trust,05/06/2020,(89570) Other – Other Operating Expenditure,(id:41928) PACCS,CDP  PRINT MANAGEMENT,id:13059894  ,1681.20
Department of Health,Guys and St Thomas NHS Foundation Trust,05/06/2020,(81225) Medical Surgical Supplies & Equipment,(id:41928) PACCS,NHS SUPPLY CHAIN (MAIDSTONE),id:12997767    ,1086.32
Department of Health,Guys and St Thomas NHS Foundation Trust,05/06/2020,(81700) Lab Equipment Purchase,(id:41928) PACCS,NHS SUPPLY CHAIN (MAIDSTONE),id:13015166    , 115.75
Department of Health,Guys and St Thomas NHS Foundation Trust,05/06/2020,(50562) Qualified Nursing Staff,(id:41928) PACCS,CONTINENTAL NURSE LTD,id:13071415,8587.93
Department of Health,Guys and St Thomas NHS Foundation Trust,05/06/2020,(81700) Lab Equipment Purchase,(id:41927) PACCS,NHS SUPPLY CHAIN (MAIDSTONE),id:13025177    ,  19.00
Department of Health,Guys and St Thomas NHS Foundation Trust,25/06/2020,(84600) Establishment,(id:41919) PACCS,CLARITY TRAVEL MANAGEMENT,id:13115075 , -38.08
Department of Health,Guys and St Thomas NHS Foundation Trust,05/06/2020,(81400) Medical Surgical Supplies & Equipment,(id:41864) PACCS,NHS SUPPLY CHAIN ( CAPITAL FUND ONLY),id:13012080,    46322.51
Department of Health,Guys and St Thomas NHS Foundation Trust,12/06/2020,(89000) Other - Training courses and conferences,(id:2051419) Hosted Services,LONDON AMBULANCE SERVICE NHS TRUST,id:13079774   ,8177.53
Department of Health,Guys and St Thomas NHS Foundation Trust,12/06/2020,(89595) Non-Healthcare from Foundation Trusts,(id:987420) Hosted Services,SOUTH LONDON AND MAUDSLEY NHS FOUNDATION TRUST,id:13063074,   -85027.00
Department of Health,Guys and St Thomas NHS Foundation Trust,05/06/2020,(89280) Other - Consultancy costs,(id:987420) Hosted Services,REDDITCH BOROUGH COUNCIL,id:13061258    ,3584.00
Department of Health,Guys and St Thomas NHS Foundation Trust,19/06/2020,(89280) Other - Consultancy costs,(id:987420) Hosted Services,REVEALING REALITY,id:13105174 ,    22466.00
Department of Health,Guys and St Thomas NHS Foundation Trust,25/06/2020,(84600) Establishment,(id:1002420) Hosted Services,CLARITY TRAVEL MANAGEMENT,id:13115075    ,-882.42
Department of Health,Guys and St Thomas NHS Foundation Trust,05/06/2020,(50200) Consultants,(id:221411) Hosted Services,KINGS COLLEGE LONDON:03529700,id:13056532   ,    10231.48
Department of Health,Guys and St Thomas NHS Foundation Trust,12/06/2020,(83630) IT Costs,(id:42814) Communications,POPPULO,id:13078888,3010.69
Department of Health,Guys and St Thomas NHS Foundation Trust,05/06/2020,(81200) Medical Surgical Supplies & Equipment,(id:49447) Debtors (I&E Rechargable),NHS SUPPLY CHAIN (MAIDSTONE),id:12997767    ,1704.55
Department of Health,Guys and St Thomas NHS Foundation Trust,05/06/2020,(81100) Dressings,(id:49447) Debtors (I&E Rechargable),NHS SUPPLY CHAIN (MAIDSTONE),id:12997767  ,   1.63
Department of Health,Guys and St Thomas NHS Foundation Trust,26/06/2020,(84400) Transport,(id:42579) Central Services,STARCROSS TRADING LTD T/A BEARS,id:13111174   ,3250.60
Department of Health,Guys and St Thomas NHS Foundation Trust,26/06/2020,(84400) Transport,(id:42579) Central Services,STARCROSS TRADING LTD T/A BEARS,id:13111143   ,    16100.00
Department of Health,Guys and St Thomas NHS Foundation Trust,05/06/2020,(84400) Transport,(id:42579) Central Services,STARCROSS TRADING LTD T/A BEARS,id:13066514   ,    20520.00
Department of Health,Guys and St Thomas NHS Foundation Trust,05/06/2020,(84400) Transport,(id:42579) Central Services,STARCROSS TRADING LTD T/A BEARS,id:13063567   ,    24300.00
Department of Health,Guys and St Thomas NHS Foundation Trust,05/06/2020,(84400) Transport,(id:42579) Central Services,STARCROSS TRADING LTD T/A BEARS,id:13067326   ,    17558.14
Department of Health,Guys and St Thomas NHS Foundation Trust,12/06/2020,(84400) Transport,(id:42579) Central Services,STARCROSS TRADING LTD T/A BEARS,id:13079158   ,    11500.13
Department of Health,Guys and St Thomas NHS Foundation Trust,12/06/2020,(84400) Transport,(id:42579) Central Services,STARCROSS TRADING LTD T/A BEARS,id:13079074   ,    14880.00
Department of Health,Guys and St Thomas NHS Foundation Trust,19/06/2020,(84400) Transport,(id:42579) Central Services,STARCROSS TRADING LTD T/A BEARS,id:13095575   , 846.50
Department of Health,Guys and St Thomas NHS Foundation Trust,19/06/2020,(84400) Transport,(id:42579) Central Services,DATASWIFT S.E. LTD(FOREST HILL RADIO CARS),id:13094960  ,4027.00
Department of Health,Guys and St Thomas NHS Foundation Trust,19/06/2020,(84400) Transport,(id:42579) Central Services,STARCROSS TRADING LTD T/A BEARS,id:13095354   ,    15723.00
Department of Health,Guys and St Thomas NHS Foundation Trust,05/06/2020,(84100) Transport,(id:42579) Central Services,OMD AUTOS LIMITED,id:13062676  ,1175.00
Department of Health,Guys and St Thomas NHS Foundation Trust,19/06/2020,(84100) Transport,(id:42579) Central Services,OMD AUTOS LIMITED,id:13095174  , 250.00
Department of Health,Guys and St Thomas NHS Foundation Trust,19/06/2020,(84100) Transport,(id:42579) Central Services,OMD AUTOS LIMITED,id:13095074  ,1070.00
Department of Health,Guys and St Thomas NHS Foundation Trust,19/06/2020,(82400) Contract Hotel Services,(id:42556) Central Services,JOHNSONS STALBRIDGE LINEN SERVICES,id:13091895 ,2171.40
Department of Health,Guys and St Thomas NHS Foundation Trust,12/06/2020,(83880) Building & Engineering,(id:42556) Central Services,TRAVIS PERKINS TRADING CO LTD,id:13082511  , 745.04
Department of Health,Guys and St Thomas NHS Foundation Trust,19/06/2020,(83880) Building & Engineering,(id:42559) Central Services,WCS GROUP,id:12827487  ,2204.40
Department of Health,Guys and St Thomas NHS Foundation Trust,05/06/2020,(82000) Provisions & Kitchens,(id:42535) Central Services,NHS SUPPLY CHAIN (MAIDSTONE),id:13015166    , 207.75
Department of Health,Guys and St Thomas NHS Foundation Trust,12/06/2020,(82000) Provisions & Kitchens,(id:42535) Central Services,HANDMADE SPECIALITY PRODUCTS LTD,id:13076534, 525.00
Department of Health,Guys and St Thomas NHS Foundation Trust,26/06/2020,(83400) Office Equipment,(id:42535) Central Services,NUTRIPACK LTD,id:13115076    ,1506.22
Department of Health,Guys and St Thomas NHS Foundation Trust,19/06/2020,(82000) Provisions & Kitchens,(id:42526) Central Services,PORDUM FOODS LTD T/A BON APPETIT,id:13105491, 691.20
Department of Health,Guys and St Thomas NHS Foundation Trust,05/06/2020,(84500) Establishment,(id:42526) Central Services,NHS SUPPLY CHAIN (MAIDSTONE),id:13025177  ,   5.62
Department of Health,Guys and St Thomas NHS Foundation Trust,05/06/2020,(82400) Contract Hotel Services,(id:42538) Central Services,ELIS UK LIMITED,id:13066329,1800.51
Department of Health,Guys and St Thomas NHS Foundation Trust,12/06/2020,(83880) Building & Engineering,(id:2719419) Asset Management,MAITLAND ENGINEERING LTD,id:13083034, 570.00
Department of Health,Guys and St Thomas NHS Foundation Trust,05/06/2020,(83755) Rental under Operating Lease,(id:2096419) Asset Management,GREAT PORTLAND ESTATES SERVICES LIMITED(FORMERLYB & HS MANAGEMENT LTD),id:13066283   ,   302372.70
Department of Health,Guys and St Thomas NHS Foundation Trust,05/06/2020,(83110) Energy Costs,(id:1552419) Asset Management,BRITISH GAS BUSINESS:70299300,id:13066554, 884.82
Department of Health,Guys and St Thomas NHS Foundation Trust,26/06/2020,(83760) Rent,(id:779419) Asset Management,LONDON BOROUGH OF SOUTHWARK:04102500,id:13104634  ,    91934.72
Department of Health,Guys and St Thomas NHS Foundation Trust,05/06/2020,(83880) Building & Engineering,(id:42624) Asset Management,HOWELL BROOKS & PARTNERS LLP,id:13061754   ,    12500.00
Department of Health,Guys and St Thomas NHS Foundation Trust,12/06/2020,(89120) Other - Legal fees,(id:42624) Asset Management,BEACHCROFT LLP OFFICE ACCOUNT,id:13086383 , 748.55
Department of Health,Guys and St Thomas NHS Foundation Trust,19/06/2020,(89595) Non-Healthcare from Foundation Trusts,(id:590616) Essentia Community Services,SOUTH LONDON AND MAUDSLEY NHS FOUNDATION TRUST,id:12918174   ,2537.20
Department of Health,Guys and St Thomas NHS Foundation Trust,05/06/2020,(81200) Medical Surgical Supplies & Equipment,(id:492412) Essentia Community Services,NHS SUPPLY CHAIN (MAIDSTONE),id:13025177 ,  63.30
Department of Health,Guys and St Thomas NHS Foundation Trust,12/06/2020,(83765) Rent,(id:492412) Essentia Community Services,NHS PROPERTY SERVICES,id:13086337 ,4432.37
Department of Health,Guys and St Thomas NHS Foundation Trust,12/06/2020,(84000) Transport,(id:492412) Essentia Community Services,ALLSTAR BUSINESS SOLUTIONS LTD (ARVAL),id:13081854    ,  58.93
Department of Health,Guys and St Thomas NHS Foundation Trust,05/06/2020,(83765) Rent,(id:1627425) Essentia Community Services,COMMUNITY HEALTH PARTNERSHIPS,id:13068920  ,    10022.54
Department of Health,Guys and St Thomas NHS Foundation Trust,05/06/2020,(83765) Rent,(id:1627423) Essentia Community Services,COMMUNITY HEALTH PARTNERSHIPS,id:13058723  ,5653.81
Department of Health,Guys and St Thomas NHS Foundation Trust,12/06/2020,(83765) Rent,(id:1627421) Essentia Community Services,NHS PROPERTY SERVICES,id:13086322,    18471.80
Department of Health,Guys and St Thomas NHS Foundation Trust,12/06/2020,(83710) Rates,(id:1627419) Essentia Community Services,NHS PROPERTY SERVICES,id:13086264    ,9933.90
Department of Health,Guys and St Thomas NHS Foundation Trust,05/06/2020,(83340) Premises Services,(id:1116419) Essentia Community Services,BYWATERS (LEYTON) LTD,id:13071702  , 580.04
Department of Health,Guys and St Thomas NHS Foundation Trust,12/06/2020,(83343) Premises Services,(id:1116419) Essentia Community Services,BYWATERS (LEYTON) LTD,id:13085416  , 791.78
Department of Health,Guys and St Thomas NHS Foundation Trust,05/06/2020,(83755) Rental under Operating Lease,(id:1627433) Essentia Community Services,COMMUNITY HEALTH PARTNERSHIPS,id:13057094   ,    89013.77
Department of Health,Guys and St Thomas NHS Foundation Trust,19/06/2020,(83755) Rental under Operating Lease,(id:1116427) Essentia Community Services,LONDON BOROUGH OF SOUTHWARK:04102500,id:13086419 ,    19500.00
Department of Health,Guys and St Thomas NHS Foundation Trust,26/06/2020,(83110) Energy Costs,(id:492480) Essentia Commercial,BRITISH GAS BUSINESS:70299300,id:13116414   ,1186.72
Department of Health,Guys and St Thomas NHS Foundation Trust,26/06/2020,(83110) Energy Costs,(id:492480) Essentia Commercial,BRITISH GAS BUSINESS:70299300,id:13118294   ,1846.84
Department of Health,Guys and St Thomas NHS Foundation Trust,26/06/2020,(83110) Energy Costs,(id:492480) Essentia Commercial,BRITISH GAS BUSINESS:70299300,id:13117215   ,1950.85
Department of Health,Guys and St Thomas NHS Foundation Trust,05/06/2020,(83110) Energy Costs,(id:492480) Essentia Commercial,EDF ENERGY,id:13061389  ,1472.41
Department of Health,Guys and St Thomas NHS Foundation Trust,19/06/2020,(83120) Energy Costs,(id:492479) Essentia Commercial,CORONA ENERGY RETAIL 4 LTD,id:13099606 ,2534.05
Department of Health,Guys and St Thomas NHS Foundation Trust,26/06/2020,(83210) Water & Sewerage,(id:492479) Essentia Commercial,CASTLE WATER LIMITED,id:13118794   ,9539.67
Department of Health,Guys and St Thomas NHS Foundation Trust,05/06/2020,(83110) Energy Costs,(id:492478) Essentia Commercial,EDF ENERGY,id:13061393  ,1905.19
Department of Health,Guys and St Thomas NHS Foundation Trust,12/06/2020,(83343) Premises Services,(id:492478) Essentia Commercial,VEOLIA ES CLEANAWAY UK LTD,id:13072894 ,  80.72
Department of Health,Guys and St Thomas NHS Foundation Trust,12/06/2020,(83210) Water & Sewerage,(id:492499) Essentia Commercial,CLAPHAM FAMILY PRACTICE,id:13085415, 268.19
Department of Health,Guys and St Thomas NHS Foundation Trust,12/06/2020,(83880) Building & Engineering,(id:492606) Essentia Infrastructure,CITY ELECTRICAL FACTORS LTD,id:13041555 , 492.96
Department of Health,Guys and St Thomas NHS Foundation Trust,12/06/2020,(83880) Building & Engineering,(id:492601) Essentia Infrastructure,ALL LONDON GLASS UK LTD,id:13032486, 495.00
Department of Health,Guys and St Thomas NHS Foundation Trust,26/06/2020,(83881) Building & Engineering,(id:492601) Essentia Infrastructure,SI PUMPS LTD,id:13105318 , 810.90
Department of Health,Guys and St Thomas NHS Foundation Trust,12/06/2020,(55632) Maintenance Staff,(id:492418) Essentia Infrastructure,MORGAN HUNT UK LTD,id:13070354, 843.30
Department of Health,Guys and St Thomas NHS Foundation Trust,19/06/2020,(83881) Building & Engineering,(id:2528419) Essentia Infrastructure,LONDON & SURREY ROOFING LTD,id:13105309, 522.00
Department of Health,Guys and St Thomas NHS Foundation Trust,05/06/2020,(83400) Office Equipment,(id:492528) Essentia Infrastructure,REDLAND CONSTRUCTION LIMITED,id:13061279 ,1020.00
Department of Health,Guys and St Thomas NHS Foundation Trust,19/06/2020,(83210) Water & Sewerage,(id:42627) Essentia Infrastructure,CASTLE WATER LIMITED,id:13099883,    31327.08
Department of Health,Guys and St Thomas NHS Foundation Trust,05/06/2020,(83110) Energy Costs,(id:42627) Essentia Infrastructure,EDF ENERGY,id:13065554    ,   356608.97
Department of Health,Guys and St Thomas NHS Foundation Trust,26/06/2020,(83880) Building & Engineering,(id:4628419) Essentia Infrastructure,G&M BUILDING CONTRACTORS ESSEX LTD,id:13094671   ,2160.00
Department of Health,Guys and St Thomas NHS Foundation Trust,12/06/2020,(83880) Building & Engineering,(id:4628419) Essentia Infrastructure,ACORN MECHANICAL PIPEWORK SERVICES LTD - ACORM MPS,id:13075580  ,5385.32
Department of Health,Guys and St Thomas NHS Foundation Trust,05/06/2020,(83881) Building & Engineering,(id:2507419) Essentia Infrastructure,SCHNEIDER ELECTRIC,id:13057315    ,2528.67
Department of Health,Guys and St Thomas NHS Foundation Trust,05/06/2020,(83881) Building & Engineering,(id:2507419) Essentia Infrastructure,ZURICH INSURANCE COMPANY,id:13024034   ,4995.94
Department of Health,Guys and St Thomas NHS Foundation Trust,05/06/2020,(83400) Office Equipment,(id:1270419) Essentia Infrastructure,EDMUNDSON ELECTRICAL LTD,id:13067314    ,1968.00
Department of Health,Guys and St Thomas NHS Foundation Trust,26/06/2020,(83881) Building & Engineering,(id:197407) Essentia Infrastructure,G K WOOD & SON LTD (T/A FULBOURN MEDICAL),id:13078061  ,5662.00
Department of Health,Guys and St Thomas NHS Foundation Trust,19/06/2020,(83880) Building & Engineering,(id:42634) Essentia Infrastructure,MAITLAND ENGINEERING LTD,id:13105056, 679.00
Department of Health,Guys and St Thomas NHS Foundation Trust,19/06/2020,(55642) Maintenance Staff,(id:42633) Essentia Infrastructure,MORGAN HUNT UK LTD,id:13105348 , 966.60
Department of Health,Guys and St Thomas NHS Foundation Trust,19/06/2020,(55642) Maintenance Staff,(id:42633) Essentia Infrastructure,MORGAN HUNT UK LTD,id:13105340 , 966.60
Department of Health,Guys and St Thomas NHS Foundation Trust,19/06/2020,(55632) Maintenance Staff,(id:42633) Essentia Infrastructure,MORGAN HUNT UK LTD,id:13052111 , 770.40
Department of Health,Guys and St Thomas NHS Foundation Trust,12/06/2020,(83880) Building & Engineering,(id:42632) Essentia Infrastructure,RSE BUILDING SERVICES LTD,id:13064995    ,7550.00
Department of Health,Guys and St Thomas NHS Foundation Trust,12/06/2020,(83400) Office Equipment,(id:42631) Essentia Infrastructure,RICHMONDS OF LONDON LTD,id:13067204  , 651.00
Department of Health,Guys and St Thomas NHS Foundation Trust,26/06/2020,(83400) Office Equipment,(id:42631) Essentia Infrastructure,RICHMONDS OF LONDON LTD,id:13121454  , 993.28
Department of Health,Guys and St Thomas NHS Foundation Trust,19/06/2020,(83400) Office Equipment,(id:42631) Essentia Infrastructure,RICHMONDS OF LONDON LTD,id:13092014  , 811.20
Department of Health,Guys and St Thomas NHS Foundation Trust,05/06/2020,(83880) Building & Engineering,(id:42631) Essentia Infrastructure,BURCH DRAINAGE LTD,id:13045237 ,1577.00
Department of Health,Guys and St Thomas NHS Foundation Trust,26/06/2020,(83880) Building & Engineering,(id:42631) Essentia Infrastructure,THERMAL TECH SERVICES LIMITED,id:13086581,1766.11
Department of Health,Guys and St Thomas NHS Foundation Trust,19/06/2020,(83880) Building & Engineering,(id:42631) Essentia Infrastructure,TRANE UK LTD (FORMERLY INGERSOLL-RAND UK LTD),id:13105494    ,5429.00
Department of Health,Guys and St Thomas NHS Foundation Trust,26/06/2020,(83880) Building & Engineering,(id:42630) Essentia Infrastructure,MAITLAND ENGINEERING LTD,id:12969438,1124.40
Department of Health,Guys and St Thomas NHS Foundation Trust,26/06/2020,(83880) Building & Engineering,(id:4629419) Essentia Infrastructure,PJM-HS CONSULTING LTD,id:13112395 ,3909.53
Department of Health,Guys and St Thomas NHS Foundation Trust,26/06/2020,(83400) Office Equipment,(id:1271419) Essentia Infrastructure,RICHMONDS OF LONDON LTD,id:12944569, 706.86
Department of Health,Guys and St Thomas NHS Foundation Trust,26/06/2020,(83400) Office Equipment,(id:1271419) Essentia Infrastructure,EDWARDES BROS (DULWICH) LTD,id:13105205 , 657.00
Department of Health,Guys and St Thomas NHS Foundation Trust,12/06/2020,(83881) Building & Engineering,(id:197406) Essentia Infrastructure,ZURICH INSURANCE COMPANY,id:13023994    ,    19405.64
Department of Health,Guys and St Thomas NHS Foundation Trust,05/06/2020,(83880) Building & Engineering,(id:42649) Essentia Infrastructure,L.I.T.S. LTD,id:13057427  ,1950.00
Department of Health,Guys and St Thomas NHS Foundation Trust,05/06/2020,(83400) Office Equipment,(id:42643) Essentia Infrastructure,RICHMONDS OF LONDON LTD,id:12999454  ,1008.00
Department of Health,Guys and St Thomas NHS Foundation Trust,05/06/2020,(83880) Building & Engineering,(id:42643) Essentia Infrastructure,MAITLAND ENGINEERING LTD,id:13061095, 567.00
Department of Health,Guys and St Thomas NHS Foundation Trust,26/06/2020,(82600) Uniforms & Clothing,(id:42642) Essentia Infrastructure,1ST BIOTECH LIMITED,id:13113425   ,6400.00
Department of Health,Guys and St Thomas NHS Foundation Trust,19/06/2020,(83400) Office Equipment,(id:42642) Essentia Infrastructure,RICHMONDS OF LONDON LTD,id:13094996  ,1501.50
Department of Health,Guys and St Thomas NHS Foundation Trust,12/06/2020,(83880) Building & Engineering,(id:42640) Essentia Infrastructure,ELITE ENTRANCE SYSTEMS LTD,id:13030344   ,3135.00
Department of Health,Guys and St Thomas NHS Foundation Trust,26/06/2020,(83880) Building & Engineering,(id:42638) Essentia Infrastructure,EQUIAX LTD,id:13098835    ,6231.00
Department of Health,Guys and St Thomas NHS Foundation Trust,26/06/2020,(83880) Building & Engineering,(id:42638) Essentia Infrastructure,TANGENT ELECTRICAL LTD,id:13106894  ,9906.25
Department of Health,Guys and St Thomas NHS Foundation Trust,19/06/2020,(83880) Building & Engineering,(id:42638) Essentia Infrastructure,TRANE UK LTD (FORMERLY INGERSOLL-RAND UK LTD),id:13065921    , 550.00
Department of Health,Guys and St Thomas NHS Foundation Trust,19/06/2020,(83880) Building & Engineering,(id:42638) Essentia Infrastructure,TESGL LTD T/A SSE ENTERPRISE ENERGY SOLUTIONS,id:13050914    ,2099.50
Department of Health,Guys and St Thomas NHS Foundation Trust,12/06/2020,(55652) Maintenance Staff,(id:42637) Essentia Infrastructure,MORGAN HUNT UK LTD,id:13082089 ,2567.09
Department of Health,Guys and St Thomas NHS Foundation Trust,26/06/2020,(83350) Premises Services,(id:2614419) Guys Site services,CORPS SECURITY,id:13114808   ,5670.72
Department of Health,Guys and St Thomas NHS Foundation Trust,19/06/2020,(82000) Provisions & Kitchens,(id:373411) Guys Site services,PELICAN PROCUREMENT SERVICES LTD,id:13098857  ,2435.05
Department of Health,Guys and St Thomas NHS Foundation Trust,12/06/2020,(83400) Office Equipment,(id:42545) Guys Site services,CITY & KENT CLEANING LTD,id:13071759 , 522.00
Department of Health,Guys and St Thomas NHS Foundation Trust,12/06/2020,(82600) Uniforms & Clothing,(id:42545) Guys Site services,1ST BIOTECH LIMITED,id:13086315   , 520.44
Department of Health,Guys and St Thomas NHS Foundation Trust,12/06/2020,(81400) Medical Surgical Supplies & Equipment,(id:42585) STH Site Services,SHEPHERD HOSPITAL EQUIPMENT LTD.,id:13082657   , 609.25
Department of Health,Guys and St Thomas NHS Foundation Trust,05/06/2020,(83400) Office Equipment,(id:42544) STH Site Services,OPRA PACKAGING LTD,id:13065654   ,2156.94
Department of Health,Guys and St Thomas NHS Foundation Trust,19/06/2020,(55422) Ancillary Staff,(id:42544) STH Site Services,REED EMPLOYMENT PLC,id:13105342   , 777.36
Department of Health,Guys and St Thomas NHS Foundation Trust,26/06/2020,(55422) Ancillary Staff,(id:42544) STH Site Services,REED EMPLOYMENT PLC,id:13117561   , 671.86
Department of Health,Guys and St Thomas NHS Foundation Trust,05/06/2020,(83880) Building & Engineering,(id:42664) STH Site Services,GRANTLEIGH LTD,id:13051697 ,2895.00
Department of Health,Guys and St Thomas NHS Foundation Trust,05/06/2020,(83880) Building & Engineering,(id:42664) STH Site Services,GRANTLEIGH LTD,id:13051714 ,2920.00
Department of Health,Guys and St Thomas NHS Foundation Trust,19/06/2020,(83880) Building & Engineering,(id:42664) STH Site Services,CITY & KENT CLEANING LTD,id:13045799 ,2654.00
Department of Health,Guys and St Thomas NHS Foundation Trust,12/06/2020,(83880) Building & Engineering,(id:42664) STH Site Services,AMTICO FLOORING INSTALLATIONS LTD,id:13077516  ,1850.00
Department of Health,Guys and St Thomas NHS Foundation Trust,12/06/2020,(83880) Building & Engineering,(id:42664) STH Site Services,GRANTLEIGH LTD,id:12993085 , 920.00
Department of Health,Guys and St Thomas NHS Foundation Trust,12/06/2020,(83880) Building & Engineering,(id:42664) STH Site Services,GRANTLEIGH LTD,id:13057096 , 530.00
Department of Health,Guys and St Thomas NHS Foundation Trust,12/06/2020,(83880) Building & Engineering,(id:42664) STH Site Services,MATRIX A I LTD,id:13069160 , 800.00
Department of Health,Guys and St Thomas NHS Foundation Trust,12/06/2020,(83880) Building & Engineering,(id:42664) STH Site Services,MATRIX A I LTD,id:13063559 ,1435.80
Department of Health,Guys and St Thomas NHS Foundation Trust,26/06/2020,(83400) Office Equipment,(id:42548) STH Site Services,OFFICE DEPOT UK LTD,id:13026623  ,5357.81
Department of Health,Guys and St Thomas NHS Foundation Trust,12/06/2020,(83400) Office Equipment,(id:42548) STH Site Services,TP LEASING LTD,id:12993719  ,2114.23
Department of Health,Guys and St Thomas NHS Foundation Trust,12/06/2020,(83400) Office Equipment,(id:42548) STH Site Services,CITY & KENT CLEANING LTD,id:13071786  ,1462.20
Department of Health,Guys and St Thomas NHS Foundation Trust,19/06/2020,(83880) Building & Engineering,(id:42548) STH Site Services,BIOQUELL UK LTD,id:13075619,8500.00
Department of Health,Guys and St Thomas NHS Foundation Trust,12/06/2020,(83880) Building & Engineering,(id:42548) STH Site Services,CITY & KENT CLEANING LTD,id:13073734 ,9831.70
Department of Health,Guys and St Thomas NHS Foundation Trust,12/06/2020,(83880) Building & Engineering,(id:42548) STH Site Services,CITY & KENT CLEANING LTD,id:13073718 ,3461.10
Department of Health,Guys and St Thomas NHS Foundation Trust,12/06/2020,(83880) Building & Engineering,(id:42548) STH Site Services,CITY & KENT CLEANING LTD,id:13073721 ,    10008.00
Department of Health,Guys and St Thomas NHS Foundation Trust,05/06/2020,(82600) Uniforms & Clothing,(id:42599) Sterile Services,NHS SUPPLY CHAIN (MAIDSTONE),id:12997767 ,  36.48
Department of Health,Guys and St Thomas NHS Foundation Trust,05/06/2020,(83400) Office Equipment,(id:42599) Sterile Services,NHS SUPPLY CHAIN (MAIDSTONE),id:13025177    ,  25.68
Department of Health,Guys and St Thomas NHS Foundation Trust,26/06/2020,(84500) Establishment,(id:42599) Sterile Services,KINGFISHER LABELS LTD,id:13116581    ,1450.42
Department of Health,Guys and St Thomas NHS Foundation Trust,05/06/2020,(81400) Medical Surgical Supplies & Equipment,(id:42599) Sterile Services,NHS SUPPLY CHAIN (MAIDSTONE),id:13025177   , 261.40
Department of Health,Guys and St Thomas NHS Foundation Trust,25/06/2020,(84600) Establishment,(id:42599) Sterile Services,CLARITY TRAVEL MANAGEMENT,id:13115075,  51.60
Department of Health,Guys and St Thomas NHS Foundation Trust,12/06/2020,(81200) Medical Surgical Supplies & Equipment,(id:42599) Sterile Services,BELIMED  LIMITED,id:13069192,1091.47
Department of Health,Guys and St Thomas NHS Foundation Trust,05/06/2020,(83400) Office Equipment,(id:42576) Security & Waste Services,TERMINIX UK LTD (MITIE),id:13055010, 600.00
Department of Health,Guys and St Thomas NHS Foundation Trust,19/06/2020,(83400) Office Equipment,(id:42576) Security & Waste Services,TERMINIX UK LTD (MITIE),id:13090858,1217.00
Department of Health,Guys and St Thomas NHS Foundation Trust,19/06/2020,(84500) Establishment,(id:42576) Security & Waste Services,WYBONE LTD,id:13056606 ,5550.84
Department of Health,Guys and St Thomas NHS Foundation Trust,05/06/2020,(50562) Qualified Nursing Staff,(id:4642419) Chief Nurse,PULSE HEALTHCARE LIMITED,id:13057741    , 693.45
Department of Health,Guys and St Thomas NHS Foundation Trust,19/06/2020,(55052) Admin & Clerical,(id:42709) Finance Director,VENN GROUP LTD,id:13102715   ,5891.22
Department of Health,Guys and St Thomas NHS Foundation Trust,26/06/2020,(55082) Admin & Clerical,(id:42709) Finance Director,HAYS ACCOUNTANCY PERSONNEL,id:13117559 ,1535.28
Department of Health,Guys and St Thomas NHS Foundation Trust,26/06/2020,(55082) Admin & Clerical,(id:42709) Finance Director,INSIGHT EXECUTIVE GROUP LTD,id:13117593,1632.96
Department of Health,Guys and St Thomas NHS Foundation Trust,26/06/2020,(55082) Admin & Clerical,(id:42709) Finance Director,HAYS ACCOUNTANCY PERSONNEL,id:13117633 ,1853.40
Department of Health,Guys and St Thomas NHS Foundation Trust,19/06/2020,(55062) Admin & Clerical,(id:42709) Finance Director,VENN GROUP LTD,id:13102892   ,6427.08
Department of Health,Guys and St Thomas NHS Foundation Trust,26/06/2020,(89280) Other - Consultancy costs,(id:42709) Finance Director,RPC LLP,id:12979756 ,   -10586.60
Department of Health,Guys and St Thomas NHS Foundation Trust,19/06/2020,(55422) Ancillary Staff,(id:177407) Finance Director,MORGAN HUNT UK LTD,id:13102762    , 734.86
Department of Health,Guys and St Thomas NHS Foundation Trust,19/06/2020,(55422) Ancillary Staff,(id:177407) Finance Director,REED EMPLOYMENT PLC,id:13102809   , 573.12
Department of Health,Guys and St Thomas NHS Foundation Trust,19/06/2020,(55422) Ancillary Staff,(id:177407) Finance Director,REED EMPLOYMENT PLC,id:13102808   , 666.46
Department of Health,Guys and St Thomas NHS Foundation Trust,05/06/2020,(55422) Ancillary Staff,(id:177407) Finance Director,REED EMPLOYMENT PLC,id:13070503   , 716.40
Department of Health,Guys and St Thomas NHS Foundation Trust,12/06/2020,(55422) Ancillary Staff,(id:177407) Finance Director,REED EMPLOYMENT PLC,id:13081986   , 668.64
Department of Health,Guys and St Thomas NHS Foundation Trust,26/06/2020,(55422) Ancillary Staff,(id:177407) Finance Director,REED EMPLOYMENT PLC,id:13117530   , 697.30
Department of Health,Guys and St Thomas NHS Foundation Trust,12/06/2020,(89000) Other - Training courses and conferences,(id:847442) Finance Director,ELEVATE ASSOCIATES LIMITED,id:13068943 ,1200.00
Department of Health,Guys and St Thomas NHS Foundation Trust,19/06/2020,(89270) Establishment,(id:887425) Finance Director,HUMI ASIF LTD,id:13086579 ,4950.00
Department of Health,Guys and St Thomas NHS Foundation Trust,12/06/2020,(89110) Other - Insurance,(id:42702) Finance Director,NHS RESOLUTION (FORMERLY AS NHS LITIGATION AUTHORITY),id:13080134   ,    81049.70
Department of Health,Guys and St Thomas NHS Foundation Trust,05/06/2020,(89000) Other - Training courses and conferences,(id:40456) Finance Director,UNIVERSITY OF LONDON,id:13070516   ,1700.00
Department of Health,Guys and St Thomas NHS Foundation Trust,26/06/2020,(89595) Non-Healthcare from Foundation Trusts,(id:40456) Finance Director,MANCHESTER UNIVERSITY NHS FOUNDATION TRUST,id:11051975    ,1080.90
Department of Health,Guys and St Thomas NHS Foundation Trust,05/06/2020,(55122) Admin & Clerical,(id:40456) Finance Director,ALLEN LANE,id:13070246  ,    21600.00
Department of Health,Guys and St Thomas NHS Foundation Trust,05/06/2020,(88720) Other – Other Operating Expenditure,(id:40456) Finance Director,EDWARDS LIFESCIENCES LTD,id:13064754   , -34.20
Department of Health,Guys and St Thomas NHS Foundation Trust,12/06/2020,(81100) Dressings,(id:1238419) Finance Director,MALVERN MEDICAL DEVELOPMENTS LTD,id:13071583,7214.40
Department of Health,Guys and St Thomas NHS Foundation Trust,19/06/2020,(89270) Establishment,(id:42726) Human Resources,GB GROUP PLC,id:13094094    , 765.00
Department of Health,Guys and St Thomas NHS Foundation Trust,05/06/2020,(89270) Establishment,(id:42720) Human Resources,EE LIMITED,id:13070721 , 832.01
Department of Health,Guys and St Thomas NHS Foundation Trust,25/06/2020,(84600) Establishment,(id:3198419) Organisational Development,CLARITY TRAVEL MANAGEMENT,id:13115075   ,  19.88
Department of Health,Guys and St Thomas NHS Foundation Trust,12/06/2020,(84600) Establishment,(id:3198419) Organisational Development,INSPIRE AT ST PETER'S,id:13075052  ,1589.20
Department of Health,Guys and St Thomas NHS Foundation Trust,19/06/2020,(89000) Other - Training courses and conferences,(id:599412) Training and Education,OXFORD BROOKES UNIVERSITY,id:13102254 ,1020.00
Department of Health,Guys and St Thomas NHS Foundation Trust,12/06/2020,(89000) Other - Training courses and conferences,(id:42821) Training and Education,UNIVERSITY COLLEGE LONDON,id:12662716  , 700.00
Department of Health,Guys and St Thomas NHS Foundation Trust,05/06/2020,(50562) Qualified Nursing Staff,(id:42766) Occupational Health,OH MEDICAL RECRUITMENT,id:13043804,1620.60
Department of Health,Guys and St Thomas NHS Foundation Trust,05/06/2020,(50562) Qualified Nursing Staff,(id:42766) Occupational Health,OH MEDICAL RECRUITMENT,id:13043701,1665.00
Department of Health,Guys and St Thomas NHS Foundation Trust,05/06/2020,(81200) Medical Surgical Supplies & Equipment,(id:42773) Occupational Health,NHS SUPPLY CHAIN (MAIDSTONE),id:13025177,  71.60
Department of Health,Guys and St Thomas NHS Foundation Trust,21/06/2020,(89120) Other - Legal fees,(id:42757) Quality and Assurance,MINISTRY OF JUSTICE SHARED SERVICES CONNECTED LTD,id:13105914 ,    10794.59
Department of Health,Guys and St Thomas NHS Foundation Trust,21/06/2020,(89120) Other - Legal fees,(id:42757) Quality and Assurance,GSTT SUNDRY SUPPLIER,id:13100514,    13502.26
Department of Health,Guys and St Thomas NHS Foundation Trust,26/06/2020,(89120) Other - Legal fees,(id:42757) Quality and Assurance,HARRIS FOWLER SOLICITORS TAUNTON,id:13117474   ,4092.00
Department of Health,Guys and St Thomas NHS Foundation Trust,19/06/2020,(82000) Provisions & Kitchens,(id:42788) Medical Director,ZIP HEATERS (UK) T/A ZIP WATER,id:13095080  , 600.11
Department of Health,Guys and St Thomas NHS Foundation Trust,12/06/2020,(89000) Other - Training courses and conferences,(id:42779) Medical Director,KINGS COLLEGE LONDON:03529700,id:12930400    , 920.00
Department of Health,Guys and St Thomas NHS Foundation Trust,05/06/2020,(89000) Other - Training courses and conferences,(id:42779) Medical Director,KINGS COLLEGE LONDON:03529700,id:13053815    ,6112.00
Department of Health,Guys and St Thomas NHS Foundation Trust,05/06/2020,(81200) Medical Surgical Supplies & Equipment,(id:41841) Medical Director,NHS SUPPLY CHAIN (MAIDSTONE),id:12997767   , 305.93
Department of Health,Guys and St Thomas NHS Foundation Trust,12/06/2020,(89000) Other - Training courses and conferences,(id:41841) Medical Director,KINGS COLLEGE LONDON:03529700,id:13026186    ,6600.00
Department of Health,Guys and St Thomas NHS Foundation Trust,25/06/2020,(84600) Establishment,(id:661418) Medical Director,CLARITY TRAVEL MANAGEMENT,id:13115075    , 367.29
Department of Health,Guys and St Thomas NHS Foundation Trust,12/06/2020,(83630) IT Costs,(id:42711) Medical Director,3M HEALTH CARE LTD,id:10123731  ,1124.40
Department of Health,Guys and St Thomas NHS Foundation Trust,26/06/2020,(86300) Healthcare from non-NHS bodies,(id:1586419) R&D : NIHR,KINGSTON HOSPITAL NHS FOUNDATION TRUST,id:13121423    ,    84138.00
Department of Health,Guys and St Thomas NHS Foundation Trust,05/06/2020,(81275) Medical Surgical Supplies & Equipment,(id:2908428) R&D : NIHR,KINGS COLLEGE LONDON:03529700,id:12988270 ,5525.06
Department of Health,Guys and St Thomas NHS Foundation Trust,05/06/2020,(55070) Admin & Clerical,(id:2908420) R&D : NIHR,KINGS COLLEGE LONDON:03529700,id:12988270  ,6740.28
Department of Health,Guys and St Thomas NHS Foundation Trust,05/06/2020,(54070) Technical Officers,(id:2907433) R&D : NIHR,KINGS COLLEGE LONDON:03529700,id:12988270,4929.71
Department of Health,Guys and St Thomas NHS Foundation Trust,05/06/2020,(50570) Qualified Nursing Staff,(id:804419) R&D : NIHR,KINGS COLLEGE LONDON:03529700,id:12988270 ,4929.71
Department of Health,Guys and St Thomas NHS Foundation Trust,05/06/2020,(81275) Medical Surgical Supplies & Equipment,(id:2907431) R&D : NIHR,KINGS COLLEGE LONDON:03529700,id:12988270 ,5684.31
Department of Health,Guys and St Thomas NHS Foundation Trust,05/06/2020,(53280) Clinical Scientists,(id:2907426) R&D : NIHR,KINGS COLLEGE LONDON:03529700,id:12988270    ,6191.23
Department of Health,Guys and St Thomas NHS Foundation Trust,05/06/2020,(53260) Clinical Scientists,(id:2907423) R&D : NIHR,KINGS COLLEGE LONDON:03529700,id:12988270    ,4929.71
Department of Health,Guys and St Thomas NHS Foundation Trust,26/06/2020,(81700) Lab Equipment Purchase,(id:801419) R&D : NIHR,BECTON DICKINSON UK LTD,id:13111690   ,1006.20
Department of Health,Guys and St Thomas NHS Foundation Trust,05/06/2020,(81200) Medical Surgical Supplies & Equipment,(id:803458) R&D : NIHR,LONZA SALES AG,id:13071460  ,  42.00
Department of Health,Guys and St Thomas NHS Foundation Trust,19/06/2020,(81700) Lab Equipment Purchase,(id:803458) R&D : NIHR,BIOQUELL UK LTD,id:12809496 ,6768.30
Department of Health,Guys and St Thomas NHS Foundation Trust,11/06/2020,(81700) Lab Equipment Purchase,(id:803458) R&D : NIHR,ORIGEN BIOMEDICAL INC,id:13077419,2478.96
Department of Health,Guys and St Thomas NHS Foundation Trust,05/06/2020,(55080) Admin & Clerical,(id:2908438) R&D : NIHR,KINGS COLLEGE LONDON:03529700,id:12988270  ,    10546.43
Department of Health,Guys and St Thomas NHS Foundation Trust,05/06/2020,(81700) Lab Equipment Purchase,(id:803491) R&D : NIHR,WOLF LABORATORIES LTD,id:13065918, 672.00
Department of Health,Guys and St Thomas NHS Foundation Trust,19/06/2020,(81400) Medical Surgical Supplies & Equipment,(id:803491) R&D : NIHR,NHS SUPPLY CHAIN ( CAPITAL FUND ONLY),id:13091457    ,    20476.00
Department of Health,Guys and St Thomas NHS Foundation Trust,05/06/2020,(81200) Medical Surgical Supplies & Equipment,(id:803490) R&D : NIHR,NHS SUPPLY CHAIN (MAIDSTONE),id:13025177   ,  98.46
Department of Health,Guys and St Thomas NHS Foundation Trust,05/06/2020,(81700) Lab Equipment Purchase,(id:803490) R&D : NIHR,NHS SUPPLY CHAIN (MAIDSTONE),id:12997767   ,   3.20
Department of Health,Guys and St Thomas NHS Foundation Trust,05/06/2020,(82000) Provisions & Kitchens,(id:803490) R&D : NIHR,NHS SUPPLY CHAIN (MAIDSTONE),id:13015166    ,  27.61
Department of Health,Guys and St Thomas NHS Foundation Trust,05/06/2020,(50203) Consultants,(id:810419) R&D : NIHR,KINGS COLLEGE LONDON:03529700,id:12988270   ,2841.29
Department of Health,Guys and St Thomas NHS Foundation Trust,05/06/2020,(54030) Technical Officers,(id:93406) R&D : NIHR,KINGS COLLEGE LONDON:03529700,id:12988270  ,2171.42
Department of Health,Guys and St Thomas NHS Foundation Trust,12/06/2020,(50200) Consultants,(id:2913419) R&D : NIHR,ICNARC,id:12732537,8075.00
Department of Health,Guys and St Thomas NHS Foundation Trust,26/06/2020,(83630) IT Costs,(id:42416) Coronavirus [FCOVID],TANGENT ELECTRICAL LTD,id:13099954    ,    19937.50
Department of Health,Guys and St Thomas NHS Foundation Trust,05/06/2020,(83630) IT Costs,(id:42416) Coronavirus [FCOVID],NHS SUPPLY CHAIN (MAIDSTONE),id:12997767   ,2917.44
Department of Health,Guys and St Thomas NHS Foundation Trust,12/06/2020,(83630) IT Costs,(id:42416) Coronavirus [FCOVID],CITY & KENT CLEANING LTD,id:13071858  , 900.00
Department of Health,Guys and St Thomas NHS Foundation Trust,12/06/2020,(83630) IT Costs,(id:42416) Coronavirus [FCOVID],CITY & KENT CLEANING LTD,id:13017754  ,2274.00
Department of Health,Guys and St Thomas NHS Foundation Trust,05/06/2020,(50552) Qualified Nursing Staff,(id:42416) Coronavirus [FCOVID],CONTINENTAL NURSE LTD,id:13070492, 316.14
Department of Health,Guys and St Thomas NHS Foundation Trust,05/06/2020,(50552) Qualified Nursing Staff,(id:42416) Coronavirus [FCOVID],CONTINENTAL NURSE LTD,id:13057752, 959.07
Department of Health,Guys and St Thomas NHS Foundation Trust,26/06/2020,(83880) Building & Engineering,(id:42416) Coronavirus [FCOVID],WPG REFURBISHMENTS LTD CIS6,id:13061334,2120.00
Department of Health,Guys and St Thomas NHS Foundation Trust,05/06/2020,(83880) Building & Engineering,(id:42416) Coronavirus [FCOVID],SCHNEIDER ELECTRIC,id:13067252    , 647.67
Department of Health,Guys and St Thomas NHS Foundation Trust,05/06/2020,(83880) Building & Engineering,(id:42416) Coronavirus [FCOVID],GRAHAM POWELL CONSULTANTS,id:13064801  ,    16380.00
Department of Health,Guys and St Thomas NHS Foundation Trust,12/06/2020,(82600) Uniforms & Clothing,(id:42416) Coronavirus [FCOVID],FULL SUPPORT HEALTHCARE LTD,id:13027799   ,9992.40
Department of Health,Guys and St Thomas NHS Foundation Trust,05/06/2020,(81255) Medical Surgical Supplies & Equipment,(id:42416) Coronavirus [FCOVID],NHS SUPPLY CHAIN (MAIDSTONE),id:13015166    ,   2.49
Department of Health,Guys and St Thomas NHS Foundation Trust,05/06/2020,(81275) Medical Surgical Supplies & Equipment,(id:42416) Coronavirus [FCOVID],NHS SUPPLY CHAIN (MAIDSTONE),id:13015166    , 271.12
Department of Health,Guys and St Thomas NHS Foundation Trust,26/06/2020,(81700) Lab Equipment Purchase,(id:42416) Coronavirus [FCOVID],LIFE TECHNOLOGIES LIMITED,id:13039195  ,    20064.00
Department of Health,Guys and St Thomas NHS Foundation Trust,12/06/2020,(81700) Lab Equipment Purchase,(id:42416) Coronavirus [FCOVID],LIFE TECHNOLOGIES LIMITED,id:13076622  ,5922.00
Department of Health,Guys and St Thomas NHS Foundation Trust,12/06/2020,(81100) Dressings,(id:42416) Coronavirus [FCOVID],AB SCIENTIFIC LIMITED,id:13071581    ,    13248.00
Department of Health,Guys and St Thomas NHS Foundation Trust,05/06/2020,(81100) Dressings,(id:42416) Coronavirus [FCOVID],AB SCIENTIFIC LIMITED,id:13054254    ,    13248.00
Department of Health,Guys and St Thomas NHS Foundation Trust,05/06/2020,(82000) Provisions & Kitchens,(id:42416) Coronavirus [FCOVID],NHS SUPPLY CHAIN (MAIDSTONE),id:13015166,   3.10
Department of Health,Guys and St Thomas NHS Foundation Trust,12/06/2020,(84600) Establishment,(id:42416) Coronavirus [FCOVID],MARRIOTT COUNTY HALL,id:13085755 ,    83468.00
Department of Health,Guys and St Thomas NHS Foundation Trust,05/06/2020,(81200) Medical Surgical Supplies & Equipment,(id:42416) Coronavirus [FCOVID],ARJO UK LIMITED,id:13051518  ,6220.80
Department of Health,Guys and St Thomas NHS Foundation Trust,19/06/2020,(81200) Medical Surgical Supplies & Equipment,(id:42416) Coronavirus [FCOVID],SQUADRON MEDICAL LTD,id:13039868  ,7931.95
Department of Health,Guys and St Thomas NHS Foundation Trust,12/06/2020,(81200) Medical Surgical Supplies & Equipment,(id:42416) Coronavirus [FCOVID],GETINGE UK LTD,id:13077654   ,9573.60
Department of Health,Guys and St Thomas NHS Foundation Trust,12/06/2020,(81200) Medical Surgical Supplies & Equipment,(id:42416) Coronavirus [FCOVID],B.BRAUN MEDICAL LTD,id:13028374   , 384.00
Department of Health,Guys and St Thomas NHS Foundation Trust,12/06/2020,(81200) Medical Surgical Supplies & Equipment,(id:42416) Coronavirus [FCOVID],SMITHS MEDICAL INTERNATIONAL LTD:69519000,id:13081406 ,2495.52
Department of Health,Guys and St Thomas NHS Foundation Trust,12/06/2020,(81200) Medical Surgical Supplies & Equipment,(id:42416) Coronavirus [FCOVID],TOTAL PROTECTION (UK) LTD,id:13071774  ,    33000.00
Department of Health,Guys and St Thomas NHS Foundation Trust,12/06/2020,(83400) Office Equipment,(id:42416) Coronavirus [FCOVID],ECE UK LTD,id:13075975   ,    23523.60
Department of Health,Guys and St Thomas NHS Foundation Trust,05/06/2020,(83400) Office Equipment,(id:42416) Coronavirus [FCOVID],NHS SUPPLY CHAIN (MAIDSTONE),id:13025177, 111.11
Department of Health,Guys and St Thomas NHS Foundation Trust,12/06/2020,(83400) Office Equipment,(id:42416) Coronavirus [FCOVID],GROSVENOR CONTRACTS LONDON LTD,id:13075611   ,1015.20
Department of Health,Guys and St Thomas NHS Foundation Trust,05/06/2020,(83500) Furniture & Fittings,(id:42416) Coronavirus [FCOVID],HOSPITAL METALCRAFT LTD,id:13058035 ,1705.54
Department of Health,Guys and St Thomas NHS Foundation Trust,26/06/2020,(83500) Furniture & Fittings,(id:42416) Coronavirus [FCOVID],HOSPITAL METALCRAFT LTD,id:13108381 ,2741.76
Department of Health,Guys and St Thomas NHS Foundation Trust,12/06/2020,(81200) Medical Surgical Supplies & Equipment,(id:3989419) Inpatient Services,GV HEALTHCARE LTD,id:12893222,2795.52
Department of Health,Guys and St Thomas NHS Foundation Trust,25/06/2020,(84600) Establishment,(id:42682) Inpatient Services,CLARITY TRAVEL MANAGEMENT,id:13115075   ,  79.20
Department of Health,Guys and St Thomas NHS Foundation Trust,05/06/2020,(81200) Medical Surgical Supplies & Equipment,(id:41970) Inpatient Services,NHS SUPPLY CHAIN (MAIDSTONE),id:13025177 ,  13.08
Department of Health,Guys and St Thomas NHS Foundation Trust,05/06/2020,(81100) Dressings,(id:41968) Inpatient Services,NHS SUPPLY CHAIN (MAIDSTONE),id:12997767    , 520.95
Department of Health,Guys and St Thomas NHS Foundation Trust,05/06/2020,(83400) Office Equipment,(id:41966) Inpatient Services,NHS SUPPLY CHAIN (MAIDSTONE),id:12997767  ,   4.80
Department of Health,Guys and St Thomas NHS Foundation Trust,19/06/2020,(83400) Office Equipment,(id:2401419) Commercial,CLARKE NICHOLLS MARCEL ( CIVIL STRUCTURAL ENGINEERS ) LTD,id:13096594    , 750.00
Department of Health,Guys and St Thomas NHS Foundation Trust,12/06/2020,(50130) Directors & Senior Managers,(id:2401419) Commercial,ROYAL BROMPTON AND HAREFIELD NHS FOUNDATION TRUST,id:12779876 ,6388.69
Department of Health,Guys and St Thomas NHS Foundation Trust,26/06/2020,(89120) Other - Legal fees,(id:42939) Commercial,BEACHCROFT LLP OFFICE ACCOUNT,id:13109377  , 772.68
Department of Health,Guys and St Thomas NHS Foundation Trust,05/06/2020,(89120) Other - Legal fees,(id:345409) Commercial,BEACHCROFT LLP OFFICE ACCOUNT,id:12758804 ,    14500.00
Department of Health,Guys and St Thomas NHS Foundation Trust,05/06/2020,(89280) Other - Consultancy costs,(id:345409) Commercial,7 TY CONSULTING LTD,id:13057159    ,    12000.00
Department of Health,Guys and St Thomas NHS Foundation Trust,05/06/2020,(89120) Other - Legal fees,(id:42945) Commercial,BEACHCROFT LLP OFFICE ACCOUNT,id:13062664  , 834.20
Department of Health,Guys and St Thomas NHS Foundation Trust,05/06/2020,(81225) Medical Surgical Supplies & Equipment,(id:42935) Commercial,NHS SUPPLY CHAIN (MAIDSTONE),id:13025177    ,   3.12
Department of Health,Guys and St Thomas NHS Foundation Trust,05/06/2020,(81700) Lab Equipment Purchase,(id:42935) Commercial,NHS SUPPLY CHAIN (MAIDSTONE),id:13015166    ,  32.69
Department of Health,Guys and St Thomas NHS Foundation Trust,05/06/2020,(81255) Medical Surgical Supplies & Equipment,(id:42935) Commercial,NHS SUPPLY CHAIN (MAIDSTONE),id:13015166    ,   2.50
Department of Health,Guys and St Thomas NHS Foundation Trust,12/06/2020,(43000) Non NHS: Private patients,(id:2459420) Commercial,DR MANISH SINHA,id:13085375  , -10.00
Department of Health,Guys and St Thomas NHS Foundation Trust,26/06/2020,(43000) Non NHS: Private patients,(id:2459420) Commercial,DR MANISH SINHA,id:13113677  , -10.00
Department of Health,Guys and St Thomas NHS Foundation Trust,19/06/2020,(83640) IT Costs,(id:42919) Commercial,IQVIA TECHNOLOGY SERVICES LTD,id:13075774  ,4896.00
Department of Health,Guys and St Thomas NHS Foundation Trust,26/06/2020,(86300) Healthcare from non-NHS bodies,(id:1999419) Commercial,KINGS COLLEGE LONDON:03529700,id:12895794   ,3589.61
Department of Health,Guys and St Thomas NHS Foundation Trust,26/06/2020,(10035) Fixed Asset Clearing,(id:4449422) TRUST Capital Cost Centres,NESOR EQUIPMENT CO,id:13079014   ,    18438.00
Department of Health,Guys and St Thomas NHS Foundation Trust,12/06/2020,(10090) Fixed Asset Clearing,(id:2747419) TRUST Capital Cost Centres,ESSENTIA TRADING LIMITED,id:13050047  , 615.33
Department of Health,Guys and St Thomas NHS Foundation Trust,26/06/2020,(10090) Fixed Asset Clearing,(id:2747419) TRUST Capital Cost Centres,ESSENTIA TRADING LIMITED,id:13084270  , 772.67
Department of Health,Guys and St Thomas NHS Foundation Trust,12/06/2020,(10090) Fixed Asset Clearing,(id:2690419) TRUST Capital Cost Centres,DUCTCLEAN UK LTD,id:13044254, 800.00
Department of Health,Guys and St Thomas NHS Foundation Trust,12/06/2020,(10090) Fixed Asset Clearing,(id:3751419) TRUST Capital Cost Centres,ESSENTIA TRADING LIMITED,id:13050044  ,1605.74
Department of Health,Guys and St Thomas NHS Foundation Trust,12/06/2020,(10090) Fixed Asset Clearing,(id:3217419) TRUST Capital Cost Centres,MS STORAGE EQUIPMENT LTD,id:13081411  , 837.60
Department of Health,Guys and St Thomas NHS Foundation Trust,19/06/2020,(10030) Fixed Asset Clearing,(id:3082419) TRUST Capital Cost Centres,STEVE MORGAN,id:13093654    , 570.00
Department of Health,Guys and St Thomas NHS Foundation Trust,05/06/2020,(10090) Fixed Asset Clearing,(id:1942419) TRUST Capital Cost Centres,ESSENTIA TRADING LIMITED,id:13050050  ,4583.50
Department of Health,Guys and St Thomas NHS Foundation Trust,05/06/2020,(10010) Fixed Asset Clearing,(id:1564420) TRUST Capital Cost Centres,BEACHCROFT LLP OFFICE ACCOUNT,id:13062060  ,1558.00
Department of Health,Guys and St Thomas NHS Foundation Trust,12/06/2020,(10090) Fixed Asset Clearing,(id:1564420) TRUST Capital Cost Centres,TAYLOR & STAPLETON LTD,id:13076635    ,3000.00
Department of Health,Guys and St Thomas NHS Foundation Trust,12/06/2020,(10090) Fixed Asset Clearing,(id:1564420) TRUST Capital Cost Centres,PLAYFORDS LIMITED,id:13019988    ,7129.22
Department of Health,Guys and St Thomas NHS Foundation Trust,19/06/2020,(10090) Fixed Asset Clearing,(id:43651) TRUST Capital Cost Centres,ISG CONSTRUCTION LTD,id:12747416   ,   221824.69
Department of Health,Guys and St Thomas NHS Foundation Trust,26/06/2020,(10010) Fixed Asset Clearing,(id:43512) TRUST Capital Cost Centres,MMP CONSULTANCY LTD,id:13120974    ,1497.97
Department of Health,Guys and St Thomas NHS Foundation Trust,05/06/2020,(10090) Fixed Asset Clearing,(id:43512) TRUST Capital Cost Centres,ESSENTIA TRADING LIMITED,id:13028141    ,    20929.48
Department of Health,Guys and St Thomas NHS Foundation Trust,05/06/2020,(10090) Fixed Asset Clearing,(id:4453419) TRUST Capital Cost Centres,BIANCO SALE LTD,id:12915934 ,5118.75
Department of Health,Guys and St Thomas NHS Foundation Trust,19/06/2020,(10090) Fixed Asset Clearing,(id:4453419) TRUST Capital Cost Centres,GO-FIX MECHANICAL & DRAINAGE SERVICES (AMMAX LTD T/AS),id:12892434  ,1530.00
Department of Health,Guys and St Thomas NHS Foundation Trust,12/06/2020,(10090) Fixed Asset Clearing,(id:3993419) TRUST Capital Cost Centres,CURRIE & BROWN LTD,id:13082214   ,4000.00
Department of Health,Guys and St Thomas NHS Foundation Trust,12/06/2020,(10010) Fixed Asset Clearing,(id:2217426) TRUST Capital Cost Centres,LAMBERT SMITH HAMPTON,id:13068937,4250.00
Department of Health,Guys and St Thomas NHS Foundation Trust,05/06/2020,(10090) Fixed Asset Clearing,(id:4630419) TRUST Capital Cost Centres,ETA PROJECTS LTD,id:13063876,1556.00
Department of Health,Guys and St Thomas NHS Foundation Trust,05/06/2020,(10090) Fixed Asset Clearing,(id:4507419) TRUST Capital Cost Centres,ESSENTIA TRADING LIMITED,id:13050042  ,    32156.17
Department of Health,Guys and St Thomas NHS Foundation Trust,26/06/2020,(10090) Fixed Asset Clearing,(id:4505420) TRUST Capital Cost Centres,AYERST ENVIRONMENTAL LTD,id:12819952  ,6264.00
Department of Health,Guys and St Thomas NHS Foundation Trust,05/06/2020,(10090) Fixed Asset Clearing,(id:4283419) TRUST Capital Cost Centres,WPG REFURBISHMENTS LTD CIS6,id:13064999    ,2723.00
Department of Health,Guys and St Thomas NHS Foundation Trust,05/06/2020,(10090) Fixed Asset Clearing,(id:4283419) TRUST Capital Cost Centres,DRAX (UK) LTD,id:12970040   ,4000.00
Department of Health,Guys and St Thomas NHS Foundation Trust,12/06/2020,(10090) Fixed Asset Clearing,(id:4283419) TRUST Capital Cost Centres,STEVE MORGAN,id:13053633    ,1870.00
Department of Health,Guys and St Thomas NHS Foundation Trust,05/06/2020,(10090) Fixed Asset Clearing,(id:4283419) TRUST Capital Cost Centres,ESSENTIA TRADING LIMITED,id:13050040  ,2009.00
Department of Health,Guys and St Thomas NHS Foundation Trust,12/06/2020,(10025) Fixed Asset Clearing,(id:4385419) TRUST Capital Cost Centres,ASTEROS ADVISERS LTD,id:13065295 ,7200.00
Department of Health,Guys and St Thomas NHS Foundation Trust,26/06/2020,(10090) Fixed Asset Clearing,(id:871419) TRUST Capital Cost Centres,LEEC LTD,id:13105675    ,    17312.40
Department of Health,Guys and St Thomas NHS Foundation Trust,05/06/2020,(10090) Fixed Asset Clearing,(id:246417) TRUST Capital Cost Centres,DUCTCLEAN UK LTD,id:13038486 ,3600.00
Department of Health,Guys and St Thomas NHS Foundation Trust,26/06/2020,(10090) Fixed Asset Clearing,(id:246417) TRUST Capital Cost Centres,AYERST ENVIRONMENTAL LTD,id:13061360   ,3024.00
Department of Health,Guys and St Thomas NHS Foundation Trust,12/06/2020,(10090) Fixed Asset Clearing,(id:4326419) TRUST Capital Cost Centres,THORLUX LIGHTING,id:13078070,    28925.44
Department of Health,Guys and St Thomas NHS Foundation Trust,19/06/2020,(10090) Fixed Asset Clearing,(id:4326419) TRUST Capital Cost Centres,THORLUX LIGHTING,id:13006460,3066.01
Department of Health,Guys and St Thomas NHS Foundation Trust,12/06/2020,(10090) Fixed Asset Clearing,(id:3044427) TRUST Capital Cost Centres,DRAX (UK) LTD,id:12830765   ,    10000.00
Department of Health,Guys and St Thomas NHS Foundation Trust,12/06/2020,(10090) Fixed Asset Clearing,(id:3044427) TRUST Capital Cost Centres,AYERST ENVIRONMENTAL LTD,id:13020127  , 820.80
Department of Health,Guys and St Thomas NHS Foundation Trust,19/06/2020,(10090) Fixed Asset Clearing,(id:3044427) TRUST Capital Cost Centres,DRAX (UK) LTD,id:13087314   ,2000.00
Department of Health,Guys and St Thomas NHS Foundation Trust,05/06/2020,(10090) Fixed Asset Clearing,(id:3044425) TRUST Capital Cost Centres,ETA PROJECTS LTD,id:13069674,1510.00
Department of Health,Guys and St Thomas NHS Foundation Trust,12/06/2020,(10090) Fixed Asset Clearing,(id:3044425) TRUST Capital Cost Centres,PLAYFORDS LIMITED,id:13054674    ,5113.84
Department of Health,Guys and St Thomas NHS Foundation Trust,12/06/2020,(10010) Fixed Asset Clearing,(id:2517424) TRUST Capital Cost Centres,MORGAN HUNT UK LTD,id:13082255   ,2143.20
Department of Health,Guys and St Thomas NHS Foundation Trust,26/06/2020,(10090) Fixed Asset Clearing,(id:2205419) TRUST Capital Cost Centres,BOC LTD :02107500,id:13065040    ,6828.00
Department of Health,Guys and St Thomas NHS Foundation Trust,26/06/2020,(10090) Fixed Asset Clearing,(id:2104419) TRUST Capital Cost Centres,GRANTLEIGH LTD,id:13110914  , 680.00
Department of Health,Guys and St Thomas NHS Foundation Trust,12/06/2020,(10015) Fixed Asset Clearing,(id:4494421) TRUST Capital Cost Centres,GE HEALTHCARE (50652318),id:13038595  ,    44898.43
Department of Health,Guys and St Thomas NHS Foundation Trust,12/06/2020,(10090) Fixed Asset Clearing,(id:4568419) TRUST Capital Cost Centres,MARTIN STEWART AUDIO VISUAL SERVICES,id:12993706,5000.00
Department of Health,Guys and St Thomas NHS Foundation Trust,12/06/2020,(10090) Fixed Asset Clearing,(id:4568419) TRUST Capital Cost Centres,SCC PLC)SPECIALIST COMPUTER CENTRES,id:13071657 ,    24901.32
Department of Health,Guys and St Thomas NHS Foundation Trust,26/06/2020,(10030) Fixed Asset Clearing,(id:2039419) TRUST Capital Cost Centres,TECHNIMOVE LTD,id:12601311  ,1622.40
Department of Health,Guys and St Thomas NHS Foundation Trust,12/06/2020,(10030) Fixed Asset Clearing,(id:4606420) TRUST Capital Cost Centres,COMPUTACENTER UK LTD,id:12939990 ,    10608.19
Department of Health,Guys and St Thomas NHS Foundation Trust,05/06/2020,(10030) Fixed Asset Clearing,(id:4638420) TRUST Capital Cost Centres,CANCOM UK LTD (FORMERLY OCSL),id:13025222  ,    32242.00
Department of Health,Guys and St Thomas NHS Foundation Trust,12/06/2020,(10030) Fixed Asset Clearing,(id:4617419) TRUST Capital Cost Centres,SOFTCAT LTD,id:13069230,7323.48
Department of Health,Guys and St Thomas NHS Foundation Trust,19/06/2020,(10030) Fixed Asset Clearing,(id:4617419) TRUST Capital Cost Centres,SCC PLC)SPECIALIST COMPUTER CENTRES,id:13101282 ,-509.40
Department of Health,Guys and St Thomas NHS Foundation Trust,26/06/2020,(10090) Fixed Asset Clearing,(id:4373419) TRUST Capital Cost Centres,CANCOM UK LTD (FORMERLY OCSL),id:13086754  ,2850.00
Department of Health,Guys and St Thomas NHS Foundation Trust,12/06/2020,(10090) Fixed Asset Clearing,(id:4305419) TRUST Capital Cost Centres,CANCOM UK LTD (FORMERLY OCSL),id:13051580  ,    51272.50
Department of Health,Guys and St Thomas NHS Foundation Trust,12/06/2020,(10030) Fixed Asset Clearing,(id:3944419) TRUST Capital Cost Centres,COMPUTACENTER UK LTD,id:13081427 ,    41520.00
Department of Health,Guys and St Thomas NHS Foundation Trust,19/06/2020,(10030) Fixed Asset Clearing,(id:3973419) TRUST Capital Cost Centres,MAINTEL EUROPE LIMITED,id:13091756    ,3231.00
Department of Health,Guys and St Thomas NHS Foundation Trust,05/06/2020,(10035) Fixed Asset Clearing,(id:4610420) TRUST Capital Cost Centres,HAMILTON MEDICAL UK (A DIVISION OF HAMILTON SALES & SERVICE UK LTD),id:13051589    ,   711545.40
Department of Health,Guys and St Thomas NHS Foundation Trust,05/06/2020,(10090) Fixed Asset Clearing,(id:4610419) TRUST Capital Cost Centres,DRAX (UK) LTD,id:12997496   ,1294.80
Department of Health,Guys and St Thomas NHS Foundation Trust,12/06/2020,(10090) Fixed Asset Clearing,(id:4610419) TRUST Capital Cost Centres,KEY STRUCTURES LTD,id:13038735   ,5889.36
Department of Health,Guys and St Thomas NHS Foundation Trust,12/06/2020,(10090) Fixed Asset Clearing,(id:4610419) TRUST Capital Cost Centres,GAILARDE LTD,id:13083896    ,1320.00
Department of Health,Guys and St Thomas NHS Foundation Trust,26/06/2020,(10090) Fixed Asset Clearing,(id:4610419) TRUST Capital Cost Centres,G&M BUILDING CONTRACTORS ESSEX LTD,id:13094234  ,1401.00
Department of Health,Guys and St Thomas NHS Foundation Trust,19/06/2020,(10035) Fixed Asset Clearing,(id:4610419) TRUST Capital Cost Centres,STRYKER UK LTD,id:13103074  ,1171.44
Department of Health,Guys and St Thomas NHS Foundation Trust,05/06/2020,(31981) Other trade payables < 1 Yr,(id:40092) TRUST Balance Sheet Codes,IMC LOCUMS,id:13063424  , 830.12
Department of Health,Guys and St Thomas NHS Foundation Trust,05/06/2020,(31981) Other trade payables < 1 Yr,(id:40092) TRUST Balance Sheet Codes,IMC LOCUMS,id:13063433  , 908.72
Department of Health,Guys and St Thomas NHS Foundation Trust,19/06/2020,(31981) Other trade payables < 1 Yr,(id:40092) TRUST Balance Sheet Codes,TFS HEALTHCARE,id:13101859   , 446.63
Department of Health,Guys and St Thomas NHS Foundation Trust,19/06/2020,(31981) Other trade payables < 1 Yr,(id:40092) TRUST Balance Sheet Codes,SUGARMAN GROUP LTD,id:13101924    , 927.61
Department of Health,Guys and St Thomas NHS Foundation Trust,19/06/2020,(31981) Other trade payables < 1 Yr,(id:40092) TRUST Balance Sheet Codes,HEALTHCARE LOCUMS PLC (HCL HEALTHCARE PLC),id:13102003,1987.90
Department of Health,Guys and St Thomas NHS Foundation Trust,19/06/2020,(31981) Other trade payables < 1 Yr,(id:40092) TRUST Balance Sheet Codes,YOUR WORLD RECRUITMENT LIMITED(YOUR WORLD HEALTHCARE),id:13105471    ,3349.98
Department of Health,Guys and St Thomas NHS Foundation Trust,19/06/2020,(31981) Other trade payables < 1 Yr,(id:40092) TRUST Balance Sheet Codes,PSL RECRUITMENT SERVICES LTD,id:13101885    ,9398.45
Department of Health,Guys and St Thomas NHS Foundation Trust,26/06/2020,(31981) Other trade payables < 1 Yr,(id:40092) TRUST Balance Sheet Codes,LIQUID PERSONNEL LTD,id:13122338  , 535.50
Department of Health,Guys and St Thomas NHS Foundation Trust,05/06/2020,(21130) Inventories - Finished goods,(id:40092) TRUST Balance Sheet Codes,AAH PHARMACEUTICALS LTD,id:13067612   , 503.71
Department of Health,Guys and St Thomas NHS Foundation Trust,05/06/2020,(21130) Inventories - Finished goods,(id:40092) TRUST Balance Sheet Codes,AAH PHARMACEUTICALS LTD,id:13067715   ,1027.29
Department of Health,Guys and St Thomas NHS Foundation Trust,05/06/2020,(21130) Inventories - Finished goods,(id:40092) TRUST Balance Sheet Codes,ALLIANCE HEALTHCARE HOSP SERV(UNICHEM),id:13068588   ,1005.40
Department of Health,Guys and St Thomas NHS Foundation Trust,05/06/2020,(21130) Inventories - Finished goods,(id:40092) TRUST Balance Sheet Codes,NOVARTIS PHARMACEUTICALS UK LTD,id:13068608,    10450.80
Department of Health,Guys and St Thomas NHS Foundation Trust,05/06/2020,(21130) Inventories - Finished goods,(id:40092) TRUST Balance Sheet Codes,FRESENIUS MEDICAL CARE RENAL SERVICES LT,id:13056856 ,3432.00
Department of Health,Guys and St Thomas NHS Foundation Trust,05/06/2020,(21130) Inventories - Finished goods,(id:40092) TRUST Balance Sheet Codes,AAH PHARMACEUTICALS LTD,id:13067575   ,    47898.00
Department of Health,Guys and St Thomas NHS Foundation Trust,05/06/2020,(21130) Inventories - Finished goods,(id:40092) TRUST Balance Sheet Codes,ROCHE PRODUCTS LTD,id:13068188   ,7738.92
Department of Health,Guys and St Thomas NHS Foundation Trust,05/06/2020,(21130) Inventories - Finished goods,(id:40092) TRUST Balance Sheet Codes,ALLOGA UK,id:13053169  ,    16800.00
Department of Health,Guys and St Thomas NHS Foundation Trust,05/06/2020,(21130) Inventories - Finished goods,(id:40092) TRUST Balance Sheet Codes,ALLIANCE HEALTHCARE HOSP SERV(UNICHEM),id:13068287   ,4628.40
